Vendor,Category,Amount Paid,Payment Date,,
10 S. Riverside Property Owner LLC,Rental Expense,11320.77,1/2/2020,,
10 S. Riverside Property Owner LLC,Rental Expense,10556.37,1/22/2020,,
10 S. Riverside Property Owner LLC,Rental Expense,1039.4,1/23/2020,,
10 S. Riverside Property Owner LLC,Rental Expense,11458.27,2/18/2020,,
10 S. Riverside Property Owner LLC,Rental Expense,31985.8,6/15/2020,,
10 S. Riverside Property Owner LLC,Rental Expense,10873.06,6/22/2020,,
10 S. Riverside Property Owner LLC,Rental Expense,10873.06,8/20/2020,,
10 S. Riverside Property Owner LLC,Rental Expense,10873.06,8/21/2020,,
10 S. Riverside Property Owner LLC,Rental Expense,10873.06,9/24/2020,,
10 S. Riverside Property Owner LLC,Rental Expense,10873.06,10/26/2020,,
10 S. Riverside Property Owner LLC,Rental Expense,892.2,11/24/2020,,
10 S. Riverside Property Owner LLC,Rental Expense,10873.06,11/24/2020,,
"1UP Aerial Drone Services, Inc.",Materials,12597,1/2/2020,,
"1UP Aerial Drone Services, Inc.",Materials,8099.97,1/2/2020,,
2423 Partners  LLC,Rental Expense,14327.94,3/24/2020,,
401 Properties Lp C/O: Eric Janssen  Receiver #133,Rental Expense,24417.55,1/2/2020,,
401 Properties Lp C/O: Eric Janssen  Receiver #133,Rental Expense,24792.55,1/27/2020,,
401 Properties Lp C/O: Eric Janssen  Receiver #133,Rental Expense,18248.55,3/3/2020,,
401 Properties Lp C/O: Eric Janssen  Receiver #133,Rental Expense,23877.95,3/20/2020,,
401 Properties Lp C/O: Eric Janssen  Receiver #133,Rental Expense,28007.95,4/21/2020,,
401 Properties Lp C/O: Eric Janssen  Receiver #133,Rental Expense,27035.45,5/20/2020,,
401 Properties Lp C/O: Eric Janssen  Receiver #133,Rental Expense,27085.45,6/19/2020,,
401 Properties Lp C/O: Eric Janssen  Receiver #133,Rental Expense,28460.45,7/21/2020,,
401 Properties Lp C/O: Eric Janssen  Receiver #133,Rental Expense,27060.45,9/17/2020,,
401 Properties Lp C/O: Eric Janssen  Receiver #133,Rental Expense,24775.45,10/28/2020,,
401 Properties Lp C/O: Eric Janssen  Receiver #133,Rental Expense,24955.45,10/29/2020,,
401 Properties Lp C/O: Eric Janssen  Receiver #133,Rental Expense,24445.45,11/23/2020,,
440 South Lasalle St.(Chicago)Owner Llc,Rental Expense,292330.62,1/2/2020,,
440 South Lasalle St.(Chicago)Owner Llc,Rental Expense,274939.93,4/1/2020,,
440 South Lasalle St.(Chicago)Owner Llc,Rental Expense,135929.93,4/6/2020,,
440 South Lasalle St.(Chicago)Owner Llc,Rental Expense,150723.13,5/13/2020,,
440 South Lasalle St.(Chicago)Owner Llc,Rental Expense,137284.15,6/1/2020,,
440 South Lasalle St.(Chicago)Owner Llc,Rental Expense,143402.89,6/30/2020,,
440 South Lasalle St.(Chicago)Owner Llc,Rental Expense,136877.19,7/28/2020,,
440 South Lasalle St.(Chicago)Owner Llc,Rental Expense,6678.21,9/22/2020,,
440 South Lasalle St.(Chicago)Owner Llc,Rental Expense,136723.07,9/24/2020,,
440 South Lasalle St.(Chicago)Owner Llc,Rental Expense,136955.96,10/19/2020,,
440 South Lasalle St.(Chicago)Owner Llc,Rental Expense,136698.64,10/27/2020,,
440 South Lasalle St.(Chicago)Owner Llc,Rental Expense,131911.38,12/1/2020,,
6866336 Canada Inc dba Chameleon Innovations,Capital Purchases,22800,12/2/2020,,
A & L Relay Services Llc,Services,6075,4/16/2020,,
A & L Relay Services Llc,Services,3525,7/23/2020,,
A & L Relay Services Llc,Services,6440,9/4/2020,,
A & L Relay Services Llc,Services,675,11/16/2020,,
A & L Relay Services Llc,Services,9500,11/17/2020,,
A-Alert Exterminating Service,Services,45,1/2/2020,,
A-Alert Exterminating Service,Services,75,1/2/2020,,
A-Alert Exterminating Service,Services,75,1/2/2020,,
A-Alert Exterminating Service,Services,75,1/2/2020,,
A-Alert Exterminating Service,Services,180,1/2/2020,,
A-Alert Exterminating Service,Services,115,1/2/2020,,
A-Alert Exterminating Service,Services,35,1/24/2020,,
A-Alert Exterminating Service,Services,135,2/3/2020,,
A-Alert Exterminating Service,Services,75,2/3/2020,,
A-Alert Exterminating Service,Services,75,2/3/2020,,
A-Alert Exterminating Service,Services,75,2/3/2020,,
A-Alert Exterminating Service,Services,45,2/3/2020,,
A-Alert Exterminating Service,Services,45,2/3/2020,,
A-Alert Exterminating Service,Services,450,2/3/2020,,
A-Alert Exterminating Service,Services,115,2/3/2020,,
A-Alert Exterminating Service,Services,1180,2/3/2020,,
A-Alert Exterminating Service,Services,135,2/4/2020,,
A-Alert Exterminating Service,Services,820,2/4/2020,,
A-Alert Exterminating Service,Services,75,3/2/2020,,
A-Alert Exterminating Service,Services,350,3/2/2020,,
A-Alert Exterminating Service,Services,35,3/2/2020,,
A-Alert Exterminating Service,Services,75,3/3/2020,,
A-Alert Exterminating Service,Services,75,3/3/2020,,
A-Alert Exterminating Service,Services,45,3/3/2020,,
A-Alert Exterminating Service,Services,45,3/3/2020,,
A-Alert Exterminating Service,Services,30,3/3/2020,,
A-Alert Exterminating Service,Services,115,3/3/2020,,
A-Alert Exterminating Service,Services,270,3/3/2020,,
A-Alert Exterminating Service,Services,30,3/5/2020,,
A-Alert Exterminating Service,Services,45,3/9/2020,,
A-Alert Exterminating Service,Services,90,3/9/2020,,
A-Alert Exterminating Service,Services,75,3/9/2020,,
A-Alert Exterminating Service,Services,75,3/9/2020,,
A-Alert Exterminating Service,Services,75,3/9/2020,,
A-Alert Exterminating Service,Services,180,3/9/2020,,
A-Alert Exterminating Service,Services,45,3/26/2020,,
A-Alert Exterminating Service,Services,75,3/26/2020,,
A-Alert Exterminating Service,Services,40,4/2/2020,,
A-Alert Exterminating Service,Services,45,4/3/2020,,
A-Alert Exterminating Service,Services,285,4/3/2020,,
A-Alert Exterminating Service,Services,45,4/13/2020,,
A-Alert Exterminating Service,Services,430,4/13/2020,,
A-Alert Exterminating Service,Services,165,4/15/2020,,
A-Alert Exterminating Service,Services,75,4/15/2020,,
A-Alert Exterminating Service,Materials,45,4/21/2020,,
A-Alert Exterminating Service,Services,30,5/1/2020,,
A-Alert Exterminating Service,Services,210,5/1/2020,,
A-Alert Exterminating Service,Materials,75,5/4/2020,,
A-Alert Exterminating Service,Materials,75,5/4/2020,,
A-Alert Exterminating Service,Services,180,5/4/2020,,
A-Alert Exterminating Service,Services,45,5/5/2020,,
A-Alert Exterminating Service,Services,75,5/5/2020,,
A-Alert Exterminating Service,Services,525,5/5/2020,,
A-Alert Exterminating Service,Services,50,5/5/2020,,
A-Alert Exterminating Service,Services,75,5/6/2020,,
A-Alert Exterminating Service,Services,75,5/6/2020,,
A-Alert Exterminating Service,Services,75,5/6/2020,,
A-Alert Exterminating Service,Services,115,5/6/2020,,
A-Alert Exterminating Service,Services,75,5/6/2020,,
A-Alert Exterminating Service,Services,40,5/11/2020,,
A-Alert Exterminating Service,Services,30,5/12/2020,,
A-Alert Exterminating Service,Services,210,5/14/2020,,
A-Alert Exterminating Service,Services,360,5/14/2020,,
A-Alert Exterminating Service,Services,180,5/21/2020,,
A-Alert Exterminating Service,Services,270,6/2/2020,,
A-Alert Exterminating Service,Services,350,6/2/2020,,
A-Alert Exterminating Service,Services,35,6/2/2020,,
A-Alert Exterminating Service,Services,45,6/4/2020,,
A-Alert Exterminating Service,Services,45,6/4/2020,,
A-Alert Exterminating Service,Services,25,6/4/2020,,
A-Alert Exterminating Service,Services,25,6/4/2020,,
A-Alert Exterminating Service,Services,25,6/4/2020,,
A-Alert Exterminating Service,Services,180,6/4/2020,,
A-Alert Exterminating Service,Services,90,6/8/2020,,
A-Alert Exterminating Service,Services,50,6/8/2020,,
A-Alert Exterminating Service,Services,50,6/8/2020,,
A-Alert Exterminating Service,Services,50,6/8/2020,,
A-Alert Exterminating Service,Services,495,6/8/2020,,
A-Alert Exterminating Service,Services,180,6/8/2020,,
A-Alert Exterminating Service,Services,35,6/11/2020,,
A-Alert Exterminating Service,Services,90,7/1/2020,,
A-Alert Exterminating Service,Services,75,7/1/2020,,
A-Alert Exterminating Service,Services,45,7/1/2020,,
A-Alert Exterminating Service,Services,45,7/2/2020,,
A-Alert Exterminating Service,Services,210,7/2/2020,,
A-Alert Exterminating Service,Services,540,7/2/2020,,
A-Alert Exterminating Service,Services,45,7/3/2020,,
A-Alert Exterminating Service,Services,45,7/20/2020,,
A-Alert Exterminating Service,Services,75,7/20/2020,,
A-Alert Exterminating Service,Services,75,7/20/2020,,
A-Alert Exterminating Service,Services,75,7/20/2020,,
A-Alert Exterminating Service,Services,40,7/20/2020,,
A-Alert Exterminating Service,Services,385,7/20/2020,,
A-Alert Exterminating Service,Services,45,7/21/2020,,
A-Alert Exterminating Service,Services,45,7/21/2020,,
A-Alert Exterminating Service,Services,30,8/11/2020,,
A-Alert Exterminating Service,Services,155,8/11/2020,,
A-Alert Exterminating Service,Services,55,8/11/2020,,
A-Alert Exterminating Service,Services,45,8/12/2020,,
A-Alert Exterminating Service,Services,25,8/12/2020,,
A-Alert Exterminating Service,Services,25,8/12/2020,,
A-Alert Exterminating Service,Services,25,8/12/2020,,
A-Alert Exterminating Service,Services,225,8/12/2020,,
A-Alert Exterminating Service,Services,190,8/12/2020,,
A-Alert Exterminating Service,Services,75,8/12/2020,,
A-Alert Exterminating Service,Services,90,8/13/2020,,
A-Alert Exterminating Service,Services,75,8/24/2020,,
A-Alert Exterminating Service,Services,30,8/28/2020,,
A-Alert Exterminating Service,Services,190,8/28/2020,,
A-Alert Exterminating Service,Services,45,9/1/2020,,
A-Alert Exterminating Service,Services,75,9/8/2020,,
A-Alert Exterminating Service,Services,150,9/11/2020,,
A-Alert Exterminating Service,Services,45,9/11/2020,,
A-Alert Exterminating Service,Services,90,9/14/2020,,
A-Alert Exterminating Service,Services,75,9/23/2020,,
A-Alert Exterminating Service,Services,25,9/23/2020,,
A-Alert Exterminating Service,Services,25,9/23/2020,,
A-Alert Exterminating Service,Services,25,9/23/2020,,
A-Alert Exterminating Service,Materials,90,10/7/2020,,
A-Alert Exterminating Service,Services,45,10/7/2020,,
A-Alert Exterminating Service,Services,75,10/7/2020,,
A-Alert Exterminating Service,Services,75,10/13/2020,,
A-Alert Exterminating Service,Services,210,10/13/2020,,
A-Alert Exterminating Service,Services,75,10/26/2020,,
A-Alert Exterminating Service,Services,75,10/26/2020,,
A-Alert Exterminating Service,Services,75,11/2/2020,,
A-Alert Exterminating Service,Services,120,11/5/2020,,
A-Alert Exterminating Service,Services,895,11/6/2020,,
A-Alert Exterminating Service,Services,135,11/24/2020,,
A-Alert Exterminating Service,Services,75,11/24/2020,,
A-Alert Exterminating Service,Services,270,11/24/2020,,
A-Alert Exterminating Service,Services,105,12/8/2020,,
A-Alert Exterminating Service,Services,75,12/8/2020,,
A-Alert Exterminating Service,Services,75,12/9/2020,,
A-Alert Exterminating Service,Services,455,12/17/2020,,
A-Alert Exterminating Service,Services,75,12/18/2020,,
A-Alert Exterminating Service,Services,75,12/18/2020,,
A-Alert Exterminating Service,Services,75,12/18/2020,,
A-Alert Exterminating Service,Services,85,12/18/2020,,
A-Alert Exterminating Service,Services,365,12/18/2020,,
Aaron Gulbransen,Services,95.04,2/18/2020,,
Aaron Gulbransen,Services,673.48,2/18/2020,,
Aaron Gulbransen,Services,192.5,2/18/2020,,
Aaron Gulbransen,Services,80.73,10/2/2020,,
Aaron Sanderson,Services,62.1,2/19/2020,,
Aaron Sanderson,Services,186.3,7/22/2020,,
Aaron Sanderson,Services,62.1,8/17/2020,,
Aaron Sanderson,Services,62.1,10/14/2020,,
Aaron Sanderson,Services,116.27,11/20/2020,,
Aaron Sanderson,Services,61.58,11/30/2020,,
Aaron Sanderson,Services,123.17,12/21/2020,,
Aaron Schultz,Services,127.08,12/7/2020,,
Aaron Schultz,Services,6.2,12/7/2020,,
Aaron Willie,Services,34.8,1/14/2020,,
Aaron Willie,Services,106.72,1/14/2020,,
Aaron Willie,Services,69,2/18/2020,,
Aaron Willie,Services,211.6,2/18/2020,,
Aaron Willie,Services,103.5,3/13/2020,,
Aaron Willie,Services,52.9,3/13/2020,,
Aaron Willie,Services,138,4/8/2020,,
Aaron Willie,Services,79.35,4/8/2020,,
Ability Plastic Inc.,Materials,1130,3/9/2020,,
Ability Plastic Inc.,Services,92.31,3/9/2020,,
Ability Plastic Inc.,Materials,557,11/9/2020,,
Ability Plastic Inc.,Services,8,11/9/2020,,
"ABM Industry Groups, LLC",Services,104551.77,11/2/2020,,
"ABM Industry Groups, LLC",Services,56881.28,11/12/2020,,
"ABM Industry Groups, LLC",Services,51372.4,12/9/2020,,
Abraham R. Castellano,Services,174,1/10/2020,,
Abraham R. Castellano,Services,160.08,1/10/2020,,
Abraham R. Castellano,Services,34.5,2/10/2020,,
Abraham R. Castellano,Services,52.9,2/10/2020,,
Abraham R. Castellano,Services,34.5,7/15/2020,,
Abraham R. Castellano,Services,34.5,7/15/2020,,
Abraham R. Castellano,Services,140.3,7/15/2020,,
Abraham R. Castellano,Services,66.13,10/21/2020,,
Absopulse Electronics Ltd,Materials,1660,7/3/2020,,
Absopulse Electronics Ltd,Services,38,7/3/2020,,
Abt,Services,6512,6/5/2020,,
Abt,Services,1302,7/15/2020,,
Abt,Services,112,9/15/2020,,
Abt,Services,6160,9/15/2020,,
Aca Compliance Services  Inc.,Services,12863,3/9/2020,,
Acacia Financial Group  Inc.,Services,3668.75,2/20/2020,,
Acacia Financial Group  Inc.,Services,1025,3/30/2020,,
Accel Construction Services Group,Capital Purchases,125161.9,2/3/2020,,
Accel Construction Services Group,Capital Purchases,611.72,3/26/2020,,
Accel Construction Services Group,Capital Purchases,50221.53,5/1/2020,,
Accel Construction Services Group,Claims & Insurance,10173.37,5/19/2020,,
Accel Construction Services Group,Capital Purchases,82818.74,8/3/2020,,
Accel Construction Services Group,Capital Purchases,110760.36,8/3/2020,,
Ace Marking Devices Corp.,Services,96.32,6/5/2020,,
Ace Marking Devices Corp.,Services,3742.5,6/5/2020,,
Aci Worldwide Corp.,Services,24274,1/2/2020,,
Aci Worldwide Corp.,Services,500,1/15/2020,,
Aci Worldwide Corp.,Services,500,3/9/2020,,
Aci Worldwide Corp.,Services,24274,3/9/2020,,
Aci Worldwide Corp.,Services,500,4/1/2020,,
Aci Worldwide Corp.,Services,24274,4/1/2020,,
Aci Worldwide Corp.,Services,2217.19,4/16/2020,,
Aci Worldwide Corp.,Services,24774,5/6/2020,,
Aci Worldwide Corp.,Services,24774,7/1/2020,,
Aci Worldwide Corp.,Services,24774,7/3/2020,,
Aci Worldwide Corp.,Services,500,8/4/2020,,
Aci Worldwide Corp.,Services,24774,8/4/2020,,
Aci Worldwide Corp.,Services,24274,8/4/2020,,
Aci Worldwide Corp.,Services,24774,9/11/2020,,
Aci Worldwide Corp.,Services,24774,10/1/2020,,
Aci Worldwide Corp.,Services,24774,10/14/2020,,
Aci Worldwide Corp.,Services,24774,11/13/2020,,
Aci Worldwide Corp.,Services,24774,12/9/2020,,
Adam Farence,Services,308.78,10/27/2020,,
Adam Gibson,Services,652.4,7/31/2020,,
Adam Haywood,Services,33.35,4/23/2020,,
Adam Haywood,Services,34.5,5/12/2020,,
Adam Haywood,Services,52.9,5/12/2020,,
Adam Haywood,Services,141.45,7/9/2020,,
Adam Haywood,Services,69,8/19/2020,,
Adam Haywood,Services,303.6,8/19/2020,,
Adam Haywood,Services,138,10/1/2020,,
Adam Haywood,Services,266.8,10/1/2020,,
Adams & Westlake  Ltd.,Materials,934,1/14/2020,,
Adams & Westlake  Ltd.,Materials,2796.6,5/27/2020,,
Adams & Westlake  Ltd.,Materials,315,6/8/2020,,
Adams & Westlake  Ltd.,Materials,27039.25,7/3/2020,,
Adams & Westlake  Ltd.,Materials,4428.8,8/17/2020,,
Adams & Westlake  Ltd.,Materials,26110.66,8/31/2020,,
Adams & Westlake  Ltd.,Materials,224.09,9/3/2020,,
Adams & Westlake  Ltd.,Materials,12858.6,9/18/2020,,
Adams & Westlake  Ltd.,Materials,4092.1,9/22/2020,,
Adams & Westlake  Ltd.,Materials,2198,10/13/2020,,
Adams & Westlake  Ltd.,Materials,18504.4,10/14/2020,,
Adams & Westlake  Ltd.,Materials,12228.9,11/2/2020,,
Adams & Westlake  Ltd.,Materials,12564.5,11/6/2020,,
Adams & Westlake  Ltd.,Materials,5978.88,12/1/2020,,
Adams & Westlake  Ltd.,Materials,437.5,12/16/2020,,
Adaptive Micro Systems Inc.,Capital Purchases,88133,2/13/2020,,
Adaptive Micro Systems Inc.,Capital Purchases,130545,12/2/2020,,
Addison Electric  Inc.,Materials,100.8,2/4/2020,,
Addison Electric  Inc.,Materials,165.4,3/6/2020,,
Addison Electric  Inc.,Materials,117.6,3/6/2020,,
Addison Electric  Inc.,Materials,99.24,3/30/2020,,
Addison Electric  Inc.,Materials,147,4/7/2020,,
Addison Electric  Inc.,Materials,126,7/3/2020,,
Addison Electric  Inc.,Materials,1077.6,7/20/2020,,
Addison Electric  Inc.,Materials,539.25,9/1/2020,,
Addison Electric  Inc.,Materials,177,9/1/2020,,
Addison Group,Services,10972.5,1/16/2020,,
Addison Group,Services,3800,2/3/2020,,
Addison Group,Services,25068.13,3/17/2020,,
Addison Group,Services,1638.75,4/1/2020,,
Addison Group,Services,4085,5/12/2020,,
"ADR Systems Of America, LLC",Claims & Insurance,4961,5/13/2020,,
Adriana S. Mena,Services,82.5,2/19/2020,,
Advance Glass Service  Inc.,Services,8793.76,2/3/2020,,
Advance Search Technical Staffing,Services,15636,1/16/2020,,
Advance Search Technical Staffing,Services,15756,2/4/2020,,
Advance Search Technical Staffing,Services,6840,2/4/2020,,
Advance Search Technical Staffing,Services,7938,2/4/2020,,
Advance Search Technical Staffing,Services,48507.5,3/9/2020,,
Advance Search Technical Staffing,Services,8134,3/31/2020,,
Advance Search Technical Staffing,Services,6460,4/1/2020,,
Advance Search Technical Staffing,Services,16442,4/2/2020,,
Advance Search Technical Staffing,Services,8183,4/14/2020,,
Advance Search Technical Staffing,Services,7220,4/15/2020,,
Advance Search Technical Staffing,Services,8085,4/28/2020,,
Advance Search Technical Staffing,Services,7600,5/6/2020,,
Advance Search Technical Staffing,Services,15734,5/14/2020,,
Advance Search Technical Staffing,Services,7203,6/11/2020,,
Advance Search Technical Staffing,Services,7220,6/15/2020,,
Advance Search Technical Staffing,Services,7600,7/1/2020,,
Advance Search Technical Staffing,Services,7987,7/1/2020,,
Advance Search Technical Staffing,Services,18039.5,7/3/2020,,
Advance Search Technical Staffing,Services,14378.5,7/20/2020,,
Advance Search Technical Staffing,Services,8281,7/21/2020,,
Advance Search Technical Staffing,Services,7600,8/27/2020,,
Advance Search Technical Staffing,Services,7885,8/28/2020,,
Advance Search Technical Staffing,Services,8232,9/1/2020,,
Advance Search Technical Staffing,Services,7600,9/11/2020,,
Advance Search Technical Staffing,Services,7600,10/1/2020,,
Advance Search Technical Staffing,Services,14337,10/14/2020,,
Advance Search Technical Staffing,Services,15200,10/14/2020,,
Advance Search Technical Staffing,Services,7889,10/19/2020,,
Advance Search Technical Staffing,Services,7840,11/2/2020,,
Advance Search Technical Staffing,Services,7644,11/12/2020,,
Advance Search Technical Staffing,Services,7600,11/30/2020,,
Advance Search Technical Staffing,Services,7600,12/2/2020,,
Advance Search Technical Staffing,Services,23814,12/2/2020,,
Advance Search Technical Staffing,Services,7600,12/2/2020,,
Advance Search Technical Staffing,Services,7840,12/3/2020,,
Advance Search Technical Staffing,Services,6080,12/9/2020,,
"Advanced Crane Technicians, Inc.",Services,1312,3/6/2020,,
"Advanced Crane Technicians, Inc.",Services,1987,3/17/2020,,
"Advanced Crane Technicians, Inc.",Services,656,6/5/2020,,
"Advanced Crane Technicians, Inc.",Services,1690,7/21/2020,,
"Advanced Crane Technicians, Inc.",Services,1122,10/14/2020,,
"Adventist Health Partner, Inc.",Claims & Insurance,850,5/13/2020,,
"Adventist Health Partner, Inc.",Claims & Insurance,850,5/13/2020,,
"Adventist Health Partner, Inc.",Claims & Insurance,425,9/4/2020,,
Aecom Technical Services  Inc.,Capital Purchases,25034.03,1/15/2020,,
Aecom Technical Services  Inc.,Capital Purchases,27207.62,1/15/2020,,
Aecom Technical Services  Inc.,Services,1130.07,1/21/2020,,
Aecom Technical Services  Inc.,Capital Purchases,94398.87,3/2/2020,,
Aecom Technical Services  Inc.,Capital Purchases,93014.97,3/9/2020,,
Aecom Technical Services  Inc.,Capital Purchases,5298.81,4/1/2020,,
Aecom Technical Services  Inc.,Capital Purchases,133278.59,4/1/2020,,
Aecom Technical Services  Inc.,Services,101.76,4/1/2020,,
Aecom Technical Services  Inc.,Capital Purchases,80182.77,5/6/2020,,
Aecom Technical Services  Inc.,Capital Purchases,14395.64,5/22/2020,,
Aecom Technical Services  Inc.,Capital Purchases,96939.04,6/15/2020,,
Aecom Technical Services  Inc.,Capital Purchases,3317.07,7/20/2020,,
Aecom Technical Services  Inc.,Capital Purchases,93097.11,7/20/2020,,
Aecom Technical Services  Inc.,Capital Purchases,133364.41,8/24/2020,,
Aecom Technical Services  Inc.,Capital Purchases,10221.31,9/22/2020,,
Aecom Technical Services  Inc.,Capital Purchases,53693.6,9/24/2020,,
Aecom Technical Services  Inc.,Capital Purchases,107810.47,11/2/2020,,
Aecom Technical Services  Inc.,Capital Purchases,59961.31,11/6/2020,,
Aecom Technical Services  Inc.,Capital Purchases,18932.55,11/12/2020,,
Aecom Technical Services  Inc.,Capital Purchases,160.74,11/12/2020,,
Aecom Technical Services  Inc.,Capital Purchases,153472.81,11/13/2020,,
Aecom Technical Services  Inc.,Capital Purchases,58688.46,12/18/2020,,
Aed Superstore,Materials,66829.25,1/17/2020,,
Aed Superstore,Materials,77488.5,3/31/2020,,
"Aerial Metrics, Inc.",Services,4990,3/30/2020,,
"Aerial Metrics, Inc.",Services,2500,8/27/2020,,
Afc International  Inc.,Services,949.65,6/5/2020,,
Afc International  Inc.,Services,1469,7/1/2020,,
Agustin C. Ramirez,Services,1582,1/6/2020,,
Agustin C. Ramirez,Services,565,1/14/2020,,
Agustin C. Ramirez,Services,1243,8/20/2020,,
Agustin C. Ramirez,Services,1582,8/27/2020,,
Agustin C. Ramirez,Services,3051,9/24/2020,,
"Ahead of Our Time Publishing, Inc.",Services,500,1/23/2020,,
Aircraft & Commercial Enterprises Inc.,Capital Purchases,754,1/17/2020,,
Aircraft & Commercial Enterprises Inc.,Capital Purchases,957,2/12/2020,,
Aircraft & Commercial Enterprises Inc.,Materials,4762,2/12/2020,,
Aircraft & Commercial Enterprises Inc.,Capital Purchases,2340,3/25/2020,,
Aircraft & Commercial Enterprises Inc.,Capital Purchases,2525,4/2/2020,,
Aircraft & Commercial Enterprises Inc.,Materials,186,4/2/2020,,
Aircraft & Commercial Enterprises Inc.,Capital Purchases,3202,4/7/2020,,
Aircraft & Commercial Enterprises Inc.,Capital Purchases,3510,4/7/2020,,
Aircraft & Commercial Enterprises Inc.,Capital Purchases,1508,5/6/2020,,
Aircraft & Commercial Enterprises Inc.,Capital Purchases,1508,5/14/2020,,
Aircraft & Commercial Enterprises Inc.,Capital Purchases,1755,6/15/2020,,
Aircraft & Commercial Enterprises Inc.,Capital Purchases,3510,6/15/2020,,
Aircraft & Commercial Enterprises Inc.,Capital Purchases,3510,9/1/2020,,
Aircraft & Commercial Enterprises Inc.,Capital Purchases,585,9/8/2020,,
Aircraft & Commercial Enterprises Inc.,Capital Purchases,3510,9/11/2020,,
Aircraft & Commercial Enterprises Inc.,Capital Purchases,1755,9/24/2020,,
Aircraft & Commercial Enterprises Inc.,Capital Purchases,1170,10/1/2020,,
Aircraft & Commercial Enterprises Inc.,Capital Purchases,279,10/14/2020,,
Aircraft & Commercial Enterprises Inc.,Capital Purchases,1755,12/1/2020,,
Aircraft & Commercial Enterprises Inc.,Capital Purchases,585,12/3/2020,,
Aircraft & Commercial Enterprises Inc.,Capital Purchases,1740,12/3/2020,,
Aircraft & Commercial Enterprises Inc.,Capital Purchases,385,12/3/2020,,
Aircraft & Commercial Enterprises Inc.,Capital Purchases,585,12/3/2020,,
Aka Comp Solutions  Inc.,Services,10940,1/17/2020,,
Aka Comp Solutions  Inc.,Services,80960,3/17/2020,,
Aka Comp Solutions  Inc.,Services,30154.66,9/3/2020,,
Alan B. Bakotic,Services,1361.92,2/20/2020,,
Alan B. Bakotic,Services,639,2/20/2020,,
Alan Ratliff,Services,288.96,3/30/2020,,
Alan Ratliff,Services,165,3/30/2020,,
Alan Ratliff,Services,113.4,11/23/2020,,
Alan Ratliff,Services,157.68,11/23/2020,,
Alan Ratliff,Services,778.24,11/23/2020,,
Alan Ratliff,Services,843.96,11/23/2020,,
Alan Ratliff,Services,385,11/23/2020,,
Alan Ratliff,Services,536.54,12/21/2020,,
Alan Ratliff,Services,275,12/21/2020,,
Alan T. Hall II,Services,20.85,5/12/2020,,
Alan T. Hall II,Services,21.84,5/12/2020,,
Albertini Mfg. & Supply  Inc.,Capital Purchases,21000,7/2/2020,,
Alberto Rosario,Services,10.12,5/1/2020,,
Alcohol & Drug Testing Services Llc,Services,13411,2/12/2020,,
Alcohol & Drug Testing Services Llc,Services,9204.5,2/12/2020,,
Alcohol & Drug Testing Services Llc,Services,6645,4/2/2020,,
Alcohol & Drug Testing Services Llc,Services,12629,4/2/2020,,
Alcohol & Drug Testing Services Llc,Services,10415.5,5/6/2020,,
Alcohol & Drug Testing Services Llc,Services,4498,5/14/2020,,
Alcohol & Drug Testing Services Llc,Services,18617.5,6/15/2020,,
Alcohol & Drug Testing Services Llc,Services,11937,8/17/2020,,
Alcohol & Drug Testing Services Llc,Services,7474.5,9/8/2020,,
Alcohol & Drug Testing Services Llc,Services,10989,10/14/2020,,
Alcohol & Drug Testing Services Llc,Services,10835,10/16/2020,,
Alcohol & Drug Testing Services Llc,Services,6903.5,11/2/2020,,
Alcohol & Drug Testing Services Llc,Services,14751,11/6/2020,,
Aldon Co.,Materials,10545,1/22/2020,,
Aldon Co.,Services,106.24,1/22/2020,,
Aldon Co.,Materials,1647,3/31/2020,,
Aldon Co.,Services,72.95,3/31/2020,,
Aldon Co.,Materials,3556,7/15/2020,,
Aldon Co.,Services,219.01,7/15/2020,,
Alejandro Zendejas,Services,140.99,5/18/2020,,
Alesia S. Smith,Services,86.62,8/17/2020,,
Alesia S. Smith,Services,389.78,10/1/2020,,
Alesia S. Smith,Services,367.67,10/8/2020,,
Alesia S. Smith,Services,311.8,11/9/2020,,
Alesia S. Smith,Services,221.69,12/17/2020,,
Alex Valenzuela,Services,83.52,1/9/2020,,
Alex Valenzuela,Services,295.55,2/18/2020,,
Alex Valenzuela,Services,98.9,3/10/2020,,
Alex Valenzuela,Services,25.3,3/10/2020,,
Alex Valenzuela,Services,36.8,10/1/2020,,
Alexandru Vitalis,Services,65.41,2/21/2020,,
Alexandru Vitalis,Services,178.81,2/21/2020,,
Alexandru Vitalis,Services,297.04,2/21/2020,,
Alexandru Vitalis,Services,152.5,2/21/2020,,
Alexis Dawson,Services,104.4,1/16/2020,,
Alexis Dawson,Services,53.36,1/16/2020,,
Alexis Dawson,Services,294.4,2/10/2020,,
Alexis Dawson,Services,52.9,2/10/2020,,
Alexis Dawson,Services,34.5,3/16/2020,,
Alexis Dawson,Services,52.9,3/16/2020,,
Alexis Dawson,Services,172.5,4/20/2020,,
Alexis Dawson,Services,51.75,4/20/2020,,
Alexis Dawson,Services,74.75,6/11/2020,,
Alexis Dawson,Services,207,8/19/2020,,
Alexis Dawson,Services,5.75,8/19/2020,,
Alexis Dawson,Services,69,10/2/2020,,
Alexis Dawson,Services,230,10/2/2020,,
Alexis Dawson,Services,69,10/21/2020,,
Alfred Benesch & Co.,Capital Purchases,351154.25,3/13/2020,,
Alfred Benesch & Co.,Capital Purchases,340618.17,6/24/2020,,
Alfred Benesch & Co.,Capital Purchases,1706066.83,7/7/2020,,
Alfred Benesch & Co.,Capital Purchases,3994.82,8/4/2020,,
Alfred Benesch & Co.,Capital Purchases,239807.5,11/2/2020,,
Alfred Benesch & Co.,Capital Purchases,82700.15,11/24/2020,,
Alfredo Avalos,Services,27.99,2/4/2020,,
All Covered It Services From Konica Minolta,Capital Purchases,1072.5,1/17/2020,,
All Covered It Services From Konica Minolta,Capital Purchases,165,2/12/2020,,
All Covered It Services From Konica Minolta,Capital Purchases,1815,2/24/2020,,
All Covered It Services From Konica Minolta,Capital Purchases,5032.5,3/17/2020,,
All Covered It Services From Konica Minolta,Capital Purchases,1402.5,4/15/2020,,
All Covered It Services From Konica Minolta,Services,5057.5,4/15/2020,,
All Covered It Services From Konica Minolta,Capital Purchases,1361.25,5/6/2020,,
All Covered It Services From Konica Minolta,Services,28857.5,5/6/2020,,
All Covered It Services From Konica Minolta,Capital Purchases,247.5,7/1/2020,,
All Covered It Services From Konica Minolta,Services,24012.5,7/1/2020,,
All Covered It Services From Konica Minolta,Capital Purchases,2062.5,8/3/2020,,
All Covered It Services From Konica Minolta,Services,3187.5,8/3/2020,,
All Covered It Services From Konica Minolta,Capital Purchases,3382.5,9/1/2020,,
All Covered It Services From Konica Minolta,Capital Purchases,1650,9/15/2020,,
All Covered It Services From Konica Minolta,Services,595,11/10/2020,,
All Covered It Services From Konica Minolta,Capital Purchases,1526.25,12/1/2020,,
All Data,Services,1908,1/10/2020,,
Allen DeBraal,Services,497.67,8/11/2020,,
Allen M. Debraal,Services,1.25,3/23/2020,,
Allen M. Debraal,Services,192.5,3/23/2020,,
Allied Electronics Inc.,Materials,159.45,1/17/2020,,
Allied Electronics Inc.,Materials,325.84,1/28/2020,,
Allied Electronics Inc.,Materials,1456.92,4/1/2020,,
Allied Electronics Inc.,Materials,668.84,4/2/2020,,
Allied Electronics Inc.,Materials,2245.88,7/21/2020,,
Allied Electronics Inc.,Materials,84,10/14/2020,,
Allied Electronics Inc.,Materials,54.4,12/9/2020,,
Alma Cervantes,Services,6834,5/21/2020,,
Alonzo D Smith,Services,10500,12/23/2020,,
Alstom Signaling  Inc.,Services,1312,1/2/2020,,
Alstom Signaling  Inc.,Materials,1313,10/23/2020,,
Alstom Signaling Operation  LLC,Materials,9462.26,1/2/2020,,
Alstom Signaling Operation  LLC,Services,4000,1/2/2020,,
Alstom Signaling Operation  LLC,Services,2000,1/2/2020,,
Alstom Signaling Operation  LLC,Materials,2299.96,1/21/2020,,
Alstom Signaling Operation  LLC,Services,170,1/21/2020,,
Alstom Signaling Operation  LLC,Services,850,1/21/2020,,
Alstom Signaling Operation  LLC,Materials,1142.96,1/22/2020,,
Alstom Signaling Operation  LLC,Capital Purchases,630.53,1/22/2020,,
Alstom Signaling Operation  LLC,Materials,2262.44,2/5/2020,,
Alstom Signaling Operation  LLC,Capital Purchases,13813.86,2/5/2020,,
Alstom Signaling Operation  LLC,Capital Purchases,4978.29,2/5/2020,,
Alstom Signaling Operation  LLC,Capital Purchases,28167.1,2/5/2020,,
Alstom Signaling Operation  LLC,Services,960,2/5/2020,,
Alstom Signaling Operation  LLC,Capital Purchases,10281.89,2/6/2020,,
Alstom Signaling Operation  LLC,Capital Purchases,991.74,2/6/2020,,
Alstom Signaling Operation  LLC,Capital Purchases,1731.28,2/6/2020,,
Alstom Signaling Operation  LLC,Services,340,2/6/2020,,
Alstom Signaling Operation  LLC,Services,3655,2/6/2020,,
Alstom Signaling Operation  LLC,Materials,2372,2/10/2020,,
Alstom Signaling Operation  LLC,Materials,22803.8,2/10/2020,,
Alstom Signaling Operation  LLC,Capital Purchases,1414.4,2/10/2020,,
Alstom Signaling Operation  LLC,Services,180,2/10/2020,,
Alstom Signaling Operation  LLC,Capital Purchases,19577.84,2/25/2020,,
Alstom Signaling Operation  LLC,Capital Purchases,2331.88,2/25/2020,,
Alstom Signaling Operation  LLC,Capital Purchases,1599.72,2/25/2020,,
Alstom Signaling Operation  LLC,Services,510,2/25/2020,,
Alstom Signaling Operation  LLC,Capital Purchases,3435.51,2/26/2020,,
Alstom Signaling Operation  LLC,Capital Purchases,707.2,2/26/2020,,
Alstom Signaling Operation  LLC,Services,2380,2/26/2020,,
Alstom Signaling Operation  LLC,Materials,4237.5,3/12/2020,,
Alstom Signaling Operation  LLC,Capital Purchases,2406.19,3/12/2020,,
Alstom Signaling Operation  LLC,Capital Purchases,5828.82,3/12/2020,,
Alstom Signaling Operation  LLC,Capital Purchases,14067.94,3/12/2020,,
Alstom Signaling Operation  LLC,Materials,4344,3/26/2020,,
Alstom Signaling Operation  LLC,Capital Purchases,1799.12,3/30/2020,,
Alstom Signaling Operation  LLC,Materials,15685.74,3/31/2020,,
Alstom Signaling Operation  LLC,Services,2150,3/31/2020,,
Alstom Signaling Operation  LLC,Materials,6699.5,4/1/2020,,
Alstom Signaling Operation  LLC,Capital Purchases,3935.01,4/1/2020,,
Alstom Signaling Operation  LLC,Services,5505,4/1/2020,,
Alstom Signaling Operation  LLC,Materials,25681.1,4/2/2020,,
Alstom Signaling Operation  LLC,Services,1000,4/2/2020,,
Alstom Signaling Operation  LLC,Materials,27685.7,4/3/2020,,
Alstom Signaling Operation  LLC,Materials,10274.57,4/3/2020,,
Alstom Signaling Operation  LLC,Materials,15408.66,4/6/2020,,
Alstom Signaling Operation  LLC,Capital Purchases,1217.72,4/6/2020,,
Alstom Signaling Operation  LLC,Materials,2126.8,4/8/2020,,
Alstom Signaling Operation  LLC,Materials,2679.8,4/15/2020,,
Alstom Signaling Operation  LLC,Services,12140,4/17/2020,,
Alstom Signaling Operation  LLC,Materials,2264.95,4/24/2020,,
Alstom Signaling Operation  LLC,Materials,27816.56,5/21/2020,,
Alstom Signaling Operation  LLC,Capital Purchases,1519.64,5/21/2020,,
Alstom Signaling Operation  LLC,Capital Purchases,1891.59,5/21/2020,,
Alstom Signaling Operation  LLC,Materials,16263.63,5/22/2020,,
Alstom Signaling Operation  LLC,Materials,772.02,5/26/2020,,
Alstom Signaling Operation  LLC,Materials,21684.84,6/2/2020,,
Alstom Signaling Operation  LLC,Materials,5421.21,6/11/2020,,
Alstom Signaling Operation  LLC,Materials,9910.8,6/11/2020,,
Alstom Signaling Operation  LLC,Materials,6322.2,6/11/2020,,
Alstom Signaling Operation  LLC,Materials,4818.12,6/16/2020,,
Alstom Signaling Operation  LLC,Materials,22195,6/17/2020,,
Alstom Signaling Operation  LLC,Materials,4288.41,7/8/2020,,
Alstom Signaling Operation  LLC,Materials,2954.19,7/8/2020,,
Alstom Signaling Operation  LLC,Services,3630,7/8/2020,,
Alstom Signaling Operation  LLC,Capital Purchases,2796,7/9/2020,,
Alstom Signaling Operation  LLC,Services,255,7/9/2020,,
Alstom Signaling Operation  LLC,Materials,17756,7/17/2020,,
Alstom Signaling Operation  LLC,Services,910,7/17/2020,,
Alstom Signaling Operation  LLC,Materials,85505.86,7/21/2020,,
Alstom Signaling Operation  LLC,Capital Purchases,304.43,7/22/2020,,
Alstom Signaling Operation  LLC,Materials,44782.48,7/28/2020,,
Alstom Signaling Operation  LLC,Services,1000,7/28/2020,,
Alstom Signaling Operation  LLC,Services,4510,7/28/2020,,
Alstom Signaling Operation  LLC,Services,10465,8/3/2020,,
Alstom Signaling Operation  LLC,Materials,85672.66,8/31/2020,,
Alstom Signaling Operation  LLC,Materials,22660.94,9/1/2020,,
Alstom Signaling Operation  LLC,Materials,13428.52,9/1/2020,,
Alstom Signaling Operation  LLC,Services,2990,9/1/2020,,
Alstom Signaling Operation  LLC,Services,1080,9/1/2020,,
Alstom Signaling Operation  LLC,Materials,2449.02,9/2/2020,,
Alstom Signaling Operation  LLC,Services,1035,9/3/2020,,
Alstom Signaling Operation  LLC,Materials,5138.35,9/8/2020,,
Alstom Signaling Operation  LLC,Materials,3689.76,9/11/2020,,
Alstom Signaling Operation  LLC,Materials,2870.2,9/15/2020,,
Alstom Signaling Operation  LLC,Materials,17610,9/15/2020,,
Alstom Signaling Operation  LLC,Materials,1000,9/15/2020,,
Alstom Signaling Operation  LLC,Materials,2322.87,9/18/2020,,
Alstom Signaling Operation  LLC,Materials,3222.1,9/25/2020,,
Alstom Signaling Operation  LLC,Materials,63.8,10/1/2020,,
Alstom Signaling Operation  LLC,Materials,11726.12,10/13/2020,,
Alstom Signaling Operation  LLC,Materials,10276.7,10/22/2020,,
Alstom Signaling Operation  LLC,Services,7729,10/23/2020,,
Alstom Signaling Operation  LLC,Services,225,11/2/2020,,
Alstom Signaling Operation  LLC,Materials,5103.26,11/9/2020,,
Alstom Signaling Operation  LLC,Capital Purchases,608508,11/9/2020,,
Alstom Signaling Operation  LLC,Capital Purchases,1050526.41,11/9/2020,,
Alstom Signaling Operation  LLC,Capital Purchases,249204.22,11/9/2020,,
Alstom Signaling Operation  LLC,Services,250,11/9/2020,,
Alstom Signaling Operation  LLC,Materials,2823.33,11/18/2020,,
Alstom Signaling Operation LLC,Materials,350,1/2/2020,,
Alstom Signaling Operation LLC,Materials,828,1/2/2020,,
Alstom Signaling Operation LLC,Capital Purchases,374.32,5/21/2020,,
Alstom Signaling Operation LLC,Capital Purchases,40277.37,5/21/2020,,
Alstom Signaling Operation LLC,Capital Purchases,44950.12,6/1/2020,,
Alstom Signaling Operation LLC,Capital Purchases,40111.44,6/11/2020,,
Alstom Signaling Operation LLC,Capital Purchases,79415.78,6/16/2020,,
Alstom Signaling Operation LLC,Capital Purchases,2769.08,6/16/2020,,
Alstom Signaling Operation LLC,Capital Purchases,692.27,6/17/2020,,
Alstom Signaling Operation LLC,Capital Purchases,29756.66,7/8/2020,,
Alstom Signaling Operation LLC,Capital Purchases,5500.96,7/8/2020,,
Alstom Signaling Operation LLC,Capital Purchases,1384.54,7/8/2020,,
Alstom Signaling Operation LLC,Capital Purchases,748.64,7/8/2020,,
Alstom Signaling Operation LLC,Capital Purchases,5529.68,7/8/2020,,
Alstom Signaling Operation LLC,Capital Purchases,45192.38,7/8/2020,,
Alstom Signaling Operation LLC,Capital Purchases,692.27,7/8/2020,,
Alstom Signaling Operation LLC,Capital Purchases,14560.08,7/17/2020,,
Alstom Signaling Operation LLC,Capital Purchases,35182.56,7/21/2020,,
Alstom Signaling Operation LLC,Materials,7934.04,7/22/2020,,
Alstom Signaling Operation LLC,Capital Purchases,56183.68,7/28/2020,,
Alstom Signaling Operation LLC,Capital Purchases,1831.18,7/28/2020,,
Alstom Signaling Operation LLC,Capital Purchases,202650.17,7/28/2020,,
Alstom Signaling Operation LLC,Capital Purchases,1384.54,8/3/2020,,
Alstom Signaling Operation LLC,Capital Purchases,2764.84,8/3/2020,,
Alstom Signaling Operation LLC,Capital Purchases,5493.54,8/4/2020,,
Alstom Signaling Operation LLC,Capital Purchases,748.64,8/31/2020,,
Alstom Signaling Operation LLC,Capital Purchases,105574.05,9/1/2020,,
Alstom Signaling Operation LLC,Capital Purchases,41517.18,9/1/2020,,
Alstom Signaling Operation LLC,Capital Purchases,692.27,9/8/2020,,
Alstom Signaling Operation LLC,Capital Purchases,55786.57,9/15/2020,,
Alstom Signaling Operation LLC,Capital Purchases,71481.25,9/23/2020,,
Alstom Signaling Operation LLC,Capital Purchases,2999.67,9/23/2020,,
Alstom Signaling Operation LLC,Materials,2134.23,9/23/2020,,
Alstom Signaling Operation LLC,Materials,2571.3,9/24/2020,,
Alstom Signaling Operation LLC,Capital Purchases,8232.84,10/13/2020,,
Alstom Signaling Operation LLC,Capital Purchases,4039,10/13/2020,,
Alstom Signaling Operation LLC,Capital Purchases,21152.06,10/13/2020,,
Alstom Signaling Operation LLC,Materials,5683.85,10/13/2020,,
Alstom Signaling Operation LLC,Capital Purchases,1831.18,10/23/2020,,
Alstom Signaling Operation LLC,Capital Purchases,61480.91,10/23/2020,,
Alstom Signaling Operation LLC,Materials,7934.04,10/23/2020,,
Alstom Signaling Operation LLC,Capital Purchases,1222.92,11/9/2020,,
Alstom Signaling Operation LLC,Capital Purchases,45192.38,11/9/2020,,
Alstom Signaling Operation LLC,Capital Purchases,1656.44,11/9/2020,,
Alstom Signaling Operation LLC,Capital Purchases,7226.2,11/18/2020,,
Alstom Signaling Operation LLC,Capital Purchases,45770.83,11/18/2020,,
Alstom Signaling Operation LLC,Capital Purchases,3312.88,11/18/2020,,
Alstom Signaling Operation LLC,Capital Purchases,1656.44,11/18/2020,,
Alstom Signaling Operation LLC,Capital Purchases,498.98,12/1/2020,,
Alstom Signaling Operation LLC,Capital Purchases,1382.42,12/3/2020,,
Alstom Signaling Operation LLC,Capital Purchases,63084.22,12/9/2020,,
Alstom Signaling Operation LLC,Capital Purchases,3689.18,12/16/2020,,
Alstom Signaling Operation LLC,Capital Purchases,90384.76,12/17/2020,,
Alstom Signaling Operation LLC,Capital Purchases,10898.82,12/17/2020,,
Alstom Transportation  Inc.,Materials,46844.64,1/2/2020,,
Alstom Transportation  Inc.,Materials,243100,2/5/2020,,
Alstom Transportation  Inc.,Materials,48620,2/6/2020,,
Alstom Transportation  Inc.,Materials,202993.44,3/17/2020,,
Alstom Transportation  Inc.,Materials,202993.44,4/2/2020,,
Alstom Transportation  Inc.,Materials,101496.72,4/21/2020,,
Alstom Transportation  Inc.,Materials,202993.44,5/21/2020,,
Alstom Transportation  Inc.,Materials,50748.36,6/11/2020,,
Alstom Transportation  Inc.,Materials,50748.36,6/17/2020,,
Alstom Transportation  Inc.,Materials,199189.08,7/17/2020,,
Alstom Transportation  Inc.,Materials,50748.36,7/21/2020,,
Alstom Transportation  Inc.,Materials,101496.72,9/1/2020,,
Alstom Transportation  Inc.,Materials,101496.72,9/24/2020,,
Alstom Transportation  Inc.,Materials,50748.36,12/17/2020,,
Alta Equipment,Materials,876.8,6/1/2020,,
Alta Equipment,Services,14236.22,7/8/2020,,
Alta Equipment,Services,7830.46,7/17/2020,,
Alta Equipment,Services,4990.71,8/4/2020,,
Alternate Power  Inc.,Services,7614.87,1/10/2020,,
Alternate Power  Inc.,Materials,409.96,1/22/2020,,
Alternate Power  Inc.,Services,3818.93,1/29/2020,,
Alternate Power  Inc.,Services,636.7,3/31/2020,,
Alternate Power  Inc.,Services,557.7,4/2/2020,,
Alternate Power  Inc.,Services,1760.74,4/2/2020,,
Alternate Power  Inc.,Services,3007.2,4/7/2020,,
Alternate Power  Inc.,Services,5018.82,6/5/2020,,
Alternate Power  Inc.,Services,1205.03,10/14/2020,,
Alternate Power  Inc.,Services,1138.13,11/25/2020,,
Alternate Power  Inc.,Materials,771.43,12/9/2020,,
Alternate Power  Inc.,Services,1486.63,12/9/2020,,
Alternate Power  Inc.,Services,4693.1,12/9/2020,,
Altorfer Industries Inc.,Services,750,1/14/2020,,
Altorfer Industries Inc.,Materials,1442.16,2/3/2020,,
Altorfer Industries Inc.,Services,21.92,2/3/2020,,
Altorfer Industries Inc.,Materials,3204.22,2/11/2020,,
Altorfer Industries Inc.,Materials,545.83,2/11/2020,,
Altorfer Industries Inc.,Materials,5091.5,2/13/2020,,
Altorfer Industries Inc.,Materials,327.98,2/13/2020,,
Altorfer Industries Inc.,Materials,277.44,2/13/2020,,
Altorfer Industries Inc.,Materials,2454.69,2/14/2020,,
Altorfer Industries Inc.,Materials,107.3,2/14/2020,,
Altorfer Industries Inc.,Materials,138.72,2/14/2020,,
Altorfer Industries Inc.,Materials,10.66,2/14/2020,,
Altorfer Industries Inc.,Materials,102.87,2/20/2020,,
Altorfer Industries Inc.,Materials,16135.43,2/27/2020,,
Altorfer Industries Inc.,Materials,1652.32,3/2/2020,,
Altorfer Industries Inc.,Materials,1245.41,3/2/2020,,
Altorfer Industries Inc.,Materials,1808.68,3/2/2020,,
Altorfer Industries Inc.,Services,22.2,3/2/2020,,
Altorfer Industries Inc.,Materials,10479.12,3/4/2020,,
Altorfer Industries Inc.,Materials,287.01,3/4/2020,,
Altorfer Industries Inc.,Materials,1944.2,3/5/2020,,
Altorfer Industries Inc.,Materials,1944.2,3/13/2020,,
Altorfer Industries Inc.,Materials,1717,4/2/2020,,
Altorfer Industries Inc.,Materials,256.64,4/2/2020,,
Altorfer Industries Inc.,Services,11.9,4/2/2020,,
Altorfer Industries Inc.,Materials,156.1,4/24/2020,,
Altorfer Industries Inc.,Materials,84.99,5/1/2020,,
Altorfer Industries Inc.,Materials,143.43,5/1/2020,,
Altorfer Industries Inc.,Materials,2318.11,5/7/2020,,
Altorfer Industries Inc.,Materials,189.96,5/15/2020,,
Altorfer Industries Inc.,Materials,972.3,5/19/2020,,
Altorfer Industries Inc.,Materials,6600,5/20/2020,,
Altorfer Industries Inc.,Materials,890.52,5/22/2020,,
Altorfer Industries Inc.,Materials,90.34,5/26/2020,,
Altorfer Industries Inc.,Materials,779.1,6/1/2020,,
Altorfer Industries Inc.,Materials,3576.73,6/2/2020,,
Altorfer Industries Inc.,Materials,189.96,6/2/2020,,
Altorfer Industries Inc.,Materials,2510.33,6/5/2020,,
Altorfer Industries Inc.,Materials,257.3,6/5/2020,,
Altorfer Industries Inc.,Materials,846.92,6/5/2020,,
Altorfer Industries Inc.,Materials,846.92,6/5/2020,,
Altorfer Industries Inc.,Materials,283.39,6/10/2020,,
Altorfer Industries Inc.,Materials,8073.82,6/16/2020,,
Altorfer Industries Inc.,Materials,9524.02,6/17/2020,,
Altorfer Industries Inc.,Materials,29.4,6/26/2020,,
Altorfer Industries Inc.,Materials,6320.16,8/27/2020,,
Altorfer Industries Inc.,Materials,12277.2,8/28/2020,,
Altorfer Industries Inc.,Materials,1035.31,8/28/2020,,
Altorfer Industries Inc.,Materials,273.69,9/1/2020,,
Altorfer Industries Inc.,Services,35,9/1/2020,,
Altorfer Industries Inc.,Materials,2150.6,9/2/2020,,
Altorfer Industries Inc.,Materials,269.04,9/2/2020,,
Altorfer Industries Inc.,Materials,1708.56,9/2/2020,,
Altorfer Industries Inc.,Materials,130.78,9/2/2020,,
Altorfer Industries Inc.,Services,54,9/2/2020,,
Altorfer Industries Inc.,Services,88.55,9/2/2020,,
Altorfer Industries Inc.,Materials,4232.22,9/8/2020,,
Altorfer Industries Inc.,Materials,1038.85,9/8/2020,,
Altorfer Industries Inc.,Services,10,9/8/2020,,
Altorfer Industries Inc.,Services,202.29,9/8/2020,,
Altorfer Industries Inc.,Materials,213.36,9/25/2020,,
Altorfer Industries Inc.,Materials,143.43,9/25/2020,,
Altorfer Industries Inc.,Services,10.96,9/25/2020,,
Altorfer Industries Inc.,Materials,84.64,10/14/2020,,
Altorfer Industries Inc.,Materials,1038.85,10/23/2020,,
Altorfer Industries Inc.,Services,25,10/23/2020,,
Altorfer Industries Inc.,Materials,8512.8,11/30/2020,,
Altorfer Industries Inc.,Materials,524.64,12/1/2020,,
Altorfer Industries Inc.,Materials,528.9,12/18/2020,,
Altorfer Industries Inc.,Materials,139.71,12/18/2020,,
Alvarez  Inc.,Services,4424,1/9/2020,,
Alvarez  Inc.,Services,5116,1/9/2020,,
Alvarez  Inc.,Services,380.96,4/3/2020,,
Alvarez  Inc.,Materials,2326.82,4/13/2020,,
Alvarez  Inc.,Services,2212,4/27/2020,,
Alvarez  Inc.,Services,2558,4/27/2020,,
Alvarez  Inc.,Services,4424,7/6/2020,,
Alvarez  Inc.,Services,5116,7/6/2020,,
Alvarez  Inc.,Services,4424,9/22/2020,,
Alvarez  Inc.,Services,3076,9/22/2020,,
Alvarez  Inc.,Services,2040,9/22/2020,,
Alvarez  Inc.,Materials,274,10/14/2020,,
Alvarez  Inc.,Services,4424,11/9/2020,,
Alvarez  Inc.,Services,5116,11/9/2020,,
Alvin Newman,Services,162.15,4/21/2020,,
Alvin Newman,Services,47.15,4/21/2020,,
Alvin Newman,Services,12.65,4/21/2020,,
Alvin T. Terry,Services,1188,6/4/2020,,
Alvin T. Terry,Services,1188,8/24/2020,,
Alvin T. Terry,Services,1208,10/29/2020,,
Always Accurate Appraisals,Services,2500,2/7/2020,,
Alyssa M. Battaglia-Hofmann,Services,306.13,7/23/2020,,
Alyssa M. Battaglia-Hofmann,Services,32.25,7/23/2020,,
Alyssa M. Battaglia-Hofmann,Services,69.92,7/28/2020,,
Alyssa M. Battaglia-Hofmann,Services,9.45,7/28/2020,,
Alyssa M. Battaglia-Hofmann,Services,83.61,9/24/2020,,
Alyssa M. Battaglia-Hofmann,Services,4.75,9/24/2020,,
Amalgamated Services  Inc.,Materials,1039.56,1/9/2020,,
Amalgamated Services  Inc.,Services,7178,1/9/2020,,
Amalgamated Services  Inc.,Materials,603.95,1/22/2020,,
Amalgamated Services  Inc.,Services,840,1/22/2020,,
Amalgamated Services  Inc.,Materials,1080.08,2/4/2020,,
Amalgamated Services  Inc.,Services,6300,2/4/2020,,
Amalgamated Services  Inc.,Materials,1277.09,2/5/2020,,
Amalgamated Services  Inc.,Services,4200,2/5/2020,,
Amalgamated Services  Inc.,Services,6510,2/12/2020,,
Amalgamated Services  Inc.,Services,420,3/6/2020,,
Amalgamated Services  Inc.,Materials,120.37,4/1/2020,,
Amalgamated Services  Inc.,Materials,206.95,4/1/2020,,
Amalgamated Services  Inc.,Services,7560,4/1/2020,,
Amalgamated Services  Inc.,Services,4200,4/1/2020,,
Amalgamated Services  Inc.,Materials,1714.73,4/8/2020,,
Amalgamated Services  Inc.,Services,840,4/8/2020,,
Amalgamated Services  Inc.,Materials,1013.05,6/17/2020,,
Amalgamated Services  Inc.,Services,6720,6/17/2020,,
Amalgamated Services  Inc.,Materials,9.32,7/1/2020,,
Amalgamated Services  Inc.,Services,3360,7/1/2020,,
Amalgamated Services  Inc.,Services,3360,7/1/2020,,
Amalgamated Services  Inc.,Materials,833.43,7/6/2020,,
Amalgamated Services  Inc.,Materials,11.06,7/6/2020,,
Amalgamated Services  Inc.,Services,24664,7/6/2020,,
Amalgamated Services  Inc.,Services,1680,7/6/2020,,
Amalgamated Services  Inc.,Services,15120,8/4/2020,,
Amalgamated Services  Inc.,Services,6300,8/4/2020,,
Amalgamated Services  Inc.,Materials,275.14,8/17/2020,,
Amalgamated Services  Inc.,Services,4200,8/17/2020,,
Amalgamated Services  Inc.,Materials,238.31,9/1/2020,,
Amalgamated Services  Inc.,Services,4200,9/1/2020,,
Amalgamated Services  Inc.,Services,3360,9/4/2020,,
Amalgamated Services  Inc.,Services,2520,9/9/2020,,
Amalgamated Services  Inc.,Services,1984,10/14/2020,,
Amalgamated Services  Inc.,Services,2520,11/23/2020,,
Amanda D. Smith,Services,466.1,8/17/2020,,
Amazon.Com/Tool Crib,Materials,1700.88,1/2/2020,,
Amazon.Com/Tool Crib,Services,120.8,1/2/2020,,
Amazon.Com/Tool Crib,Materials,324,1/10/2020,,
Amazon.Com/Tool Crib,Materials,176.97,1/10/2020,,
Amazon.Com/Tool Crib,Materials,268.4,1/10/2020,,
Amazon.Com/Tool Crib,Materials,249.99,1/10/2020,,
Amazon.Com/Tool Crib,Materials,57,1/28/2020,,
Amazon.Com/Tool Crib,Materials,1044.95,1/28/2020,,
Amazon.Com/Tool Crib,Materials,386.97,1/28/2020,,
Amazon.Com/Tool Crib,Materials,391.49,1/28/2020,,
Amazon.Com/Tool Crib,Materials,199.58,1/28/2020,,
Amazon.Com/Tool Crib,Services,195.39,1/28/2020,,
Amazon.Com/Tool Crib,Services,9600,1/28/2020,,
Amazon.Com/Tool Crib,Materials,146.74,2/3/2020,,
Amazon.Com/Tool Crib,Materials,5028.7,2/3/2020,,
Amazon.Com/Tool Crib,Materials,1076,3/9/2020,,
Amazon.Com/Tool Crib,Materials,302.64,3/9/2020,,
Amazon.Com/Tool Crib,Services,175.25,3/9/2020,,
Amazon.Com/Tool Crib,Services,195,3/9/2020,,
Amazon.Com/Tool Crib,Services,61.68,3/9/2020,,
Amazon.Com/Tool Crib,Materials,29.99,3/20/2020,,
Amazon.Com/Tool Crib,Materials,8799.6,3/27/2020,,
Amazon.Com/Tool Crib,Materials,1982.84,4/9/2020,,
Amazon.Com/Tool Crib,Materials,197.42,4/9/2020,,
Amazon.Com/Tool Crib,Materials,1964.2,4/23/2020,,
Amazon.Com/Tool Crib,Materials,1160.16,4/27/2020,,
Amazon.Com/Tool Crib,Materials,386.72,4/27/2020,,
Amazon.Com/Tool Crib,Materials,386.72,4/27/2020,,
Amazon.Com/Tool Crib,Materials,773.44,4/27/2020,,
Amazon.Com/Tool Crib,Services,175.98,4/27/2020,,
Amazon.Com/Tool Crib,Materials,1474.4,5/1/2020,,
Amazon.Com/Tool Crib,Materials,1126.56,6/5/2020,,
Amazon.Com/Tool Crib,Services,88.36,6/5/2020,,
Amazon.Com/Tool Crib,Materials,750.34,7/15/2020,,
Amazon.Com/Tool Crib,Materials,141.92,7/15/2020,,
Amazon.Com/Tool Crib,Materials,4490.32,7/15/2020,,
Amazon.Com/Tool Crib,Services,13.98,7/15/2020,,
Amazon.Com/Tool Crib,Services,4800,9/17/2020,,
Amazon.Com/Tool Crib,Materials,1119.96,10/23/2020,,
American Battery Charging Inc.,Materials,5655,2/11/2020,,
American Battery Charging Inc.,Materials,22988,4/1/2020,,
American Building Services  Llc,Materials,118.67,1/9/2020,,
American Building Services  Llc,Services,598.8,1/9/2020,,
American Building Services  Llc,Services,2735.17,1/9/2020,,
American Building Services  Llc,Materials,1500.74,3/30/2020,,
American Building Services  Llc,Services,1426.4,3/30/2020,,
American Building Services  Llc,Materials,7897.11,11/2/2020,,
American Calibration  Inc.,Materials,330,1/16/2020,,
American Calibration  Inc.,Services,780,1/16/2020,,
American Calibration  Inc.,Services,790,1/16/2020,,
American Calibration  Inc.,Services,330,1/16/2020,,
American Calibration  Inc.,Services,660,1/16/2020,,
American Calibration  Inc.,Services,1383,1/16/2020,,
American Calibration  Inc.,Services,132,1/16/2020,,
American Calibration  Inc.,Services,304,1/17/2020,,
American Calibration  Inc.,Materials,132,1/22/2020,,
American Calibration  Inc.,Services,727,1/22/2020,,
American Calibration  Inc.,Services,1254,1/22/2020,,
American Calibration  Inc.,Services,990,2/3/2020,,
American Calibration  Inc.,Services,66,2/4/2020,,
American Calibration  Inc.,Services,264,2/4/2020,,
American Calibration  Inc.,Services,396,2/10/2020,,
American Calibration  Inc.,Materials,261.6,2/19/2020,,
American Calibration  Inc.,Materials,132,2/19/2020,,
American Calibration  Inc.,Materials,66,2/19/2020,,
American Calibration  Inc.,Materials,66,2/19/2020,,
American Calibration  Inc.,Services,1305.82,2/19/2020,,
American Calibration  Inc.,Services,132,2/19/2020,,
American Calibration  Inc.,Services,1013.1,2/19/2020,,
American Calibration  Inc.,Services,713,2/19/2020,,
American Calibration  Inc.,Services,1180.65,2/19/2020,,
American Calibration  Inc.,Materials,66,3/2/2020,,
American Calibration  Inc.,Services,264,3/2/2020,,
American Calibration  Inc.,Services,622,3/13/2020,,
American Calibration  Inc.,Services,594,3/13/2020,,
American Calibration  Inc.,Services,670,3/13/2020,,
American Calibration  Inc.,Services,132,3/23/2020,,
American Calibration  Inc.,Services,264,3/31/2020,,
American Calibration  Inc.,Services,198,4/1/2020,,
American Calibration  Inc.,Services,483.2,4/1/2020,,
American Calibration  Inc.,Services,132,4/1/2020,,
American Calibration  Inc.,Services,198,4/2/2020,,
American Calibration  Inc.,Services,330,4/6/2020,,
American Calibration  Inc.,Services,66,4/15/2020,,
American Calibration  Inc.,Services,198,4/17/2020,,
American Calibration  Inc.,Materials,2147.25,4/21/2020,,
American Calibration  Inc.,Services,132,4/21/2020,,
American Calibration  Inc.,Services,396,5/1/2020,,
American Calibration  Inc.,Materials,198,6/9/2020,,
American Calibration  Inc.,Services,264,6/9/2020,,
American Calibration  Inc.,Services,198,7/9/2020,,
American Calibration  Inc.,Services,115.5,7/9/2020,,
American Calibration  Inc.,Services,518.25,7/9/2020,,
American Calibration  Inc.,Materials,137,7/22/2020,,
American Calibration  Inc.,Services,142,7/22/2020,,
American Calibration  Inc.,Services,335,7/22/2020,,
American Calibration  Inc.,Services,66,7/23/2020,,
American Calibration  Inc.,Materials,198,8/28/2020,,
American Calibration  Inc.,Services,132,8/31/2020,,
American Calibration  Inc.,Materials,132,9/1/2020,,
American Calibration  Inc.,Services,462,9/3/2020,,
American Calibration  Inc.,Services,1088.5,9/3/2020,,
American Calibration  Inc.,Services,66,9/4/2020,,
American Calibration  Inc.,Materials,66,9/15/2020,,
American Calibration  Inc.,Services,66,9/28/2020,,
American Calibration  Inc.,Materials,66,10/13/2020,,
American Calibration  Inc.,Services,132,10/13/2020,,
American Calibration  Inc.,Services,66,10/13/2020,,
American Calibration  Inc.,Services,132,10/13/2020,,
American Calibration  Inc.,Services,132,10/13/2020,,
American Calibration  Inc.,Materials,198,10/20/2020,,
American Calibration  Inc.,Services,660,10/20/2020,,
American Calibration  Inc.,Services,38.15,10/29/2020,,
American Calibration  Inc.,Services,198,11/2/2020,,
American Calibration  Inc.,Services,528,11/2/2020,,
American Calibration  Inc.,Services,528,11/2/2020,,
American Calibration  Inc.,Services,66,11/2/2020,,
American Calibration  Inc.,Materials,3112.75,11/9/2020,,
American Calibration  Inc.,Services,396,11/17/2020,,
American Calibration  Inc.,Services,66,12/9/2020,,
American Management Association International,Services,2079,1/28/2020,,
American Planning Assn.,Services,668,3/9/2020,,
American Planning Assn.,Services,688,8/27/2020,,
American Public Transportation Ass Meeting Department Apta,Services,975,1/28/2020,,
American Public Transportation Ass Meeting Department Apta,Services,975,1/29/2020,,
American Public Transportation Ass Meeting Department Apta,Services,745,2/12/2020,,
American Public Transportation Ass Meeting Department Apta,Services,745,2/12/2020,,
American Quality Products,Materials,200,3/31/2020,,
American Quality Products,Services,40,3/31/2020,,
American Recycling & Disposal  Inc.,Capital Purchases,38477.12,1/10/2020,,
American Recycling & Disposal  Inc.,Capital Purchases,10171.76,1/10/2020,,
American Recycling & Disposal  Inc.,Capital Purchases,16586.5,2/11/2020,,
American Recycling & Disposal  Inc.,Capital Purchases,704,2/11/2020,,
American Recycling & Disposal  Inc.,Materials,660,3/31/2020,,
American Recycling & Disposal  Inc.,Capital Purchases,29275.8,6/8/2020,,
American Recycling & Disposal  Inc.,Capital Purchases,57640.5,7/6/2020,,
American Recycling & Disposal  Inc.,Services,24613.24,7/6/2020,,
American Recycling & Disposal  Inc.,Capital Purchases,20269.8,7/10/2020,,
American Recycling & Disposal  Inc.,Capital Purchases,112848.44,8/3/2020,,
American Recycling & Disposal  Inc.,Services,6846.14,8/3/2020,,
American Recycling & Disposal  Inc.,Capital Purchases,7006.04,8/5/2020,,
American Recycling & Disposal  Inc.,Capital Purchases,9628.94,8/17/2020,,
American Recycling & Disposal  Inc.,Capital Purchases,13245.48,8/28/2020,,
American Recycling & Disposal  Inc.,Capital Purchases,6682.72,9/2/2020,,
American Recycling & Disposal  Inc.,Materials,616,9/4/2020,,
American Recycling & Disposal  Inc.,Capital Purchases,3256,10/7/2020,,
American Recycling & Disposal  Inc.,Capital Purchases,176382.51,10/7/2020,,
American Recycling & Disposal  Inc.,Capital Purchases,89299.12,10/14/2020,,
American Recycling & Disposal  Inc.,Capital Purchases,20753.53,10/14/2020,,
American Recycling & Disposal  Inc.,Capital Purchases,31336.56,10/21/2020,,
American Recycling & Disposal  Inc.,Services,1363.92,10/26/2020,,
American Recycling & Disposal  Inc.,Capital Purchases,7549.96,11/2/2020,,
American Recycling & Disposal  Inc.,Capital Purchases,9048.88,11/13/2020,,
American Recycling & Disposal  Inc.,Capital Purchases,63889.35,11/20/2020,,
American Recycling & Disposal  Inc.,Capital Purchases,7350.58,12/8/2020,,
American Recycling & Disposal  Inc.,Capital Purchases,24241.5,12/9/2020,,
American Solutions For Business,Services,50604.95,2/10/2020,,
American Solutions For Business,Services,10089.4,2/10/2020,,
American Solutions For Business,Services,58870,3/30/2020,,
American Solutions For Business,Services,19593,4/1/2020,,
American Solutions For Business,Services,21874.73,5/15/2020,,
American Solutions For Business,Services,18504.5,5/26/2020,,
American Solutions For Business,Services,30362.97,6/1/2020,,
American Solutions For Business,Services,10120.99,6/25/2020,,
American Solutions For Business,Services,16035.8,8/5/2020,,
American Solutions For Business,Services,15783.25,9/2/2020,,
American Solutions For Business,Services,50604.95,10/16/2020,,
American Solutions For Business,Services,10120.99,11/2/2020,,
American Solutions For Business,Services,17416,11/18/2020,,
American Solutions For Business,Services,4738.2,12/3/2020,,
American Welding Society,Services,23.92,1/28/2020,,
American Welding Society,Services,1480,1/28/2020,,
"Americana Landscape Group, Inc.",Capital Purchases,24920,3/31/2020,,
Amerigas,Materials,128.13,1/2/2020,,
Amerigas,Materials,1246.25,1/2/2020,,
Amerigas,Materials,530.32,1/2/2020,,
Amerigas,Services,134.18,1/2/2020,,
Amerigas,Materials,246.71,1/10/2020,,
Amerigas,Materials,339.29,1/14/2020,,
Amerigas,Materials,141.02,1/22/2020,,
Amerigas,Services,351.38,1/22/2020,,
Amerigas,Materials,546.86,2/11/2020,,
Amerigas,Materials,471.87,2/11/2020,,
Amerigas,Materials,134.28,3/5/2020,,
Amerigas,Materials,2172.04,3/5/2020,,
Amerigas,Materials,182.07,3/13/2020,,
Amerigas,Materials,107.04,3/26/2020,,
Amerigas,Materials,1693.59,3/26/2020,,
Amerigas,Materials,128.85,4/2/2020,,
Amerigas,Materials,312.25,4/13/2020,,
Amerigas,Materials,99.98,4/21/2020,,
Amerigas,Materials,82.84,4/21/2020,,
Amerigas,Materials,124.61,5/6/2020,,
Amerigas,Materials,111.76,5/20/2020,,
Amerigas,Materials,268.76,7/6/2020,,
Amerigas,Materials,176.38,7/6/2020,,
Amerigas,Materials,88.55,7/6/2020,,
Amerigas,Materials,89.77,7/7/2020,,
Amerigas,Materials,330.21,7/7/2020,,
Amerigas,Materials,966.8,7/8/2020,,
Amerigas,Materials,341.2,7/30/2020,,
Amerigas,Materials,110.75,7/31/2020,,
Amerigas,Services,35.34,7/31/2020,,
Amerigas,Materials,73.53,8/5/2020,,
Amerigas,Materials,77.09,8/5/2020,,
Amerigas,Materials,96.04,8/25/2020,,
Amerigas,Materials,191.25,10/16/2020,,
Amerigas,Materials,717.88,11/18/2020,,
Amerigas,Materials,101.8,12/1/2020,,
Amerigas,Materials,236.52,12/1/2020,,
Amerigas,Services,188.42,12/1/2020,,
Amerigas,Materials,221.19,12/2/2020,,
Amerigas,Materials,382.15,12/2/2020,,
Amerigas,Materials,834.46,12/3/2020,,
Amerigas,Materials,85.18,12/16/2020,,
Amerigas,Materials,135.17,12/16/2020,,
"Amsted Rail Company, Inc.",Capital Purchases,50600,1/2/2020,,
"Amsted Rail Company, Inc.",Capital Purchases,40480,2/11/2020,,
"Amsted Rail Company, Inc.",Capital Purchases,50600,2/11/2020,,
"Amsted Rail Company, Inc.",Capital Purchases,50600,3/23/2020,,
"Amsted Rail Company, Inc.",Capital Purchases,40480,4/13/2020,,
"Amsted Rail Company, Inc.",Capital Purchases,40480,5/1/2020,,
"Amsted Rail Company, Inc.",Capital Purchases,8000,5/1/2020,,
"Amsted Rail Company, Inc.",Capital Purchases,149810,10/21/2020,,
"Amsted Rail Company, Inc.",Capital Purchases,82955,11/10/2020,,
"Amsted Rail Company, Inc.",Capital Purchases,10755,12/16/2020,,
Amy Wiseman,Claims & Insurance,22.02,1/24/2020,,
Analytic Systems,Capital Purchases,74628,1/9/2020,,
Analytic Systems,Capital Purchases,49752,2/10/2020,,
Analytic Systems,Materials,15351,4/1/2020,,
Analytic Systems,Materials,4386,4/7/2020,,
Analytic Systems,Materials,4386,4/8/2020,,
Analytic Systems,Capital Purchases,25164,5/1/2020,,
Analytic Systems,Services,3200,5/1/2020,,
Analytic Systems,Materials,8772,5/20/2020,,
Analytic Systems,Materials,6579,7/7/2020,,
Analytic Systems,Materials,8772,7/7/2020,,
Analytic Systems,Materials,684,8/17/2020,,
Analytic Systems,Materials,340,9/11/2020,,
Analytic Systems,Materials,225,9/11/2020,,
Analytic Systems,Materials,24638.1,10/15/2020,,
Analytic Systems,Materials,0,10/15/2020,,
Analytic Systems,Materials,4386,12/1/2020,,
Analytic Systems,Materials,6579,12/21/2020,,
Anchor Brake Shoe Co.,Materials,5999.4,1/2/2020,,
Anchor Brake Shoe Co.,Materials,84561.3,1/2/2020,,
Anchor Brake Shoe Co.,Materials,67993.2,2/11/2020,,
Anchor Brake Shoe Co.,Materials,19998,2/11/2020,,
Anchor Brake Shoe Co.,Materials,15998.4,2/11/2020,,
Anchor Brake Shoe Co.,Materials,22977.9,3/5/2020,,
Anchor Brake Shoe Co.,Materials,33422.4,4/1/2020,,
Anchor Brake Shoe Co.,Materials,10444.5,4/13/2020,,
Anchor Brake Shoe Co.,Materials,12533.4,4/21/2020,,
Anchor Brake Shoe Co.,Materials,16711.2,5/1/2020,,
Anchor Brake Shoe Co.,Materials,8355.6,5/20/2020,,
Anchor Brake Shoe Co.,Materials,16711.2,5/26/2020,,
Anchor Brake Shoe Co.,Materials,18800.1,7/7/2020,,
Anchor Brake Shoe Co.,Materials,10444.5,8/28/2020,,
Anchor Brake Shoe Co.,Materials,18800.1,8/31/2020,,
Anchor Brake Shoe Co.,Materials,8355.6,9/8/2020,,
Anchor Brake Shoe Co.,Materials,14622.3,10/15/2020,,
Anchor Brake Shoe Co.,Materials,14622.3,10/30/2020,,
Anchor Brake Shoe Co.,Materials,19440,11/2/2020,,
Anchor Brake Shoe Co.,Materials,12533.4,11/13/2020,,
Anchor Brake Shoe Co.,Materials,12533.4,11/25/2020,,
Anchor Brake Shoe Co.,Materials,27155.7,12/9/2020,,
Anderson Lock Co.,Materials,1545.6,2/11/2020,,
Anderson Lock Co.,Materials,772.8,3/5/2020,,
Anderson Lock Co.,Materials,1545.6,3/6/2020,,
Anderson Lock Co.,Materials,837.2,3/13/2020,,
Anderson Lock Co.,Materials,1545.6,9/25/2020,,
Anderson Lock Co.,Materials,708.4,10/20/2020,,
Andre Hunt,Services,71.99,2/18/2020,,
Andre Hunt,Services,673.48,2/18/2020,,
Andre Hunt,Services,192.5,2/18/2020,,
Andre R. Feliciano,Services,46,5/1/2020,,
Andre R. Feliciano,Services,46,6/12/2020,,
Andrea Clark,Services,91.64,1/16/2020,,
Andrea Clark,Services,144.9,2/18/2020,,
Andrea Clark,Services,72.45,3/16/2020,,
Andrea D. Peek,Services,228.62,12/16/2020,,
Andres Hernandez Rodriguez,Services,395.5,8/24/2020,,
Andres Hernandez Rodriguez,Services,734.5,9/1/2020,,
Andres Hernandez Rodriguez,Services,1186.5,10/2/2020,,
Andres Hernandez Rodriguez,Services,508.5,10/16/2020,,
Andres Hernandez Rodriguez,Services,565,10/28/2020,,
Andres Hernandez Rodriguez,Services,452,12/21/2020,,
Andrew Grigg,Services,1816.1,8/11/2020,,
Andrew Grigg,Services,3433.9,12/23/2020,,
Andrew Shay,Services,305.82,3/30/2020,,
Angela G. Pegues,Services,537.52,1/7/2020,,
Angela G. Pegues,Services,87.37,1/10/2020,,
Angela L. Miller,Services,58.46,3/9/2020,,
Angela L. Miller,Services,3,3/9/2020,,
Angelique Garzon,Services,43.59,4/20/2020,,
Anita Ayala-Ortega,Services,69,2/10/2020,,
Anita Ayala-Ortega,Services,13.8,3/16/2020,,
Anita Ayala-Ortega,Services,58.65,4/21/2020,,
Anita Ayala-Ortega,Services,58.65,5/22/2020,,
Anita Ayala-Ortega,Services,19.55,5/22/2020,,
Anita Ayala-Ortega,Services,56.35,7/1/2020,,
Anita Ayala-Ortega,Services,43.47,7/15/2020,,
Anita Ayala-Ortega,Services,52.9,7/23/2020,,
Anita Ayala-Ortega,Services,52.9,8/6/2020,,
Anita Ayala-Ortega,Services,97.75,8/31/2020,,
Anita Ayala-Ortega,Services,34.5,9/8/2020,,
Anita Ayala-Ortega,Services,34.5,9/24/2020,,
Anita Ayala-Ortega,Services,69,10/29/2020,,
Anita Ayala-Ortega,Services,34.5,10/29/2020,,
Anita Ayala-Ortega,Services,52.9,11/10/2020,,
Anthem Insurance Companies  Inc.,Services,67687.73,1/14/2020,,
Anthem Insurance Companies  Inc.,Services,80578.8,10/27/2020,,
Anthony B. Davis,Services,151.96,1/10/2020,,
Anthony B. Davis,Services,27.84,1/10/2020,,
Anthony B. Davis,Services,11.6,1/16/2020,,
Anthony B. Davis,Services,34.5,2/10/2020,,
Anthony B. Davis,Services,166.75,2/10/2020,,
Anthony B. Davis,Services,11.5,2/10/2020,,
Anthony B. Davis,Services,172.5,3/16/2020,,
Anthony B. Davis,Services,140.3,3/16/2020,,
Anthony B. Davis,Services,46,3/16/2020,,
Anthony B. Davis,Services,11.5,3/16/2020,,
Anthony B. Davis,Services,138,4/20/2020,,
Anthony B. Davis,Services,140.3,4/20/2020,,
Anthony B. Davis,Services,27.6,4/20/2020,,
Anthony B. Davis,Services,172.5,7/10/2020,,
Anthony B. Davis,Services,158.7,7/15/2020,,
Anthony B. Davis,Services,172.5,9/28/2020,,
Anthony E. Jones,Services,42.55,2/18/2020,,
Anthony E. Jones,Services,57.5,2/18/2020,,
Anthony E. Jones,Services,24.15,4/8/2020,,
Anthony E. Jones,Services,24.15,5/12/2020,,
Anthony E. Jones,Services,33.35,6/30/2020,,
Anthony E. Jones,Services,24.15,7/13/2020,,
Anthony E. Jones,Services,24.15,10/1/2020,,
Anthony E. Jones,Services,57.5,10/27/2020,,
Anthony E. Jones,Services,24.15,10/29/2020,,
Anthony L. Brown,Claims & Insurance,13050,12/10/2020,,
Anthony Ognibene,Services,42.11,1/7/2020,,
Anthony Ognibene,Services,66,1/7/2020,,
Anthony Ognibene,Services,52.64,1/7/2020,,
Anthony Ognibene,Services,164.49,1/7/2020,,
Anthony Ognibene,Services,114,1/7/2020,,
Antoine Lee,Claims & Insurance,1200,7/22/2020,,
Aon (Bermuda) Ltd.,Claims & Insurance,62521,7/13/2020,,
Aon (Bermuda) Ltd.,Claims & Insurance,1211675,7/17/2020,,
Aon (Bermuda) Ltd.,Claims & Insurance,666390,7/28/2020,,
Aon (Bermuda) Ltd.,Claims & Insurance,338325,8/12/2020,,
Aon (Bermuda) Ltd.,Claims & Insurance,435000,8/18/2020,,
Aon (Uk) Ltd,Claims & Insurance,13729.99,7/28/2020,,
Aon (Uk) Ltd,Claims & Insurance,360074.12,10/12/2020,,
Aon (Uk) Ltd,Claims & Insurance,135330.07,11/5/2020,,
Aon Risk Consultants  Inc,Claims & Insurance,17250,9/4/2020,,
Aon Risk Consultants  Inc,Claims & Insurance,16500,10/15/2020,,
Aon Risk Services  Inc. Of Maryland,Claims & Insurance,172984,1/16/2020,,
Aon Risk Services  Inc. Of Maryland,Claims & Insurance,6500,3/11/2020,,
Aon Risk Services  Inc. Of Maryland,Claims & Insurance,52963,3/23/2020,,
Aon Risk Services  Inc. Of Maryland,Claims & Insurance,2570,3/23/2020,,
Aon Risk Services  Inc. Of Maryland,Claims & Insurance,3000,5/14/2020,,
Aon Risk Services  Inc. Of Maryland,Claims & Insurance,3500,5/14/2020,,
Aon Risk Services  Inc. Of Maryland,Claims & Insurance,3500,5/19/2020,,
Aon Risk Services  Inc. Of Maryland,Claims & Insurance,56650,6/2/2020,,
Aon Risk Services  Inc. Of Maryland,Claims & Insurance,10300,6/17/2020,,
Aon Risk Services  Inc. Of Maryland,Claims & Insurance,10300,6/17/2020,,
Aon Risk Services  Inc. Of Maryland,Claims & Insurance,23934,6/17/2020,,
Aon Risk Services  Inc. Of Maryland,Claims & Insurance,15730.42,6/17/2020,,
Aon Risk Services  Inc. Of Maryland,Claims & Insurance,72000,6/17/2020,,
Aon Risk Services  Inc. Of Maryland,Claims & Insurance,5000,7/13/2020,,
Aon Risk Services  Inc. Of Maryland,Claims & Insurance,15546,7/13/2020,,
Aon Risk Services  Inc. Of Maryland,Claims & Insurance,55513,7/14/2020,,
Aon Risk Services  Inc. Of Maryland,Claims & Insurance,35992,7/14/2020,,
Aon Risk Services  Inc. Of Maryland,Claims & Insurance,55000,7/14/2020,,
Aon Risk Services  Inc. Of Maryland,Claims & Insurance,133230,7/14/2020,,
Aon Risk Services  Inc. Of Maryland,Claims & Insurance,669999,7/14/2020,,
Aon Risk Services  Inc. Of Maryland,Claims & Insurance,19758,7/14/2020,,
Aon Risk Services  Inc. Of Maryland,Claims & Insurance,107250,7/14/2020,,
Aon Risk Services  Inc. Of Maryland,Claims & Insurance,43833.04,7/14/2020,,
Aon Risk Services  Inc. Of Maryland,Claims & Insurance,18067,7/14/2020,,
Aon Risk Services  Inc. Of Maryland,Claims & Insurance,820591,7/14/2020,,
Aon Risk Services  Inc. Of Maryland,Claims & Insurance,5482,7/17/2020,,
Aon Risk Services  Inc. Of Maryland,Claims & Insurance,11808,7/17/2020,,
Aon Risk Services  Inc. Of Maryland,Claims & Insurance,22199,8/3/2020,,
Aon Risk Services  Inc. Of Maryland,Claims & Insurance,434990,8/12/2020,,
Aon Risk Services  Inc. Of Maryland,Claims & Insurance,456740,8/12/2020,,
Aon Risk Services  Inc. Of Maryland,Claims & Insurance,34012,9/16/2020,,
Aon Risk Services  Inc. Of Maryland,Claims & Insurance,48994,9/24/2020,,
Aon Risk Services  Inc. Of Maryland,Claims & Insurance,340,9/24/2020,,
Aon Risk Services  Inc. Of Maryland,Claims & Insurance,21190,12/3/2020,,
Appalachian Timber Services LLC,Materials,80210,4/24/2020,,
Appalachian Timber Services LLC,Materials,205615,5/1/2020,,
Appalachian Timber Services LLC,Materials,20688.75,5/20/2020,,
Appalachian Timber Services LLC,Materials,60157.5,7/7/2020,,
Apperson  Inc,Materials,438,6/10/2020,,
Apperson  Inc,Services,46.55,6/10/2020,,
Application Associates,Materials,1866.47,1/28/2020,,
Application Associates,Materials,1866.47,6/5/2020,,
Applied Industrial Technologies,Materials,1273.4,4/1/2020,,
April Kilgore,Services,1792,6/8/2020,,
Aql Technologies  Inc.,Services,15840,1/9/2020,,
Aql Technologies  Inc.,Services,16720,3/4/2020,,
Aql Technologies  Inc.,Services,18480,3/4/2020,,
Aql Technologies  Inc.,Services,17600,4/1/2020,,
Aql Technologies  Inc.,Services,19360,4/21/2020,,
Aql Technologies  Inc.,Services,19360,5/26/2020,,
Aql Technologies  Inc.,Services,17600,8/3/2020,,
Aql Technologies  Inc.,Services,38720,9/2/2020,,
Aql Technologies  Inc.,Services,36960,11/2/2020,,
Aqua Illinois,Utilities,79.11,1/14/2020,,
Aqua Illinois,Utilities,81.81,2/7/2020,,
Aqua Illinois,Utilities,705.61,3/11/2020,,
Aqua Illinois,Utilities,457.89,4/3/2020,,
Aqua Illinois,Utilities,90.27,5/4/2020,,
Aqua Illinois,Utilities,91.94,6/1/2020,,
Aqua Illinois,Utilities,119.44,7/2/2020,,
Aqua Illinois,Utilities,108.61,7/30/2020,,
Aqua Illinois,Utilities,95.28,9/2/2020,,
Aqua Illinois,Utilities,92.78,10/5/2020,,
Aqua Illinois,Utilities,87.82,11/4/2020,,
Aqua Illinois,Utilities,159.56,12/9/2020,,
Arc Document Solutions LLC,Services,269,2/18/2020,,
Arc Document Solutions LLC,Services,2219.75,3/2/2020,,
Arc Document Solutions LLC,Services,3140.67,4/1/2020,,
Arc Document Solutions LLC,Materials,5766.96,7/31/2020,,
Arc Document Solutions LLC,Services,2431.5,10/15/2020,,
Arcadis Us  Inc.,Capital Purchases,142316.44,2/4/2020,,
Arcadis Us  Inc.,Capital Purchases,33621.4,2/21/2020,,
Arcadis Us  Inc.,Capital Purchases,89133.31,4/1/2020,,
Arcadis Us  Inc.,Capital Purchases,10591.17,4/1/2020,,
Arcadis Us  Inc.,Capital Purchases,1755.81,4/1/2020,,
Arcadis Us  Inc.,Capital Purchases,52121.42,4/24/2020,,
Arcadis Us  Inc.,Capital Purchases,10285.86,5/1/2020,,
Arcadis Us  Inc.,Capital Purchases,50281.93,5/20/2020,,
Arcadis Us  Inc.,Capital Purchases,141946.82,6/1/2020,,
Arcadis Us  Inc.,Capital Purchases,7712.66,6/1/2020,,
Arcadis Us  Inc.,Capital Purchases,48656.87,6/26/2020,,
Arcadis Us  Inc.,Capital Purchases,463.01,6/26/2020,,
Arcadis Us  Inc.,Capital Purchases,59083.37,8/3/2020,,
Arcadis Us  Inc.,Capital Purchases,3086.75,8/3/2020,,
Arcadis Us  Inc.,Capital Purchases,7993.62,9/1/2020,,
Arcadis Us  Inc.,Capital Purchases,42316.15,9/2/2020,,
Arcadis Us  Inc.,Capital Purchases,24059.34,9/2/2020,,
Arcadis Us  Inc.,Capital Purchases,6378.18,10/1/2020,,
Arcadis Us  Inc.,Capital Purchases,61638.55,10/14/2020,,
Arcadis Us  Inc.,Capital Purchases,67543.59,10/14/2020,,
Arcadis Us  Inc.,Capital Purchases,48125.95,11/2/2020,,
Arcadis Us  Inc.,Capital Purchases,62955.77,11/9/2020,,
Arcadis Us  Inc.,Capital Purchases,74725.65,12/10/2020,,
Arcadis Us  Inc.,Capital Purchases,69617.38,12/10/2020,,
Arcadis Us  Inc.,Capital Purchases,102199.25,12/10/2020,,
Arcadis Us  Inc.,Capital Purchases,14987.71,12/14/2020,,
Arcadis Us  Inc.,Capital Purchases,22357.85,12/15/2020,,
Arcadis Us  Inc.,Capital Purchases,23685.97,12/16/2020,,
Arcadis Us  Inc.,Capital Purchases,35168.08,12/17/2020,,
Arcadis Us  Inc.,Capital Purchases,16805.75,12/17/2020,,
Arcadis Us  Inc.,Capital Purchases,54598.43,12/17/2020,,
Arema,Services,390,9/3/2020,,
Arema,Services,2145,12/8/2020,,
Argo Inc.,Services,21260,1/2/2020,,
Argo Inc.,Services,20840,3/2/2020,,
Argo Inc.,Services,187500,11/2/2020,,
Argo Inc.,Services,62500,11/13/2020,,
Argo Inc.,Services,32000,12/1/2020,,
"Argon Electric Company, Inc.",Capital Purchases,9900,9/1/2020,,
"Argon Electric Company, Inc.",Capital Purchases,459000,10/15/2020,,
Arlington Park Racecourse Llc Churchill Downs Inc.,Rental Expense,20815.56,1/27/2020,,
Arlington Park Racecourse Llc Churchill Downs Inc.,Rental Expense,20815.56,3/16/2020,,
Arlington Park Racecourse Llc Churchill Downs Inc.,Rental Expense,20815.56,4/16/2020,,
Arlington Park Racecourse Llc Churchill Downs Inc.,Rental Expense,20815.56,5/13/2020,,
Arlington Park Racecourse Llc Churchill Downs Inc.,Rental Expense,20815.56,6/2/2020,,
Arlington Park Racecourse Llc Churchill Downs Inc.,Rental Expense,20815.56,6/29/2020,,
Arlington Park Racecourse Llc Churchill Downs Inc.,Rental Expense,41631.12,9/29/2020,,
Arlington Park Racecourse Llc Churchill Downs Inc.,Rental Expense,20815.56,10/26/2020,,
Arlington Park Racecourse Llc Churchill Downs Inc.,Rental Expense,20815.56,11/18/2020,,
Arnold Maxey,Services,705.34,1/21/2020,,
Arnold Maxey,Services,751.7,2/24/2020,,
Arnold Maxey,Services,310.73,3/10/2020,,
Arnold Maxey,Services,357.77,3/26/2020,,
Arnold Maxey,Services,450.97,4/8/2020,,
Arnold Maxey,Services,222.7,5/12/2020,,
Arnold Maxey,Services,311.08,5/19/2020,,
Arnold Maxey,Services,371.68,5/27/2020,,
Arnold Maxey,Services,147.26,6/10/2020,,
Arnold Maxey,Services,291.41,6/24/2020,,
Arnold Maxey,Services,291.58,7/2/2020,,
Arnold Maxey,Services,161.69,7/22/2020,,
Arnold Maxey,Services,343.85,8/19/2020,,
Arnold Maxey,Services,214.48,8/28/2020,,
Arnold Maxey,Services,283.25,9/9/2020,,
Arnold Maxey,Services,291.41,10/2/2020,,
Arnold Maxey,Services,206.31,10/7/2020,,
Arnold Maxey,Services,376.51,10/27/2020,,
Arnold Maxey,Services,315.91,11/5/2020,,
Arnold Maxey,Services,206.31,11/23/2020,,
Arnold Maxey,Services,161.92,12/17/2020,,
Arthur J Gallagher Risk Management Risk Management Services  Inc.,Services,106000,4/6/2020,,
Arthur J Gallagher Risk Management Risk Management Services  Inc.,Claims & Insurance,72000,12/1/2020,,
Arthur J Gallagher Risk Management Risk Management Services  Inc.,Claims & Insurance,47600,12/10/2020,,
Arthur R. Perez,Services,15,3/2/2020,,
Arturo J Mota,Services,108.27,2/24/2020,,
Arturo J Mota,Services,126.04,3/9/2020,,
Arturo J Mota,Services,66.36,4/7/2020,,
Arturo J Mota,Services,93.61,6/8/2020,,
Arturo J Mota,Services,444.71,7/10/2020,,
Arturo J Mota,Services,753.14,8/6/2020,,
Arturo J Mota,Services,685.4,9/9/2020,,
Arturo J Mota,Services,256.68,10/15/2020,,
Arturo J Mota,Services,417.34,11/5/2020,,
Arturo J Mota,Services,228.74,12/4/2020,,
Arturo J Mota,Services,81.19,12/21/2020,,
Aruj Chaudhry,Services,10.5,2/6/2020,,
Aruj Chaudhry,Services,118.86,4/13/2020,,
Aruj Chaudhry,Services,833.74,4/13/2020,,
Aruj Chaudhry,Services,267.5,4/13/2020,,
Arun Gosain MD,Claims & Insurance,1000,1/29/2020,,
Asas/Tysol  Inc.,Materials,9563.04,4/2/2020,,
Asas/Tysol  Inc.,Materials,14345.1,4/9/2020,,
Asas/Tysol  Inc.,Materials,3024,5/26/2020,,
Asas/Tysol  Inc.,Materials,3024,11/5/2020,,
Ashrae,Services,270,3/2/2020,,
ASNT,Services,11.92,1/28/2020,,
ASNT,Services,715.3,1/28/2020,,
ASPA,Services,112,2/3/2020,,
"Asplundh Tree Expert, LLC",Services,25553.45,6/26/2020,,
"Asplundh Tree Expert, LLC",Services,18789.3,6/26/2020,,
"Asplundh Tree Expert, LLC",Services,30958.1,6/26/2020,,
"Asplundh Tree Expert, LLC",Services,16516.8,7/31/2020,,
"Asplundh Tree Expert, LLC",Services,9176,7/31/2020,,
"Asplundh Tree Expert, LLC",Services,27423.18,7/31/2020,,
ASQ,Services,169,1/23/2020,,
Assn. Of American Railroads (AAR),Services,3969,1/13/2020,,
Assn. Of American Railroads (AAR),Services,3969,2/4/2020,,
Assn. Of American Railroads (AAR),Services,3969,3/11/2020,,
Assn. Of American Railroads (AAR),Services,5953.5,4/28/2020,,
Assn. Of American Railroads (AAR),Services,61339,4/29/2020,,
Assn. Of American Railroads (AAR),Services,1984.5,5/28/2020,,
Assn. Of American Railroads (AAR),Services,3969,7/1/2020,,
Assn. Of American Railroads (AAR),Services,3969,7/30/2020,,
Assn. Of American Railroads (AAR),Services,3969,8/31/2020,,
Assn. Of American Railroads (AAR),Services,30.15,9/30/2020,,
Assn. Of American Railroads (AAR),Services,818,9/30/2020,,
Assn. Of American Railroads (AAR),Services,3969,10/16/2020,,
Assn. Of American Railroads (AAR),Services,3969,11/4/2020,,
Assn. Of American Railroads (AAR),Services,3969,12/7/2020,,
Association for Financial Professionals,Services,605,1/27/2020,,
Association for Financial Professionals,Services,495,2/20/2020,,
Association of Certified Fraud Examiners,Services,225,2/3/2020,,
Association of Government Accountants,Services,172,3/9/2020,,
AT & T,Utilities,402330.95,1/13/2020,,
AT & T,Utilities,1221.4,1/13/2020,,
AT & T,Utilities,590.01,1/13/2020,,
AT & T,Utilities,2266.74,1/13/2020,,
AT & T,Utilities,15246.3,1/13/2020,,
AT & T,Utilities,7677.52,1/13/2020,,
AT & T,Utilities,345.92,1/13/2020,,
AT & T,Utilities,9420,1/13/2020,,
AT & T,Utilities,2085.65,1/13/2020,,
AT & T,Utilities,7441.3,1/13/2020,,
AT & T,Utilities,590.01,1/21/2020,,
AT & T,Utilities,585.38,1/21/2020,,
AT & T,Utilities,9978.1,1/21/2020,,
AT & T,Utilities,39361.65,1/21/2020,,
AT & T,Utilities,1710.04,1/21/2020,,
AT & T,Utilities,3571.21,1/21/2020,,
AT & T,Utilities,2813,1/21/2020,,
AT & T,Utilities,15472.15,1/21/2020,,
AT & T,Utilities,8628.45,1/21/2020,,
AT & T,Utilities,40518.24,1/21/2020,,
AT & T,Utilities,24366.29,1/21/2020,,
AT & T,Utilities,9420,1/30/2020,,
AT & T,Utilities,3251.57,1/30/2020,,
AT & T,Utilities,1221.4,2/3/2020,,
AT & T,Utilities,1007.93,2/3/2020,,
AT & T,Utilities,346.77,2/3/2020,,
AT & T,Utilities,7441.3,2/3/2020,,
AT & T,Utilities,543608.56,2/6/2020,,
AT & T,Utilities,2266.74,2/6/2020,,
AT & T,Utilities,7677.52,2/6/2020,,
AT & T,Utilities,1710.04,2/6/2020,,
AT & T,Utilities,3462.61,2/6/2020,,
AT & T,Utilities,14239.05,2/13/2020,,
AT & T,Utilities,39361.65,2/13/2020,,
AT & T,Utilities,594.83,2/13/2020,,
AT & T,Utilities,2813,2/13/2020,,
AT & T,Utilities,595.03,2/24/2020,,
AT & T,Utilities,1226.29,2/24/2020,,
AT & T,Utilities,7467.34,2/24/2020,,
AT & T,Utilities,351.69,2/24/2020,,
AT & T,Utilities,3478.68,3/3/2020,,
AT & T,Utilities,7677.52,3/3/2020,,
AT & T,Utilities,1710.04,3/3/2020,,
AT & T,Utilities,11892.08,3/3/2020,,
AT & T,Utilities,23667.95,3/3/2020,,
AT & T,Utilities,14472.28,3/4/2020,,
AT & T,Utilities,9420,3/4/2020,,
AT & T,Utilities,4488.47,3/4/2020,,
AT & T,Utilities,14024.48,3/9/2020,,
AT & T,Utilities,400000,3/12/2020,,
AT & T,Utilities,39361.65,3/12/2020,,
AT & T,Utilities,2813,3/12/2020,,
AT & T,Utilities,579,3/17/2020,,
AT & T,Utilities,590.01,3/17/2020,,
AT & T,Utilities,8633.2,3/17/2020,,
AT & T,Utilities,24833.18,3/17/2020,,
AT & T,Utilities,1221.4,3/20/2020,,
AT & T,Utilities,7441.3,3/20/2020,,
AT & T,Utilities,976.33,3/26/2020,,
AT & T,Utilities,7677.52,3/26/2020,,
AT & T,Utilities,1734.63,3/26/2020,,
AT & T,Utilities,348.27,3/26/2020,,
AT & T,Utilities,71507.88,3/26/2020,,
AT & T,Utilities,2266.74,4/3/2020,,
AT & T,Utilities,14027.34,4/3/2020,,
AT & T,Utilities,3462.61,4/3/2020,,
AT & T,Utilities,9420,4/3/2020,,
AT & T,Utilities,5353.42,4/3/2020,,
AT & T,Utilities,480000,4/14/2020,,
AT & T,Utilities,606.43,4/14/2020,,
AT & T,Utilities,1140,4/14/2020,,
AT & T,Utilities,1.25,4/14/2020,,
AT & T,Utilities,39361.65,4/20/2020,,
AT & T,Utilities,2813,4/20/2020,,
AT & T,Utilities,590.01,4/22/2020,,
AT & T,Utilities,24403.99,4/22/2020,,
AT & T,Utilities,68949.54,4/22/2020,,
AT & T,Utilities,9210.27,4/22/2020,,
AT & T,Utilities,994.64,4/29/2020,,
AT & T,Utilities,2299.61,4/29/2020,,
AT & T,Utilities,1221.4,4/29/2020,,
AT & T,Utilities,13960.36,4/29/2020,,
AT & T,Utilities,3416.89,4/29/2020,,
AT & T,Utilities,7677.52,4/29/2020,,
AT & T,Utilities,7441.3,4/29/2020,,
AT & T,Utilities,344.64,4/29/2020,,
AT & T,Utilities,9420,4/29/2020,,
AT & T,Utilities,5997.6,4/29/2020,,
AT & T,Utilities,3440.07,5/1/2020,,
AT & T,Utilities,39361.65,5/7/2020,,
AT & T,Utilities,2813,5/7/2020,,
AT & T,Utilities,440000,5/12/2020,,
AT & T,Utilities,38.14,5/12/2020,,
AT & T,Utilities,1765.56,5/15/2020,,
AT & T,Utilities,590.01,5/15/2020,,
AT & T,Utilities,8624.51,5/15/2020,,
AT & T,Utilities,1221.4,5/27/2020,,
AT & T,Utilities,2266.74,5/27/2020,,
AT & T,Utilities,994.64,5/27/2020,,
AT & T,Utilities,2467.03,5/27/2020,,
AT & T,Utilities,7441.3,5/27/2020,,
AT & T,Utilities,343.78,5/27/2020,,
AT & T,Utilities,29090.3,5/27/2020,,
AT & T,Utilities,7677.52,6/4/2020,,
AT & T,Utilities,5021.7,6/4/2020,,
AT & T,Utilities,9420,6/4/2020,,
AT & T,Utilities,5363.24,6/4/2020,,
AT & T,Utilities,440000,6/11/2020,,
AT & T,Utilities,2238.16,6/11/2020,,
AT & T,Utilities,2300.49,6/11/2020,,
AT & T,Utilities,590.01,6/11/2020,,
AT & T,Utilities,15353.55,6/11/2020,,
AT & T,Utilities,39361.65,6/11/2020,,
AT & T,Utilities,2813,6/11/2020,,
AT & T,Utilities,61.82,6/11/2020,,
AT & T,Utilities,994.64,6/25/2020,,
AT & T,Utilities,1221.4,6/25/2020,,
AT & T,Utilities,4508.19,6/25/2020,,
AT & T,Utilities,52809.64,6/25/2020,,
AT & T,Utilities,8631.31,6/25/2020,,
AT & T,Utilities,343.78,6/25/2020,,
AT & T,Utilities,30666.37,6/25/2020,,
AT & T,Utilities,58683.96,6/25/2020,,
AT & T,Utilities,14016.55,7/1/2020,,
AT & T,Utilities,7677.52,7/1/2020,,
AT & T,Utilities,4591.11,7/1/2020,,
AT & T,Utilities,9420,7/1/2020,,
AT & T,Utilities,5221.06,7/1/2020,,
AT & T,Utilities,435279.89,7/15/2020,,
AT & T,Utilities,744.91,7/15/2020,,
AT & T,Utilities,2280.14,7/15/2020,,
AT & T,Utilities,39361.65,7/15/2020,,
AT & T,Utilities,2813,7/15/2020,,
AT & T,Utilities,81,7/15/2020,,
AT & T,Utilities,590.01,7/23/2020,,
AT & T,Utilities,1051.98,7/23/2020,,
AT & T,Utilities,35437.87,7/23/2020,,
AT & T,Utilities,15559.83,7/23/2020,,
AT & T,Utilities,9686.45,7/23/2020,,
AT & T,Utilities,1221.4,7/27/2020,,
AT & T,Utilities,3291.71,7/27/2020,,
AT & T,Utilities,2122.67,7/27/2020,,
AT & T,Utilities,17729.9,7/27/2020,,
AT & T,Utilities,4685.58,7/30/2020,,
AT & T,Utilities,9420,7/30/2020,,
AT & T,Utilities,5089.99,7/30/2020,,
AT & T,Utilities,7677.52,8/3/2020,,
AT & T,Utilities,434590.76,8/6/2020,,
AT & T,Utilities,39024.65,8/11/2020,,
AT & T,Utilities,2266.74,8/11/2020,,
AT & T,Utilities,2790,8/11/2020,,
AT & T,Utilities,751.88,9/1/2020,,
AT & T,Utilities,1221.4,9/1/2020,,
AT & T,Utilities,590.01,9/1/2020,,
AT & T,Utilities,17729.9,9/1/2020,,
AT & T,Utilities,301.81,9/1/2020,,
AT & T,Utilities,8672.67,9/1/2020,,
AT & T,Utilities,343.78,9/1/2020,,
AT & T,Utilities,37935.18,9/1/2020,,
AT & T,Utilities,12501.46,9/1/2020,,
AT & T,Utilities,3294.14,9/1/2020,,
AT & T,Utilities,14285.24,9/3/2020,,
AT & T,Utilities,417121.34,9/9/2020,,
AT & T,Utilities,2266.74,9/9/2020,,
AT & T,Utilities,6936.47,9/9/2020,,
AT & T,Utilities,14283.85,9/9/2020,,
AT & T,Utilities,39349.65,9/9/2020,,
AT & T,Utilities,2825,9/9/2020,,
AT & T,Utilities,9420,9/9/2020,,
AT & T,Utilities,5115.01,9/9/2020,,
AT & T,Utilities,1051.58,9/11/2020,,
AT & T,Utilities,741.17,9/29/2020,,
AT & T,Utilities,284769.95,10/8/2020,,
AT & T,Utilities,3926.3,10/8/2020,,
AT & T,Utilities,1221.4,10/8/2020,,
AT & T,Utilities,590.01,10/8/2020,,
AT & T,Utilities,2266.74,10/8/2020,,
AT & T,Utilities,14295.67,10/8/2020,,
AT & T,Utilities,3294.14,10/8/2020,,
AT & T,Utilities,7677.52,10/8/2020,,
AT & T,Utilities,9057.23,10/8/2020,,
AT & T,Utilities,343.99,10/8/2020,,
AT & T,Utilities,8672.69,10/8/2020,,
AT & T,Utilities,37900.46,10/8/2020,,
AT & T,Utilities,11501.46,10/8/2020,,
AT & T,Utilities,39460.65,10/9/2020,,
AT & T,Utilities,2834,10/9/2020,,
AT & T,Utilities,9420,10/9/2020,,
AT & T,Utilities,3278.05,10/9/2020,,
AT & T,Utilities,5132.45,10/9/2020,,
AT & T,Utilities,723.42,10/29/2020,,
AT & T,Utilities,14474.62,10/29/2020,,
AT & T,Utilities,590.01,10/29/2020,,
AT & T,Utilities,7615.08,10/29/2020,,
AT & T,Utilities,7615.08,10/29/2020,,
AT & T,Utilities,4793.41,10/29/2020,,
AT & T,Utilities,10204.4,10/29/2020,,
AT & T,Utilities,37922,10/29/2020,,
AT & T,Utilities,16077.26,10/29/2020,,
AT & T,Utilities,9240,10/29/2020,,
AT & T,Utilities,343.99,10/29/2020,,
AT & T,Utilities,344.21,10/29/2020,,
AT & T,Utilities,5513.42,10/29/2020,,
AT & T,Utilities,3294.14,11/5/2020,,
AT & T,Utilities,440000,11/10/2020,,
AT & T,Utilities,3926.3,11/10/2020,,
AT & T,Utilities,2266.74,11/10/2020,,
AT & T,Utilities,1572.31,11/10/2020,,
AT & T,Utilities,716.74,11/16/2020,,
AT & T,Utilities,5418.88,11/16/2020,,
AT & T,Utilities,2685.19,11/17/2020,,
AT & T,Utilities,590.01,11/17/2020,,
AT & T,Utilities,41613.72,11/17/2020,,
AT & T,Utilities,2974,11/17/2020,,
AT & T,Utilities,37961.68,11/17/2020,,
AT & T,Utilities,13394.12,11/17/2020,,
AT & T,Capital Purchases,500,12/2/2020,,
AT & T,Utilities,1221.4,12/14/2020,,
AT & T,Utilities,841.64,12/14/2020,,
AT & T,Utilities,3294.14,12/14/2020,,
AT & T,Utilities,7677.52,12/14/2020,,
AT & T,Utilities,4770.77,12/14/2020,,
AT & T,Utilities,4770.77,12/14/2020,,
AT & T,Utilities,17729.9,12/14/2020,,
AT & T,Utilities,8835.57,12/14/2020,,
AT & T,Utilities,343.78,12/14/2020,,
Athletico Ltd.,Services,1050,4/1/2020,,
A-Tire County Service  Inc.,Services,60,1/2/2020,,
A-Tire County Service  Inc.,Services,1805.41,2/4/2020,,
A-Tire County Service  Inc.,Services,60,2/4/2020,,
A-Tire County Service  Inc.,Services,47,2/4/2020,,
A-Tire County Service  Inc.,Services,13159.76,2/25/2020,,
A-Tire County Service  Inc.,Services,111.39,3/2/2020,,
A-Tire County Service  Inc.,Services,146.63,3/3/2020,,
A-Tire County Service  Inc.,Services,2577.51,3/25/2020,,
A-Tire County Service  Inc.,Services,2666.84,4/14/2020,,
A-Tire County Service  Inc.,Services,23.5,4/14/2020,,
A-Tire County Service  Inc.,Services,1974.3,5/11/2020,,
A-Tire County Service  Inc.,Services,197,5/26/2020,,
A-Tire County Service  Inc.,Services,1112.48,6/8/2020,,
A-Tire County Service  Inc.,Services,218.92,6/26/2020,,
A-Tire County Service  Inc.,Services,23.5,6/26/2020,,
A-Tire County Service  Inc.,Services,771.73,7/1/2020,,
A-Tire County Service  Inc.,Services,1200.79,7/7/2020,,
A-Tire County Service  Inc.,Services,2646.02,7/31/2020,,
A-Tire County Service  Inc.,Services,4334.35,9/8/2020,,
A-Tire County Service  Inc.,Services,360,9/8/2020,,
A-Tire County Service  Inc.,Services,4594.6,10/27/2020,,
A-Tire County Service  Inc.,Services,44.52,10/27/2020,,
A-Tire County Service  Inc.,Services,68.5,10/27/2020,,
A-Tire County Service  Inc.,Services,3764.58,11/10/2020,,
A-Tire County Service  Inc.,Services,46.5,11/10/2020,,
A-Tire County Service  Inc.,Services,2000.95,12/1/2020,,
Atkinson-Baker  Inc.,Claims & Insurance,270,1/14/2020,,
Atkinson-Baker  Inc.,Claims & Insurance,270,1/14/2020,,
Atkinson-Baker  Inc.,Claims & Insurance,272.2,5/13/2020,,
Atlantic Track & Turnout Co.,Materials,47761.92,5/20/2020,,
Atlantic Track & Turnout Co.,Materials,47761.92,6/8/2020,,
Atlantic Track & Turnout Co.,Materials,47761.92,7/1/2020,,
Atlantic Track & Turnout Co.,Capital Purchases,201730.05,7/23/2020,,
Atlantic Track & Turnout Co.,Capital Purchases,134486.7,9/2/2020,,
Atlantic Track & Turnout Co.,Capital Purchases,67243.35,9/11/2020,,
Atlantic Track & Turnout Co.,Capital Purchases,67243.35,11/9/2020,,
Atlantic Track & Turnout Co.,Materials,23880.96,11/18/2020,,
Atlas & Associates  Inc.,Capital Purchases,75000,10/15/2020,,
Atlas Copco Compressors LLC,Services,982.07,2/4/2020,,
Atlas Copco Compressors LLC,Services,1975,2/5/2020,,
Atlas Copco Compressors LLC,Services,1458.01,4/1/2020,,
Atlas Copco Compressors LLC,Services,1672,4/1/2020,,
Atlas Copco Compressors LLC,Services,402.5,8/4/2020,,
Atlas Copco Compressors LLC,Materials,293,8/4/2020,,
Atlas Copco Compressors LLC,Materials,2886,9/1/2020,,
Atlas Copco Compressors LLC,Materials,11564.8,9/8/2020,,
Atlas Copco Compressors LLC,Services,690,10/15/2020,,
Atlas Copco Compressors LLC,Services,897,11/5/2020,,
Atlas/First Access,Services,231.64,1/10/2020,,
Atlas/First Access,Services,2456.25,1/10/2020,,
Atlas/First Access,Capital Purchases,66116,2/4/2020,,
Atlas/First Access,Services,3171.5,2/4/2020,,
Atlas/First Access,Materials,1694.57,2/12/2020,,
Atlas/First Access,Materials,280.8,2/12/2020,,
Atlas/First Access,Materials,421.2,2/12/2020,,
Atlas/First Access,Services,95,2/12/2020,,
Atlas/First Access,Services,11310.12,3/6/2020,,
Atlas/First Access,Services,3910,3/6/2020,,
Atlas/First Access,Materials,362.97,4/1/2020,,
Atlas/First Access,Materials,3786.27,4/1/2020,,
Atlas/First Access,Services,1038.6,4/1/2020,,
Atlas/First Access,Services,187.2,4/1/2020,,
Atlas/First Access,Services,140.4,4/1/2020,,
Atlas/First Access,Materials,54000,5/11/2020,,
Atlas/First Access,Services,1116.95,5/11/2020,,
Atlas/First Access,Services,20.54,5/20/2020,,
Atlas/First Access,Materials,140.4,6/8/2020,,
Atlas/First Access,Services,859.95,6/8/2020,,
Atlas/First Access,Services,940.83,6/8/2020,,
Atlas/First Access,Services,432.02,6/8/2020,,
Atlas/First Access,Services,902.2,6/26/2020,,
Atlas/First Access,Services,236.13,7/23/2020,,
Atlas/First Access,Services,1657.93,7/23/2020,,
Atlas/First Access,Services,159.85,7/31/2020,,
Atlas/First Access,Services,926.18,7/31/2020,,
Atlas/First Access,Services,1095.56,7/31/2020,,
Atlas/First Access,Services,317.63,7/31/2020,,
Atlas/First Access,Services,106.79,8/3/2020,,
Atlas/First Access,Services,117,9/1/2020,,
Atlas/First Access,Services,47.25,9/2/2020,,
Atlas/First Access,Services,2244.12,9/15/2020,,
Atlas/First Access,Services,234,9/25/2020,,
Atlas/First Access,Services,1623.36,9/25/2020,,
Atlas/First Access,Services,1185.82,11/5/2020,,
Atlas/First Access,Services,514.8,11/5/2020,,
Atlas/First Access,Services,2870.27,11/5/2020,,
Atlas/First Access,Services,93.6,11/16/2020,,
Atlas/First Access,Services,1911.91,11/18/2020,,
Atlas/First Access,Services,1743.06,11/18/2020,,
Atlas/First Access,Capital Purchases,47000,12/2/2020,,
Atlas/First Access,Services,658.84,12/2/2020,,
Atlas/First Access,Services,140.4,12/2/2020,,
Atomic Transmissions,Services,5425,3/5/2020,,
Attorney Registration & Disciplinary  Commission,Services,121,5/13/2020,,
Attorney Registration & Disciplinary  Commission,Services,385,11/18/2020,,
Attorney Registration & Disciplinary  Commission,Services,385,11/18/2020,,
Attorney Registration & Disciplinary  Commission,Services,385,11/18/2020,,
Attorney Registration & Disciplinary  Commission,Services,385,11/18/2020,,
Attorney Registration & Disciplinary  Commission,Services,385,11/18/2020,,
Attorney Registration & Disciplinary  Commission,Services,385,11/18/2020,,
Attorney Registration & Disciplinary  Commission,Services,385,11/18/2020,,
Attorney Registration & Disciplinary  Commission,Services,385,11/18/2020,,
Attorney Registration & Disciplinary  Commission,Services,385,11/18/2020,,
Attorney Registration & Disciplinary  Commission,Services,385,11/18/2020,,
Attorney Registration & Disciplinary  Commission,Services,121,11/18/2020,,
Attorney Registration & Disciplinary  Commission,Services,121,11/18/2020,,
Attorney Registration & Disciplinary  Commission,Services,121,12/2/2020,,
Attorney Registration & Disciplinary  Commission,Services,385,12/7/2020,,
Attorney Registration & Disciplinary  Commission,Services,385,12/7/2020,,
Attorney Registration & Disciplinary  Commission,Services,385,12/7/2020,,
Attorney Registration & Disciplinary  Commission,Services,385,12/7/2020,,
Attorney Registration & Disciplinary  Commission,Services,385,12/7/2020,,
Attorney Registration & Disciplinary  Commission,Services,385,12/7/2020,,
Attorney Registration & Disciplinary  Commission,Services,121,12/8/2020,,
Audio Supply  Inc.,Capital Purchases,1937.94,4/7/2020,,
Audio Supply  Inc.,Capital Purchases,38275.18,4/15/2020,,
Audio Supply  Inc.,Capital Purchases,475.56,5/1/2020,,
Aurelio E. Rocha,Services,110.2,1/7/2020,,
Aurelio E. Rocha,Services,116,1/7/2020,,
Aurelio E. Rocha,Services,85.84,1/15/2020,,
Aurelio E. Rocha,Services,218.5,2/24/2020,,
Aurelio E. Rocha,Services,12.08,2/24/2020,,
Aurelio E. Rocha,Services,175.95,2/27/2020,,
Aurelio E. Rocha,Services,27.6,2/27/2020,,
Aurelio E. Rocha,Services,175.95,3/6/2020,,
Aurelio E. Rocha,Services,34.5,3/6/2020,,
Aurelio E. Rocha,Services,230,3/26/2020,,
Aurelio E. Rocha,Services,34.5,4/17/2020,,
Aurelio E. Rocha,Services,96.6,5/11/2020,,
Aurelio E. Rocha,Services,143.75,7/15/2020,,
Aurelio E. Rocha,Services,24.15,8/12/2020,,
Aurelio E. Rocha,Services,46,8/12/2020,,
Aurelio E. Rocha,Services,42.55,9/24/2020,,
Aurelio E. Rocha,Services,16.68,9/24/2020,,
Auto Truck Group  Llc,Services,2500.8,2/3/2020,,
Auto Truck Group  Llc,Services,1475.87,3/5/2020,,
Automated Railroad Mntce. Systems Systems  Inc. (Arms  Inc.),Capital Purchases,11000.64,2/11/2020,,
Automated Railroad Mntce. Systems Systems  Inc. (Arms  Inc.),Capital Purchases,2527.8,2/12/2020,,
Automated Railroad Mntce. Systems Systems  Inc. (Arms  Inc.),Capital Purchases,2022.24,2/12/2020,,
Automated Railroad Mntce. Systems Systems  Inc. (Arms  Inc.),Capital Purchases,670.47,3/25/2020,,
Automated Railroad Mntce. Systems Systems  Inc. (Arms  Inc.),Materials,1340.94,4/1/2020,,
Automated Railroad Mntce. Systems Systems  Inc. (Arms  Inc.),Capital Purchases,1727.06,4/15/2020,,
Automated Railroad Mntce. Systems Systems  Inc. (Arms  Inc.),Capital Purchases,1516.68,4/21/2020,,
Automated Railroad Mntce. Systems Systems  Inc. (Arms  Inc.),Materials,1011.12,4/21/2020,,
Automated Railroad Mntce. Systems Systems  Inc. (Arms  Inc.),Capital Purchases,3538.92,4/27/2020,,
Automated Railroad Mntce. Systems Systems  Inc. (Arms  Inc.),Capital Purchases,1011.12,5/20/2020,,
Automated Railroad Mntce. Systems Systems  Inc. (Arms  Inc.),Capital Purchases,1011.12,5/20/2020,,
Automated Railroad Mntce. Systems Systems  Inc. (Arms  Inc.),Capital Purchases,2011.41,6/8/2020,,
Automated Railroad Mntce. Systems Systems  Inc. (Arms  Inc.),Capital Purchases,2011.41,6/8/2020,,
Automated Railroad Mntce. Systems Systems  Inc. (Arms  Inc.),Capital Purchases,2022.24,6/26/2020,,
Automated Railroad Mntce. Systems Systems  Inc. (Arms  Inc.),Capital Purchases,1011.12,6/26/2020,,
Automated Railroad Mntce. Systems Systems  Inc. (Arms  Inc.),Capital Purchases,2681.88,7/1/2020,,
Automated Railroad Mntce. Systems Systems  Inc. (Arms  Inc.),Capital Purchases,2681.88,7/23/2020,,
Automated Railroad Mntce. Systems Systems  Inc. (Arms  Inc.),Capital Purchases,1011.12,9/8/2020,,
Automated Railroad Mntce. Systems Systems  Inc. (Arms  Inc.),Capital Purchases,670.47,9/25/2020,,
Automated Railroad Mntce. Systems Systems  Inc. (Arms  Inc.),Capital Purchases,1011.12,10/15/2020,,
Automated Railroad Mntce. Systems Systems  Inc. (Arms  Inc.),Capital Purchases,2011.41,11/5/2020,,
Automated Railroad Mntce. Systems Systems  Inc. (Arms  Inc.),Capital Purchases,2022.24,12/16/2020,,
AVI Systems Inc.,Capital Purchases,10560,11/5/2020,,
AVI Systems Inc.,Capital Purchases,15298,11/25/2020,,
AVI Systems Inc.,Capital Purchases,92767,12/1/2020,,
"Axon Enterprise, Inc",Materials,142200,6/8/2020,,
"Axon Enterprise, Inc",Materials,3800,7/23/2020,,
"Axon Enterprise, Inc",Materials,5550,9/15/2020,,
"Axon Enterprise, Inc",Materials,35700,11/2/2020,,
"Axon Enterprise, Inc",Materials,1904,12/1/2020,,
Ayodeji Ariyo,Services,375,1/16/2020,,
Azura Investigations Llc,Services,2123,1/27/2020,,
Azura Investigations Llc,Services,1714,2/11/2020,,
Azura Investigations Llc,Services,709,3/25/2020,,
Azura Investigations Llc,Services,3060,4/27/2020,,
Azura Investigations Llc,Services,953,6/8/2020,,
Azura Investigations Llc,Services,293,7/23/2020,,
Azura Investigations Llc,Services,3056,7/29/2020,,
Azura Investigations Llc,Services,962.25,9/2/2020,,
Azura Investigations Llc,Services,240,9/15/2020,,
Azura Investigations Llc,Services,80,10/15/2020,,
Azura Investigations Llc,Services,558,11/5/2020,,
Azura Investigations Llc,Services,275,12/2/2020,,
"Babak Mokhlesi, MD",Claims & Insurance,5600,5/13/2020,,
"Babak Mokhlesi, MD",Claims & Insurance,1400,9/9/2020,,
Bach-Simpson Div. Of Wabtec Canada  Inc.,Materials,53915,1/2/2020,,
Bach-Simpson Div. Of Wabtec Canada  Inc.,Materials,2795,1/2/2020,,
Bach-Simpson Div. Of Wabtec Canada  Inc.,Services,595,1/2/2020,,
Bach-Simpson Div. Of Wabtec Canada  Inc.,Materials,5435,1/22/2020,,
Bach-Simpson Div. Of Wabtec Canada  Inc.,Services,997,1/22/2020,,
Bach-Simpson Div. Of Wabtec Canada  Inc.,Materials,12435,1/27/2020,,
Bach-Simpson Div. Of Wabtec Canada  Inc.,Materials,298,1/27/2020,,
Bach-Simpson Div. Of Wabtec Canada  Inc.,Capital Purchases,2541,2/21/2020,,
Bach-Simpson Div. Of Wabtec Canada  Inc.,Materials,3780,3/4/2020,,
Bach-Simpson Div. Of Wabtec Canada  Inc.,Capital Purchases,5982,3/4/2020,,
Bach-Simpson Div. Of Wabtec Canada  Inc.,Materials,3275,3/24/2020,,
Bach-Simpson Div. Of Wabtec Canada  Inc.,Materials,595,3/30/2020,,
Bach-Simpson Div. Of Wabtec Canada  Inc.,Capital Purchases,12600,4/1/2020,,
Bach-Simpson Div. Of Wabtec Canada  Inc.,Materials,2580,4/1/2020,,
Bach-Simpson Div. Of Wabtec Canada  Inc.,Materials,995,4/1/2020,,
Bach-Simpson Div. Of Wabtec Canada  Inc.,Materials,925,4/23/2020,,
Bach-Simpson Div. Of Wabtec Canada  Inc.,Services,1994,4/23/2020,,
Bach-Simpson Div. Of Wabtec Canada  Inc.,Materials,695,4/24/2020,,
Bach-Simpson Div. Of Wabtec Canada  Inc.,Materials,1780,5/7/2020,,
Bach-Simpson Div. Of Wabtec Canada  Inc.,Capital Purchases,1050,5/7/2020,,
Bach-Simpson Div. Of Wabtec Canada  Inc.,Services,3350,5/7/2020,,
Bach-Simpson Div. Of Wabtec Canada  Inc.,Materials,790,6/3/2020,,
Bach-Simpson Div. Of Wabtec Canada  Inc.,Services,595,6/3/2020,,
Bach-Simpson Div. Of Wabtec Canada  Inc.,Services,595,6/3/2020,,
Bach-Simpson Div. Of Wabtec Canada  Inc.,Services,595,6/3/2020,,
Bach-Simpson Div. Of Wabtec Canada  Inc.,Services,595,6/3/2020,,
Bach-Simpson Div. Of Wabtec Canada  Inc.,Services,3945,6/3/2020,,
Bach-Simpson Div. Of Wabtec Canada  Inc.,Services,7575,6/3/2020,,
Bach-Simpson Div. Of Wabtec Canada  Inc.,Services,1190,6/3/2020,,
Bach-Simpson Div. Of Wabtec Canada  Inc.,Services,2480,6/3/2020,,
Bach-Simpson Div. Of Wabtec Canada  Inc.,Services,1190,6/24/2020,,
Bach-Simpson Div. Of Wabtec Canada  Inc.,Materials,5900,7/1/2020,,
Bach-Simpson Div. Of Wabtec Canada  Inc.,Materials,5900,7/1/2020,,
Bach-Simpson Div. Of Wabtec Canada  Inc.,Services,3495,7/1/2020,,
Bach-Simpson Div. Of Wabtec Canada  Inc.,Services,1295,7/1/2020,,
Bach-Simpson Div. Of Wabtec Canada  Inc.,Services,3495,7/1/2020,,
Bach-Simpson Div. Of Wabtec Canada  Inc.,Materials,495,7/9/2020,,
Bach-Simpson Div. Of Wabtec Canada  Inc.,Materials,895,7/21/2020,,
Bach-Simpson Div. Of Wabtec Canada  Inc.,Materials,1475,7/21/2020,,
Bach-Simpson Div. Of Wabtec Canada  Inc.,Materials,1475,7/21/2020,,
Bach-Simpson Div. Of Wabtec Canada  Inc.,Services,3995,7/21/2020,,
Bach-Simpson Div. Of Wabtec Canada  Inc.,Services,3995,7/21/2020,,
Bach-Simpson Div. Of Wabtec Canada  Inc.,Services,2995,7/21/2020,,
Bach-Simpson Div. Of Wabtec Canada  Inc.,Services,2795,9/1/2020,,
Bach-Simpson Div. Of Wabtec Canada  Inc.,Capital Purchases,5250,9/8/2020,,
Bach-Simpson Div. Of Wabtec Canada  Inc.,Materials,495,9/14/2020,,
Bach-Simpson Div. Of Wabtec Canada  Inc.,Materials,395,9/14/2020,,
Bach-Simpson Div. Of Wabtec Canada  Inc.,Capital Purchases,5250,9/14/2020,,
Bach-Simpson Div. Of Wabtec Canada  Inc.,Capital Purchases,26275,9/15/2020,,
Bach-Simpson Div. Of Wabtec Canada  Inc.,Materials,9595,9/23/2020,,
Bach-Simpson Div. Of Wabtec Canada  Inc.,Capital Purchases,17030,10/1/2020,,
Bach-Simpson Div. Of Wabtec Canada  Inc.,Materials,2995,10/1/2020,,
Bach-Simpson Div. Of Wabtec Canada  Inc.,Materials,894,10/1/2020,,
Bach-Simpson Div. Of Wabtec Canada  Inc.,Services,3995,10/1/2020,,
Bach-Simpson Div. Of Wabtec Canada  Inc.,Materials,2495,10/26/2020,,
Bach-Simpson Div. Of Wabtec Canada  Inc.,Materials,1089.4,10/26/2020,,
Bach-Simpson Div. Of Wabtec Canada  Inc.,Capital Purchases,5250,12/1/2020,,
Bach-Simpson Div. Of Wabtec Canada  Inc.,Materials,298,12/1/2020,,
Bach-Simpson Div. Of Wabtec Canada  Inc.,Services,595,12/18/2020,,
"BADQ Products & Supply, LLC",Materials,314.15,11/9/2020,,
"BADQ Products & Supply, LLC",Materials,4706,11/19/2020,,
Bake For Me,Services,585.68,1/23/2020,,
Bake For Me,Services,128,1/24/2020,,
Bake For Me,Services,388.5,1/27/2020,,
Bake For Me,Services,364.84,1/28/2020,,
Bake For Me,Services,206.9,1/28/2020,,
Bake For Me,Services,217.24,2/13/2020,,
Bake For Me,Services,36,2/13/2020,,
Bake For Me,Materials,136,3/10/2020,,
Bake For Me,Services,1200.46,3/10/2020,,
Bake For Me,Services,129.62,3/16/2020,,
Bake For Me,Services,131.45,3/16/2020,,
Bake For Me,Services,205.22,4/1/2020,,
Bake For Me,Services,286.67,4/28/2020,,
Bake For Me,Services,322.82,7/30/2020,,
Bake For Me,Services,131.45,7/30/2020,,
Bake For Me,Services,327.6,8/3/2020,,
Bake For Me,Services,808.86,8/3/2020,,
Bake For Me,Services,129.62,8/10/2020,,
Bake For Me,Services,360.04,9/2/2020,,
Bake For Me,Services,129.62,9/2/2020,,
Bake For Me,Services,163.22,9/4/2020,,
Bake For Me,Services,87.62,9/14/2020,,
Bake For Me,Services,712.84,10/1/2020,,
Bake For Me,Services,390.02,10/12/2020,,
Bake For Me,Services,59.45,10/20/2020,,
Bake For Me,Services,210,11/9/2020,,
Bake For Me,Services,535.28,11/23/2020,,
Bake For Me,Services,75.6,12/8/2020,,
Baker Tilly Virchow Krause  Llp,Services,1543.75,3/5/2020,,
Baker Tilly Virchow Krause  Llp,Services,17343.75,4/7/2020,,
Baker Tilly Virchow Krause  Llp,Services,14050,7/9/2020,,
Baker Tilly Virchow Krause  Llp,Services,3011.25,7/21/2020,,
Ballast Tools  Inc.,Materials,4512,3/4/2020,,
Ballast Tools  Inc.,Materials,4800,3/24/2020,,
Ballast Tools  Inc.,Materials,8416,5/7/2020,,
Ballast Tools  Inc.,Materials,4800,6/3/2020,,
Ballast Tools  Inc.,Materials,7088,6/24/2020,,
Ballast Tools  Inc.,Materials,1017,11/20/2020,,
Bank Of America,Services,14655.36,1/28/2020,,
Bank Of America,Services,7921.23,2/24/2020,,
Bank Of America,Services,16200.39,3/16/2020,,
Bank Of America,Services,13515.88,4/9/2020,,
Bank Of America,Services,12734.28,5/4/2020,,
Bank Of America,Services,4549.88,6/12/2020,,
Bank Of America,Services,4778.05,8/10/2020,,
Bank Of America,Services,6873.56,8/11/2020,,
Bank Of America,Services,11454.95,9/16/2020,,
Bank Of America,Capital Purchases,6770000,10/6/2020,,
Bank Of America,Services,12673.74,10/9/2020,,
Bank Of America,Capital Purchases,335000,10/23/2020,,
Bank Of America,Services,11518.31,11/4/2020,,
Bank Of America,Services,7848.97,12/2/2020,,
Bank Of America,Services,7282.63,12/10/2020,,
Barbara Buhai,Services,1990.68,12/9/2020,,
Barber Spring Co.,Materials,3355,2/10/2020,,
Barber Spring Co.,Materials,987,3/4/2020,,
Barber Spring Co.,Materials,3671,3/5/2020,,
Barber Spring Co.,Materials,711.58,3/30/2020,,
Barber Spring Co.,Materials,711.58,4/7/2020,,
Barber Spring Co.,Materials,2023.26,5/1/2020,,
Barber Spring Co.,Materials,4216.35,6/3/2020,,
Barber Spring Co.,Materials,2182.48,6/24/2020,,
Barber Spring Co.,Materials,9288.97,7/21/2020,,
Barber Spring Co.,Materials,2219.99,9/2/2020,,
Barber Spring Co.,Materials,2684,9/8/2020,,
Barber Spring Co.,Materials,2023.26,10/16/2020,,
Barry Beetschen,Claims & Insurance,57.83,7/9/2020,,
Barry Hobbs,Claims & Insurance,3200,2/20/2020,,
Batteries Plus Bulbs,Materials,184.15,10/30/2020,,
Baultar Concept  Inc.,Capital Purchases,15760,1/27/2020,,
Baultar Concept  Inc.,Capital Purchases,6165,5/12/2020,,
Baultar Concept  Inc.,Capital Purchases,58855,7/9/2020,,
Baultar Concept  Inc.,Capital Purchases,16000,8/3/2020,,
Baultar Concept  Inc.,Capital Purchases,19130,10/1/2020,,
BBA Project  Inc.,Capital Purchases,189235.92,1/22/2020,,
BBA Project  Inc.,Capital Purchases,150204.46,3/6/2020,,
BBA Project  Inc.,Materials,530,5/12/2020,,
BBA Project  Inc.,Materials,9742,6/3/2020,,
BBA Project  Inc.,Materials,3588,6/4/2020,,
BBA Project  Inc.,Materials,260,6/24/2020,,
BBA Project  Inc.,Materials,2220,6/24/2020,,
BBA Project  Inc.,Capital Purchases,10800,9/3/2020,,
BBA Project  Inc.,Materials,10207,9/8/2020,,
BBA Project  Inc.,Materials,9166,10/1/2020,,
BBA Project  Inc.,Capital Purchases,62407.75,10/12/2020,,
BBA Project  Inc.,Capital Purchases,9985.24,10/12/2020,,
BBA Project  Inc.,Materials,1495,10/16/2020,,
BBA Project  Inc.,Materials,1495,11/9/2020,,
BBA Project  Inc.,Materials,6052,11/9/2020,,
BCBS Of Illinois,Services,912606.05,1/14/2020,,
BCBS Of Illinois,Claims & Insurance,12622.38,1/14/2020,,
BCBS Of Illinois,Services,930604.27,2/10/2020,,
BCBS Of Illinois,Services,917534.66,3/3/2020,,
BCBS Of Illinois,Services,893853.99,3/31/2020,,
BCBS Of Illinois,Services,916068.47,5/4/2020,,
BCBS Of Illinois,Services,923202.18,6/10/2020,,
BCBS Of Illinois,Services,922617.36,7/2/2020,,
BCBS Of Illinois,Services,921860.95,9/2/2020,,
BCBS Of Illinois,Services,924483.53,10/5/2020,,
BCBS Of Illinois,Services,924483.53,10/26/2020,,
BCBS Of Illinois,Services,913048.4,10/27/2020,,
BCBS Of Illinois,Services,741143.8,12/9/2020,,
Bearings & Industrial Supply Co.,Materials,2415.09,8/27/2020,,
Bearings & Industrial Supply Co.,Materials,3220.12,8/27/2020,,
Bearings & Industrial Supply Co.,Materials,2415.09,8/27/2020,,
Bearings & Industrial Supply Co.,Materials,3220.12,8/27/2020,,
Bearings & Industrial Supply Co.,Materials,4830.18,8/27/2020,,
Bebon Office Machines Co.  Inc.,Services,650,3/25/2020,,
Bebon Office Machines Co.  Inc.,Services,250,3/25/2020,,
Bebon Office Machines Co.  Inc.,Services,775,7/21/2020,,
Bebon Office Machines Co.  Inc.,Services,900,10/12/2020,,
Bebon Office Machines Co.  Inc.,Services,125,11/9/2020,,
Bebon Office Machines Co.  Inc.,Services,250,11/20/2020,,
Becker Professional Development Corp.,Services,1495,3/9/2020,,
Becker Professional Development Corp.,Services,897,10/30/2020,,
Beligh Sraieb,Services,46,3/11/2020,,
Beligh Sraieb,Services,36.8,3/11/2020,,
Bellwood Electric Motors Inc.,Capital Purchases,3500,1/2/2020,,
Bellwood Electric Motors Inc.,Materials,23500,1/23/2020,,
Bellwood Electric Motors Inc.,Materials,4600,1/28/2020,,
Bellwood Electric Motors Inc.,Materials,4600,2/3/2020,,
Bellwood Electric Motors Inc.,Materials,22190,3/4/2020,,
Bellwood Electric Motors Inc.,Materials,5490,3/4/2020,,
Bellwood Electric Motors Inc.,Capital Purchases,3500,3/4/2020,,
Bellwood Electric Motors Inc.,Materials,2300,3/25/2020,,
Bellwood Electric Motors Inc.,Materials,8900,6/24/2020,,
Bellwood Electric Motors Inc.,Capital Purchases,3500,7/1/2020,,
Bellwood Electric Motors Inc.,Materials,9870,7/21/2020,,
Bellwood Electric Motors Inc.,Materials,7400,8/27/2020,,
Bellwood Electric Motors Inc.,Capital Purchases,3500,8/27/2020,,
Bellwood Electric Motors Inc.,Materials,890,9/8/2020,,
Bellwood Electric Motors Inc.,Materials,5790,10/12/2020,,
Bellwood Electric Motors Inc.,Materials,3680,10/12/2020,,
Bellwood Electric Motors Inc.,Materials,5480,10/26/2020,,
Bellwood Electric Motors Inc.,Materials,980,10/26/2020,,
Bellwood Electric Motors Inc.,Materials,20600,11/9/2020,,
Bellwood Electric Motors Inc.,Materials,9800,11/20/2020,,
Bellwood Electric Motors Inc.,Materials,4900,12/1/2020,,
Belson Outdoors  Inc.,Materials,2672,10/23/2020,,
Belson Outdoors  Inc.,Services,317.94,10/23/2020,,
Benefit Resource Inc.,Services,150661.84,2/7/2020,,
Benefit Resource Inc.,Services,154847.52,2/10/2020,,
Benefit Resource Inc.,Services,141365.25,3/11/2020,,
Benefit Resource Inc.,Services,13677.29,3/11/2020,,
Benefit Resource Inc.,Services,15800.4,3/12/2020,,
Benefit Resource Inc.,Services,155890.93,5/4/2020,,
Benefit Resource Inc.,Services,256358.76,6/10/2020,,
Benefit Resource Inc.,Services,51224.8,6/11/2020,,
Benefit Resource Inc.,Services,138185.61,7/2/2020,,
Benefit Resource Inc.,Services,46387.74,7/7/2020,,
Benefit Resource Inc.,Services,6357,7/9/2020,,
Benefit Resource Inc.,Services,11503.2,9/24/2020,,
Benefit Resource Inc.,Services,387929.03,10/5/2020,,
Benefit Resource Inc.,Services,19773.44,10/5/2020,,
Benefit Resource Inc.,Services,11120.4,10/6/2020,,
Benefit Resource Inc.,Services,253307.75,12/28/2020,,
Benefit Resource Inc.,Services,23056.22,12/28/2020,,
"Benjamin A. Goldberg, MD",Claims & Insurance,750,1/16/2020,,
"Benjamin A. Goldberg, MD",Claims & Insurance,4000,2/21/2020,,
"Benjamin A. Goldberg, MD",Claims & Insurance,1125,7/13/2020,,
"Benjamin A. Goldberg, MD",Claims & Insurance,500,7/24/2020,,
"Benjamin A. Goldberg, MD",Claims & Insurance,4500,10/6/2020,,
"Benson G. Messer, MD",Claims & Insurance,300,1/29/2020,,
Bentley Systems  Inc.,Capital Purchases,28993.39,1/27/2020,,
Bentley Systems  Inc.,Capital Purchases,287500,11/20/2020,,
Berg Engineering & Sales,Materials,4985.04,8/3/2020,,
Berg Engineering & Sales,Services,81,8/3/2020,,
Berkeley Simulation Software  LLC,Services,5000,3/25/2020,,
Bernard Leifker,Claims & Insurance,446.3,5/22/2020,,
Bernard Powell,Services,621.5,8/24/2020,,
Bernard Powell,Services,621.5,8/27/2020,,
Bernard Powell,Services,339,9/24/2020,,
Bernard Powell,Services,621.5,10/1/2020,,
Berts Car Wash  Inc.,Services,1035,1/28/2020,,
Berts Car Wash  Inc.,Services,1268,3/4/2020,,
Berts Car Wash  Inc.,Services,2623,6/24/2020,,
Berts Car Wash  Inc.,Services,1744,8/27/2020,,
Berts Car Wash  Inc.,Services,1196,9/9/2020,,
Berts Car Wash  Inc.,Services,601,10/12/2020,,
Berts Car Wash  Inc.,Services,938,10/26/2020,,
Berts Car Wash  Inc.,Services,799,11/20/2020,,
Betenbender Mfg. Inc.,Services,434,1/28/2020,,
Bijumon Luckose,Services,10.12,5/22/2020,,
Black Dog Petroleum LLC,Materials,4712,1/23/2020,,
Black Dog Petroleum LLC,Materials,2945,1/28/2020,,
Black Dog Petroleum LLC,Materials,2208.75,3/4/2020,,
Black Dog Petroleum LLC,Materials,3239.5,3/25/2020,,
Black Dog Petroleum LLC,Materials,2945,3/30/2020,,
Black Dog Petroleum LLC,Materials,1619.75,4/14/2020,,
Black Dog Petroleum LLC,Materials,2208.75,6/4/2020,,
Black Dog Petroleum LLC,Materials,3386.75,6/24/2020,,
Black Dog Petroleum LLC,Materials,883.5,7/21/2020,,
Black Dog Petroleum LLC,Materials,4712,9/2/2020,,
Black Dog Petroleum LLC,Materials,4564.75,10/12/2020,,
Black Dog Petroleum LLC,Materials,1619.75,10/30/2020,,
Black Dog Petroleum LLC,Materials,1914.25,12/10/2020,,
Black Dog Petroleum LLC,Materials,2061.5,12/18/2020,,
Black Women Lawyer's Association,Services,100,2/26/2020,,
Blue Print Shoppe  Inc.,Capital Purchases,240.65,3/5/2020,,
Blue Print Shoppe  Inc.,Capital Purchases,40,3/24/2020,,
Blue Print Shoppe  Inc.,Capital Purchases,629.83,9/9/2020,,
Blue Print Shoppe  Inc.,Capital Purchases,105.01,12/14/2020,,
Bnsf Railway Co.,Capital Purchases,70841.97,1/2/2020,,
Bnsf Railway Co.,Capital Purchases,33829.57,1/2/2020,,
Bnsf Railway Co.,Capital Purchases,87823.44,1/2/2020,,
Bnsf Railway Co.,Capital Purchases,25730.71,1/2/2020,,
Bnsf Railway Co.,Capital Purchases,106725.08,1/2/2020,,
Bnsf Railway Co.,Capital Purchases,255553.92,1/2/2020,,
Bnsf Railway Co.,Capital Purchases,79052.37,1/2/2020,,
Bnsf Railway Co.,Capital Purchases,23232.77,1/2/2020,,
Bnsf Railway Co.,Capital Purchases,5700.44,1/2/2020,,
Bnsf Railway Co.,Capital Purchases,10962.53,1/2/2020,,
Bnsf Railway Co.,Capital Purchases,9973.43,1/8/2020,,
Bnsf Railway Co.,Capital Purchases,597729.33,1/10/2020,,
Bnsf Railway Co.,Capital Purchases,19899.74,1/10/2020,,
Bnsf Railway Co.,Capital Purchases,102625.5,1/23/2020,,
Bnsf Railway Co.,Capital Purchases,293.66,1/23/2020,,
Bnsf Railway Co.,Capital Purchases,465186.26,1/23/2020,,
Bnsf Railway Co.,Capital Purchases,9514.39,1/23/2020,,
Bnsf Railway Co.,Services,2982505.71,1/27/2020,,
Bnsf Railway Co.,Services,1923324.76,1/27/2020,,
Bnsf Railway Co.,Services,261350,1/29/2020,,
Bnsf Railway Co.,Capital Purchases,6840.18,2/3/2020,,
Bnsf Railway Co.,Capital Purchases,146.83,2/3/2020,,
Bnsf Railway Co.,Capital Purchases,28791.63,2/3/2020,,
Bnsf Railway Co.,Capital Purchases,5157.94,2/3/2020,,
Bnsf Railway Co.,Capital Purchases,99586.07,2/3/2020,,
Bnsf Railway Co.,Services,3879.23,2/6/2020,,
Bnsf Railway Co.,Capital Purchases,34736.87,2/11/2020,,
Bnsf Railway Co.,Capital Purchases,238468.94,2/11/2020,,
Bnsf Railway Co.,Capital Purchases,5919.75,2/21/2020,,
Bnsf Railway Co.,Services,3404886.77,2/24/2020,,
Bnsf Railway Co.,Services,1899565.42,2/24/2020,,
Bnsf Railway Co.,Capital Purchases,31822.41,2/26/2020,,
Bnsf Railway Co.,Capital Purchases,89974.85,3/2/2020,,
Bnsf Railway Co.,Capital Purchases,41061.88,3/2/2020,,
Bnsf Railway Co.,Capital Purchases,80543.61,3/2/2020,,
Bnsf Railway Co.,Capital Purchases,12959.93,3/2/2020,,
Bnsf Railway Co.,Capital Purchases,4041.91,3/2/2020,,
Bnsf Railway Co.,Capital Purchases,138212.4,3/3/2020,,
Bnsf Railway Co.,Capital Purchases,13622.19,3/3/2020,,
Bnsf Railway Co.,Capital Purchases,59958.56,3/3/2020,,
Bnsf Railway Co.,Capital Purchases,11839.1,3/3/2020,,
Bnsf Railway Co.,Capital Purchases,9501.11,3/4/2020,,
Bnsf Railway Co.,Capital Purchases,93341.56,3/11/2020,,
Bnsf Railway Co.,Capital Purchases,160670.8,3/11/2020,,
Bnsf Railway Co.,Capital Purchases,55819.02,3/17/2020,,
Bnsf Railway Co.,Capital Purchases,68759.45,3/17/2020,,
Bnsf Railway Co.,Capital Purchases,72104.12,3/17/2020,,
Bnsf Railway Co.,Services,7758.46,3/19/2020,,
Bnsf Railway Co.,Services,2992851.69,3/23/2020,,
Bnsf Railway Co.,Services,1843354.75,3/23/2020,,
Bnsf Railway Co.,Capital Purchases,97.88,4/2/2020,,
Bnsf Railway Co.,Capital Purchases,442993.27,4/2/2020,,
Bnsf Railway Co.,Capital Purchases,10327.5,4/2/2020,,
Bnsf Railway Co.,Capital Purchases,918.08,4/5/2020,,
Bnsf Railway Co.,Capital Purchases,5876.11,4/5/2020,,
Bnsf Railway Co.,Capital Purchases,12096.27,4/5/2020,,
Bnsf Railway Co.,Capital Purchases,146.83,4/5/2020,,
Bnsf Railway Co.,Capital Purchases,11091.1,4/8/2020,,
Bnsf Railway Co.,Capital Purchases,66810.85,4/8/2020,,
Bnsf Railway Co.,Capital Purchases,2257.48,4/8/2020,,
Bnsf Railway Co.,Capital Purchases,19060.47,4/21/2020,,
Bnsf Railway Co.,Capital Purchases,25063.22,4/21/2020,,
Bnsf Railway Co.,Capital Purchases,195.76,4/21/2020,,
Bnsf Railway Co.,Capital Purchases,50671.11,4/21/2020,,
Bnsf Railway Co.,Services,3879.23,4/22/2020,,
Bnsf Railway Co.,Services,2242961.33,4/28/2020,,
Bnsf Railway Co.,Services,1746516.99,4/28/2020,,
Bnsf Railway Co.,Capital Purchases,22726.63,5/7/2020,,
Bnsf Railway Co.,Capital Purchases,347341.26,5/7/2020,,
Bnsf Railway Co.,Capital Purchases,623956.16,5/7/2020,,
Bnsf Railway Co.,Capital Purchases,25882.42,5/7/2020,,
Bnsf Railway Co.,Services,3879.23,5/14/2020,,
Bnsf Railway Co.,Services,470634.99,5/27/2020,,
Bnsf Railway Co.,Services,16989.75,5/27/2020,,
Bnsf Railway Co.,Capital Purchases,97.88,6/1/2020,,
Bnsf Railway Co.,Capital Purchases,6577.7,6/3/2020,,
Bnsf Railway Co.,Capital Purchases,435976.74,6/3/2020,,
Bnsf Railway Co.,Capital Purchases,13684.19,6/3/2020,,
Bnsf Railway Co.,Capital Purchases,489.94,6/3/2020,,
Bnsf Railway Co.,Capital Purchases,9970.05,6/8/2020,,
Bnsf Railway Co.,Capital Purchases,954806.35,6/9/2020,,
Bnsf Railway Co.,Services,3879.23,6/10/2020,,
Bnsf Railway Co.,Capital Purchases,382827.43,6/22/2020,,
Bnsf Railway Co.,Services,5747769,6/22/2020,,
Bnsf Railway Co.,Services,322039.97,6/29/2020,,
Bnsf Railway Co.,Services,16233.5,6/29/2020,,
Bnsf Railway Co.,Services,4825512,7/1/2020,,
Bnsf Railway Co.,Services,3879.23,7/17/2020,,
Bnsf Railway Co.,Services,333359.62,7/22/2020,,
Bnsf Railway Co.,Services,35517.75,7/22/2020,,
Bnsf Railway Co.,Capital Purchases,27016.19,8/3/2020,,
Bnsf Railway Co.,Capital Purchases,813738.63,8/3/2020,,
Bnsf Railway Co.,Capital Purchases,525440.56,8/3/2020,,
Bnsf Railway Co.,Services,5080819,8/4/2020,,
Bnsf Railway Co.,Services,4032.99,8/11/2020,,
Bnsf Railway Co.,Services,367174.32,8/24/2020,,
Bnsf Railway Co.,Services,57268,8/24/2020,,
Bnsf Railway Co.,Capital Purchases,11502.2,8/25/2020,,
Bnsf Railway Co.,Services,5170489,8/26/2020,,
Bnsf Railway Co.,Capital Purchases,642069.76,9/1/2020,,
Bnsf Railway Co.,Services,339746.54,9/21/2020,,
Bnsf Railway Co.,Services,63193,9/21/2020,,
Bnsf Railway Co.,Capital Purchases,14938.87,9/23/2020,,
Bnsf Railway Co.,Capital Purchases,509624.2,9/23/2020,,
Bnsf Railway Co.,Services,4032.99,9/30/2020,,
Bnsf Railway Co.,Capital Purchases,69387.08,10/1/2020,,
Bnsf Railway Co.,Capital Purchases,2274.09,10/1/2020,,
Bnsf Railway Co.,Capital Purchases,8285.94,10/1/2020,,
Bnsf Railway Co.,Services,269483.5,10/8/2020,,
Bnsf Railway Co.,Services,68404.5,10/8/2020,,
Bnsf Railway Co.,Services,4876241,10/13/2020,,
Bnsf Railway Co.,Services,85238,10/27/2020,,
Bnsf Railway Co.,Capital Purchases,0.01,11/4/2020,,
Bnsf Railway Co.,Capital Purchases,83649.85,11/4/2020,,
Bnsf Railway Co.,Capital Purchases,43858.63,11/4/2020,,
Bnsf Railway Co.,Capital Purchases,0.01,11/4/2020,,
Bnsf Railway Co.,Capital Purchases,7864.44,11/9/2020,,
Bnsf Railway Co.,Capital Purchases,142659.31,11/9/2020,,
Bnsf Railway Co.,Capital Purchases,89492.75,11/10/2020,,
Bnsf Railway Co.,Capital Purchases,71352.57,11/10/2020,,
Bnsf Railway Co.,Capital Purchases,6058.64,11/10/2020,,
Bnsf Railway Co.,Capital Purchases,48617.35,11/11/2020,,
Bnsf Railway Co.,Services,4032.99,11/19/2020,,
Bnsf Railway Co.,Capital Purchases,125012.91,11/23/2020,,
Bnsf Railway Co.,Capital Purchases,70242.27,11/23/2020,,
Bnsf Railway Co.,Services,441050,11/25/2020,,
Bnsf Railway Co.,Services,4889315,11/25/2020,,
Bnsf Railway Co.,Capital Purchases,3990.7,12/1/2020,,
Bnsf Railway Co.,Capital Purchases,98891.13,12/1/2020,,
Bnsf Railway Co.,Capital Purchases,78755.46,12/1/2020,,
Bnsf Railway Co.,Services,4032.99,12/22/2020,,
Bnsf Railway Co.,Capital Purchases,28502.86,12/23/2020,,
Bnsf Railway Co.,Capital Purchases,142769.66,12/23/2020,,
Bnsf Railway Co.,Services,327752.06,12/28/2020,,
Borislav Apostolov,Services,42.55,2/24/2020,,
Borislav Apostolov,Services,42.55,3/9/2020,,
Borkan & Scahill,Claims & Insurance,18151.3,1/2/2020,,
Borkan & Scahill,Claims & Insurance,5745,1/22/2020,,
Borkan & Scahill,Claims & Insurance,24225,1/28/2020,,
Borkan & Scahill,Claims & Insurance,19525,3/25/2020,,
Borkan & Scahill,Claims & Insurance,5805,6/4/2020,,
Borkan & Scahill,Services,12795,6/5/2020,,
Brabazon Pumpe Co.  Ltd.,Materials,15766,1/28/2020,,
Brabazon Pumpe Co.  Ltd.,Materials,6496,3/4/2020,,
Brabazon Pumpe Co.  Ltd.,Materials,1196.16,3/25/2020,,
Brabazon Pumpe Co.  Ltd.,Materials,15766,9/2/2020,,
Brabazon Pumpe Co.  Ltd.,Materials,1495.2,10/12/2020,,
Brabazon Pumpe Co.  Ltd.,Materials,458,10/26/2020,,
Brabazon Pumpe Co.  Ltd.,Materials,897.12,10/26/2020,,
Brabazon Pumpe Co.  Ltd.,Materials,15766,12/18/2020,,
Brad Methling,Services,46.4,1/13/2020,,
Brad Methling,Services,185.6,1/13/2020,,
Brad Methling,Services,95.12,1/13/2020,,
Brad Methling,Services,120.75,2/19/2020,,
Brad Methling,Services,82.8,3/23/2020,,
Brad Methling,Services,110.4,3/23/2020,,
Brad Methling,Services,92,4/13/2020,,
Brad Methling,Services,82.8,4/13/2020,,
Brad Methling,Services,73.6,4/13/2020,,
Brad Methling,Services,92,5/1/2020,,
Brad Methling,Services,12.65,6/24/2020,,
Brad Methling,Services,36.8,7/22/2020,,
Brad Methling,Services,25.3,7/22/2020,,
Brad Methling,Services,73.6,8/26/2020,,
Brad Methling,Services,12.65,8/26/2020,,
Brad Methling,Services,110.4,10/1/2020,,
Brad Methling,Services,147.2,10/14/2020,,
Brad Methling,Services,36.8,12/7/2020,,
Brad Methling,Services,110.4,12/16/2020,,
Bradford Systems Corp.,Capital Purchases,133702.77,10/12/2020,,
Brainstorm Strategy Group Inc.,Services,295,11/2/2020,,
Brenda McCollum,Services,68.02,4/13/2020,,
Brendan A. Stejskal,Services,210.54,1/15/2020,,
Brendan A. Stejskal,Services,312.23,1/21/2020,,
Brendan A. Stejskal,Services,596.85,2/25/2020,,
Brendan A. Stejskal,Services,293.83,3/11/2020,,
Brendan A. Stejskal,Services,296.7,3/26/2020,,
Brendan A. Stejskal,Services,287.85,4/9/2020,,
Brendan A. Stejskal,Services,559.48,5/11/2020,,
Brendan A. Stejskal,Services,178.83,5/20/2020,,
Brendan A. Stejskal,Services,288.08,6/5/2020,,
Brendan A. Stejskal,Services,230,6/22/2020,,
Brendan A. Stejskal,Services,293.83,7/1/2020,,
Brendan A. Stejskal,Services,275.43,7/22/2020,,
Brendan A. Stejskal,Services,306.48,8/17/2020,,
Brendan A. Stejskal,Services,112.13,8/26/2020,,
Brendan A. Stejskal,Services,448.51,10/1/2020,,
Brendan A. Stejskal,Services,266.8,10/8/2020,,
Brendan A. Stejskal,Services,224.25,11/18/2020,,
Brendan A. Stejskal,Services,200.1,12/9/2020,,
Brendan A. Stejskal,Services,221.38,12/17/2020,,
Brendan M. Ohara,Claims & Insurance,138.72,10/20/2020,,
Brendon Cotton,Services,177.48,1/8/2020,,
Brendon Cotton,Services,13.22,1/8/2020,,
Brendon Cotton,Services,285.2,4/7/2020,,
Brendon Cotton,Services,24.73,4/7/2020,,
Brendon Cotton,Services,340.63,8/3/2020,,
Brendon Cotton,Services,67.62,8/3/2020,,
Bresshenda Crudup,Services,73.6,3/16/2020,,
Bresshenda Crudup,Services,47.15,3/16/2020,,
Bresshenda Crudup,Services,193.2,4/20/2020,,
Brian Jay Reynolds,Services,226,8/24/2020,,
Brian Jay Reynolds,Services,508.5,8/31/2020,,
Brian Jay Reynolds,Services,791,9/24/2020,,
Brian R Borden,Services,86.25,7/16/2020,,
Brian Richards,Services,65.55,5/14/2020,,
Brian Richards,Services,21.85,6/8/2020,,
Brian Richards,Services,21.85,6/11/2020,,
Brian Richards,Services,52.9,9/9/2020,,
Brian Richards,Services,97.75,12/7/2020,,
"Bridgeport Pain Control Center, LTD",Claims & Insurance,475,1/27/2020,,
"Bridgeport Pain Control Center, LTD",Claims & Insurance,350,3/31/2020,,
Brittany Harvard,Services,283.96,1/8/2020,,
Brittany Harvard,Services,425.7,2/10/2020,,
Brittany Harvard,Services,21.66,3/11/2020,,
Brittany Harvard,Services,21.66,3/17/2020,,
Brittany Harvard,Services,264.09,4/8/2020,,
Brittany Harvard,Services,449.39,5/12/2020,,
Brittany Harvard,Services,432.86,6/12/2020,,
Brittany Harvard,Services,400.2,7/15/2020,,
Brittany Harvard,Services,152.95,10/1/2020,,
Brittany Harvard,Services,343.85,10/8/2020,,
Brittany Harvard,Services,64.4,11/23/2020,,
Brittany Harvard,Services,305.9,12/8/2020,,
Broadway Electric  Inc.,Capital Purchases,62098.33,7/1/2020,,
Broadway Electric  Inc.,Capital Purchases,149089.77,9/1/2020,,
Bruce  Marcheschi,Services,319.5,2/4/2020,,
Bruce  Marcheschi,Services,190,3/9/2020,,
Bruce  Marcheschi,Services,37.38,3/17/2020,,
Bruce  Marcheschi,Services,349.72,10/8/2020,,
Bruce Parisi MD,Claims & Insurance,500,1/21/2020,,
"Bullseye Engagement, LLC",Services,40425,12/22/2020,,
Bureau Veritas North America  Inc.,Services,2009.65,1/23/2020,,
Bureau Veritas North America  Inc.,Services,44.8,3/5/2020,,
Bureau Veritas North America  Inc.,Services,4021.51,3/5/2020,,
Bureau Veritas North America  Inc.,Capital Purchases,2803.81,7/30/2020,,
Bureau Veritas North America  Inc.,Capital Purchases,2164.47,8/3/2020,,
Bureau Veritas North America  Inc.,Capital Purchases,1649.6,8/3/2020,,
Bureau Veritas North America  Inc.,Capital Purchases,5391.93,8/27/2020,,
Bureau Veritas North America  Inc.,Services,3867.8,10/12/2020,,
Bureau Veritas North America  Inc.,Services,823.34,10/12/2020,,
Bureau Veritas North America  Inc.,Capital Purchases,1908.01,10/26/2020,,
Bureau Veritas North America  Inc.,Services,823.35,10/30/2020,,
Bureau Veritas North America  Inc.,Capital Purchases,1619.58,11/2/2020,,
Bureau Veritas North America  Inc.,Services,1497.35,11/2/2020,,
Bureau Veritas North America  Inc.,Services,892.89,11/2/2020,,
Burns & Mcdonnell Engineering Co.,Capital Purchases,16207.05,1/23/2020,,
Burns & Mcdonnell Engineering Co.,Capital Purchases,39195.03,2/3/2020,,
Burns & Mcdonnell Engineering Co.,Capital Purchases,18224.09,2/3/2020,,
Burns & Mcdonnell Engineering Co.,Capital Purchases,40668.7,8/27/2020,,
Burris Equipment Co.,Materials,3778.8,4/20/2020,,
Burris Equipment Co.,Rental Expense,3628.8,5/12/2020,,
Burris Equipment Co.,Rental Expense,1814,5/12/2020,,
Burris Equipment Co.,Materials,560.4,6/2/2020,,
Burris Equipment Co.,Materials,2308.8,6/2/2020,,
Burris Equipment Co.,Rental Expense,5443.2,8/28/2020,,
Burris Equipment Co.,Rental Expense,3628,8/28/2020,,
Burris Equipment Co.,Rental Expense,1814.4,9/23/2020,,
Burris Equipment Co.,Rental Expense,1814,9/30/2020,,
Burris Equipment Co.,Rental Expense,1814,10/15/2020,,
Burris Equipment Co.,Rental Expense,1814,11/9/2020,,
Burris Equipment Co.,Rental Expense,1814.4,11/17/2020,,
Burris Equipment Co.,Rental Expense,1814.4,11/23/2020,,
Burris Equipment Co.,Rental Expense,1814.4,12/2/2020,,
Buvanendran SC,Claims & Insurance,750,11/6/2020,,
Byron Weston,Claims & Insurance,69.79,7/9/2020,,
C & R Medical Group,Claims & Insurance,171,10/20/2020,,
Cadient LLC,Services,2872,1/7/2020,,
Cadient LLC,Services,2872,2/4/2020,,
Cadient LLC,Services,4140,3/3/2020,,
Cadient LLC,Services,3952,3/9/2020,,
Cadient LLC,Services,6602,4/8/2020,,
Cadient LLC,Services,2872,5/22/2020,,
Cadient LLC,Services,5744,6/3/2020,,
Cadient LLC,Services,2872,7/8/2020,,
Cadient LLC,Services,2872,8/7/2020,,
Cadient LLC,Services,2872,9/17/2020,,
Cadient LLC,Services,2872,10/7/2020,,
Cadient LLC,Services,2872,11/5/2020,,
Cadient LLC,Services,2872,12/9/2020,,
Calumet Harbor Lumber & Supplyco.,Materials,96348.87,1/3/2020,,
Calumet Harbor Lumber & Supplyco.,Materials,60947.68,8/26/2020,,
Calumet Harbor Lumber & Supplyco.,Materials,517.2,11/3/2020,,
Calumet Harbor Lumber & Supplyco.,Materials,364,11/4/2020,,
Calumet Harbor Lumber & Supplyco.,Materials,268.8,11/19/2020,,
Calumet Harbor Lumber & Supplyco.,Materials,6472.32,12/8/2020,,
Calumet Harbor Lumber & Supplyco.,Materials,102547.8,12/23/2020,,
Calumet Lift Truck Service Co. Inc.,Services,610,7/31/2020,,
Calumet Lift Truck Service Co. Inc.,Services,2200,8/26/2020,,
Calumet Lift Truck Service Co. Inc.,Services,2390,11/18/2020,,
Calumet Testing Services,Services,6400,1/21/2020,,
Canadian National Railroad,Services,267046.67,1/7/2020,,
Canadian National Railroad,Services,17649.08,1/8/2020,,
Canadian National Railroad,Services,141198.26,1/21/2020,,
Canadian National Railroad,Services,8541.21,1/28/2020,,
Canadian National Railroad,Services,57149.39,1/28/2020,,
Canadian National Railroad,Services,2558.48,2/3/2020,,
Canadian National Railroad,Services,3837.72,2/3/2020,,
Canadian National Railroad,Services,143756.74,2/7/2020,,
Canadian National Railroad,Services,215635.12,2/14/2020,,
Canadian National Railroad,Services,49006.02,2/21/2020,,
Canadian National Railroad,Services,357.44,3/2/2020,,
Canadian National Railroad,Services,143756.74,3/4/2020,,
Canadian National Railroad,Services,215635.12,3/4/2020,,
Canadian National Railroad,Services,143756.74,4/7/2020,,
Canadian National Railroad,Services,215635.12,4/7/2020,,
Canadian National Railroad,Services,591.72,4/24/2020,,
Canadian National Railroad,Services,71875.5,4/24/2020,,
Canadian National Railroad,Services,143756.74,5/6/2020,,
Canadian National Railroad,Services,215635.12,5/6/2020,,
Canadian National Railroad,Services,62541.01,5/20/2020,,
Canadian National Railroad,Services,143756.74,6/4/2020,,
Canadian National Railroad,Services,215635.12,6/4/2020,,
Canadian National Railroad,Services,71875.5,6/29/2020,,
Canadian National Railroad,Services,143756.74,7/8/2020,,
Canadian National Railroad,Services,704.1,7/8/2020,,
Canadian National Railroad,Services,215635.12,7/8/2020,,
Canadian National Railroad,Services,5235.71,7/9/2020,,
Canadian National Railroad,Services,316.05,7/21/2020,,
Canadian National Railroad,Services,143756.74,8/7/2020,,
Canadian National Railroad,Services,2590.9,8/7/2020,,
Canadian National Railroad,Services,215635.12,8/7/2020,,
Canadian National Railroad,Services,5883.79,9/1/2020,,
Canadian National Railroad,Services,6534.31,9/1/2020,,
Canadian National Railroad,Services,143756.74,9/4/2020,,
Canadian National Railroad,Services,215635.12,9/4/2020,,
Canadian National Railroad,Services,143756.74,10/6/2020,,
Canadian National Railroad,Services,215635.12,10/6/2020,,
Canadian National Railroad,Services,143756.74,11/11/2020,,
Canadian National Railroad,Services,215635.12,11/11/2020,,
Canadian National Railroad,Services,54762.29,11/24/2020,,
Canadian National Railroad,Services,55540.15,12/2/2020,,
Canadian National Railroad,Services,143756.74,12/7/2020,,
Canadian National Railroad,Services,215635.12,12/7/2020,,
Canadian Pacific Railway Co.,Services,91394.58,1/8/2020,,
Canadian Pacific Railway Co.,Services,94647.36,2/14/2020,,
Canadian Pacific Railway Co.,Services,94219.16,3/5/2020,,
Canadian Pacific Railway Co.,Services,87807.04,3/16/2020,,
Canadian Pacific Railway Co.,Services,93475.71,5/26/2020,,
Canadian Pacific Railway Co.,Services,91133.76,5/26/2020,,
Canadian Pacific Railway Co.,Services,93736.54,7/29/2020,,
Canadian Pacific Railway Co.,Services,184850.78,9/8/2020,,
Canadian Pacific Railway Co.,Services,92232.69,12/9/2020,,
Canete Medina Consulting Group Inc.,Services,62902.88,2/3/2020,,
"Cannon Cochran Management Services, Inc.",Claims & Insurance,1000,10/13/2020,,
"Cannon Cochran Management Services, Inc.",Claims & Insurance,1165,10/13/2020,,
Canon Solutions America  Inc.,Services,1728.73,1/3/2020,,
Canon Solutions America  Inc.,Services,79.12,1/23/2020,,
Canon Solutions America  Inc.,Services,1651.32,2/11/2020,,
Canon Solutions America  Inc.,Services,79.12,2/20/2020,,
Canon Solutions America  Inc.,Services,3304.93,2/21/2020,,
Canon Solutions America  Inc.,Services,79.12,3/12/2020,,
Canon Solutions America  Inc.,Services,1651.74,3/17/2020,,
Canon Solutions America  Inc.,Services,1724.11,4/13/2020,,
Canteen Refreshment Services,Materials,217.55,1/2/2020,,
Canteen Refreshment Services,Materials,67.8,1/8/2020,,
Canteen Refreshment Services,Materials,55.08,2/3/2020,,
Canteen Refreshment Services,Services,80,3/4/2020,,
Canteen Refreshment Services,Materials,182.05,3/9/2020,,
Canteen Refreshment Services,Materials,180.94,3/11/2020,,
Canteen Refreshment Services,Materials,85,8/17/2020,,
Canteen Refreshment Services,Materials,948.68,12/2/2020,,
Canton Drop Forge Inc.,Capital Purchases,17391,2/3/2020,,
Canton Drop Forge Inc.,Materials,5797,2/3/2020,,
Capricorn Communications,Services,4250,1/8/2020,,
Capricorn Communications,Services,4250,2/11/2020,,
Capricorn Communications,Services,4250,3/17/2020,,
Capricorn Communications,Services,4250,4/7/2020,,
Capricorn Communications,Services,4250,6/3/2020,,
Capricorn Communications,Services,4250,6/8/2020,,
Capricorn Communications,Services,4250,7/13/2020,,
Capricorn Communications,Services,4250,8/25/2020,,
Capricorn Communications,Services,4250,9/29/2020,,
Capricorn Communications,Services,4250,11/17/2020,,
Capricorn Communications,Services,4250,11/23/2020,,
Capricorn Communications,Services,4250,12/28/2020,,
Cardinal Colorprint,Services,2967.5,1/2/2020,,
Cardinal Colorprint,Services,5067.5,1/2/2020,,
Cardinal Colorprint,Services,28140,1/2/2020,,
Cardinal Colorprint,Services,3367.5,1/13/2020,,
Cardinal Colorprint,Services,6982.5,2/3/2020,,
Cardinal Colorprint,Services,3858.75,2/18/2020,,
Cardinal Colorprint,Services,6693.75,2/18/2020,,
Cardinal Colorprint,Services,2756.25,4/16/2020,,
Cardinal Colorprint,Services,377.5,9/16/2020,,
Cardinal Colorprint,Services,2750,9/16/2020,,
Cardinal Colorprint,Services,3180,10/20/2020,,
Carl E. Clark,Services,6.06,2/3/2020,,
Carlos A. Del Toro,Services,65.55,2/24/2020,,
Carlos A. Del Toro,Services,218.5,3/23/2020,,
Carlos A. Del Toro,Services,46,4/8/2020,,
Carlos A. Del Toro,Services,23.58,4/23/2020,,
Carlos A. Del Toro,Services,248.4,5/12/2020,,
Carlos A. Del Toro,Services,62.1,5/28/2020,,
Carlos A. Del Toro,Services,79.64,7/22/2020,,
Carlos A. Del Toro,Services,62.1,8/12/2020,,
Carlos A. Del Toro,Services,47.61,10/1/2020,,
Carlos A. Del Toro,Services,83.26,11/18/2020,,
Carlos Lazaro,Services,197.78,1/21/2020,,
Carlos Lazaro,Services,79.12,1/21/2020,,
Carlos Lazaro,Services,116.26,12/7/2020,,
Carlos Lazaro,Services,271.18,12/16/2020,,
Carmichael Leasing Co.  Inc.,Services,8344.38,1/2/2020,,
Carmichael Leasing Co.  Inc.,Services,314.82,1/23/2020,,
Carmichael Leasing Co.  Inc.,Services,9465.67,1/27/2020,,
Carmichael Leasing Co.  Inc.,Services,6045.01,1/28/2020,,
Carmichael Leasing Co.  Inc.,Services,5741.66,2/3/2020,,
Carmichael Leasing Co.  Inc.,Services,3200.97,2/3/2020,,
Carmichael Leasing Co.  Inc.,Services,40.6,2/3/2020,,
Carmichael Leasing Co.  Inc.,Services,4584.49,2/4/2020,,
Carmichael Leasing Co.  Inc.,Services,481.5,2/13/2020,,
Carmichael Leasing Co.  Inc.,Services,3002.17,2/26/2020,,
Carmichael Leasing Co.  Inc.,Services,16055.46,3/3/2020,,
Carmichael Leasing Co.  Inc.,Services,2719.52,3/4/2020,,
Carmichael Leasing Co.  Inc.,Services,406.88,3/12/2020,,
Carmichael Leasing Co.  Inc.,Services,1898.8,3/19/2020,,
Carmichael Leasing Co.  Inc.,Services,2859.27,3/25/2020,,
Carmichael Leasing Co.  Inc.,Services,406,3/25/2020,,
Carmichael Leasing Co.  Inc.,Services,1751.97,4/8/2020,,
Carmichael Leasing Co.  Inc.,Services,487.2,4/27/2020,,
Carmichael Leasing Co.  Inc.,Services,203,4/28/2020,,
Carmichael Leasing Co.  Inc.,Services,4591.12,5/4/2020,,
Carmichael Leasing Co.  Inc.,Services,5092.07,5/13/2020,,
Carmichael Leasing Co.  Inc.,Services,3305.89,5/18/2020,,
Carmichael Leasing Co.  Inc.,Services,4057.39,5/20/2020,,
Carmichael Leasing Co.  Inc.,Services,12914.52,6/2/2020,,
Carmichael Leasing Co.  Inc.,Services,3514.71,6/25/2020,,
Carmichael Leasing Co.  Inc.,Services,3290.1,7/22/2020,,
Carmichael Leasing Co.  Inc.,Services,3915.8,7/29/2020,,
Carmichael Leasing Co.  Inc.,Services,1907.42,8/11/2020,,
Carmichael Leasing Co.  Inc.,Services,251.21,8/14/2020,,
Carmichael Leasing Co.  Inc.,Services,10918.21,8/26/2020,,
Carmichael Leasing Co.  Inc.,Services,40.6,8/26/2020,,
Carmichael Leasing Co.  Inc.,Services,15938.81,9/16/2020,,
Carmichael Leasing Co.  Inc.,Services,4017.58,9/17/2020,,
Carmichael Leasing Co.  Inc.,Services,5888.12,10/5/2020,,
Carmichael Leasing Co.  Inc.,Services,9176.8,10/23/2020,,
Carmichael Leasing Co.  Inc.,Services,371.42,10/23/2020,,
Carmichael Leasing Co.  Inc.,Services,320,11/5/2020,,
Carmichael Leasing Co.  Inc.,Services,1150.8,12/9/2020,,
Carnow  Conibear & Assoc.  Ltd.,Services,1025,1/9/2020,,
Carnow  Conibear & Assoc.  Ltd.,Services,9775,2/6/2020,,
Carnow  Conibear & Assoc.  Ltd.,Services,1500,3/31/2020,,
Carnow  Conibear & Assoc.  Ltd.,Services,3473.5,4/2/2020,,
Carnow  Conibear & Assoc.  Ltd.,Services,3077.53,4/2/2020,,
Carnow  Conibear & Assoc.  Ltd.,Services,3799.46,4/21/2020,,
Carnow  Conibear & Assoc.  Ltd.,Services,4250,5/4/2020,,
Carnow  Conibear & Assoc.  Ltd.,Services,890,6/11/2020,,
Carnow  Conibear & Assoc.  Ltd.,Services,2062.23,7/29/2020,,
Carnow  Conibear & Assoc.  Ltd.,Services,3368.75,11/18/2020,,
Carnow  Conibear & Assoc.  Ltd.,Services,7525,11/23/2020,,
Carnow  Conibear & Assoc.  Ltd.,Services,1313.86,12/1/2020,,
Carnow  Conibear & Assoc.  Ltd.,Services,835,12/1/2020,,
Carnow  Conibear & Assoc.  Ltd.,Services,1139.62,12/9/2020,,
Carolyn R. King,Services,169.05,5/15/2020,,
Carolyn R. King,Services,217.35,5/15/2020,,
Casimir J Sieronski,Services,88,1/3/2020,,
Casimir J Sieronski,Services,34,1/15/2020,,
Casimir J Sieronski,Services,33.5,1/28/2020,,
Casimir J Sieronski,Services,27,2/19/2020,,
Casimir J Sieronski,Services,53.5,2/25/2020,,
Casimir J Sieronski,Services,49,3/17/2020,,
Casimir J Sieronski,Services,57.5,3/26/2020,,
Cassondra Rodriguez,Services,94.3,4/24/2020,,
Cassondra Rodriguez,Services,18.86,5/14/2020,,
Cassondra Rodriguez,Services,18.86,5/14/2020,,
Cassondra Rodriguez,Services,56.58,7/15/2020,,
Cassondra Rodriguez,Services,94.3,8/3/2020,,
Cassondra Rodriguez,Services,150.88,8/24/2020,,
Cassondra Rodriguez,Services,37.72,9/24/2020,,
Cassondra Rodriguez,Services,18.86,9/24/2020,,
Cassondra Rodriguez,Services,18.86,10/14/2020,,
Cavalry Fire Protection Svc. LLC,Materials,97,1/2/2020,,
Cavalry Fire Protection Svc. LLC,Services,315,1/2/2020,,
Cavalry Fire Protection Svc. LLC,Services,2525,1/2/2020,,
Cavalry Fire Protection Svc. LLC,Services,197,1/2/2020,,
Cavalry Fire Protection Svc. LLC,Services,638,1/6/2020,,
Cavalry Fire Protection Svc. LLC,Services,1588.5,1/21/2020,,
Cavalry Fire Protection Svc. LLC,Services,1097,1/21/2020,,
Cavalry Fire Protection Svc. LLC,Services,888.5,2/11/2020,,
Cavalry Fire Protection Svc. LLC,Services,1057.5,2/21/2020,,
Cavalry Fire Protection Svc. LLC,Services,805.5,2/21/2020,,
Cavalry Fire Protection Svc. LLC,Services,297,2/26/2020,,
Cavalry Fire Protection Svc. LLC,Services,376.5,3/10/2020,,
Cavalry Fire Protection Svc. LLC,Services,2872.5,3/13/2020,,
Cavalry Fire Protection Svc. LLC,Materials,70,3/23/2020,,
Cavalry Fire Protection Svc. LLC,Materials,70,3/23/2020,,
Cavalry Fire Protection Svc. LLC,Services,649.5,3/23/2020,,
Cavalry Fire Protection Svc. LLC,Services,333,3/23/2020,,
Cavalry Fire Protection Svc. LLC,Services,520,3/23/2020,,
Cavalry Fire Protection Svc. LLC,Services,404,3/24/2020,,
Cavalry Fire Protection Svc. LLC,Services,160,3/25/2020,,
Cavalry Fire Protection Svc. LLC,Services,230,3/25/2020,,
Cavalry Fire Protection Svc. LLC,Services,362.5,4/7/2020,,
Cavalry Fire Protection Svc. LLC,Services,550,4/13/2020,,
Cavalry Fire Protection Svc. LLC,Services,945,4/13/2020,,
Cavalry Fire Protection Svc. LLC,Services,3143,4/13/2020,,
Cavalry Fire Protection Svc. LLC,Services,1601,4/15/2020,,
Cavalry Fire Protection Svc. LLC,Services,357,5/6/2020,,
Cavalry Fire Protection Svc. LLC,Services,545,5/7/2020,,
Cavalry Fire Protection Svc. LLC,Services,806,5/11/2020,,
Cavalry Fire Protection Svc. LLC,Services,116,5/11/2020,,
Cavalry Fire Protection Svc. LLC,Services,530,5/11/2020,,
Cavalry Fire Protection Svc. LLC,Services,975,6/4/2020,,
Cavalry Fire Protection Svc. LLC,Services,898.5,6/8/2020,,
Cavalry Fire Protection Svc. LLC,Services,399,6/8/2020,,
Cavalry Fire Protection Svc. LLC,Services,194,6/30/2020,,
Cavalry Fire Protection Svc. LLC,Services,305,7/13/2020,,
Cavalry Fire Protection Svc. LLC,Services,345,7/15/2020,,
Cavalry Fire Protection Svc. LLC,Services,86,8/14/2020,,
Cavalry Fire Protection Svc. LLC,Services,385,8/14/2020,,
Cavalry Fire Protection Svc. LLC,Services,528.5,8/14/2020,,
Cavalry Fire Protection Svc. LLC,Services,460,8/14/2020,,
Cavalry Fire Protection Svc. LLC,Services,527,8/14/2020,,
Cavalry Fire Protection Svc. LLC,Materials,580,9/17/2020,,
Cavalry Fire Protection Svc. LLC,Services,132,9/17/2020,,
Cavalry Fire Protection Svc. LLC,Services,158,9/17/2020,,
Cavalry Fire Protection Svc. LLC,Services,296,9/18/2020,,
Cavalry Fire Protection Svc. LLC,Services,509,10/21/2020,,
Cavalry Fire Protection Svc. LLC,Services,263,10/23/2020,,
Cavalry Fire Protection Svc. LLC,Materials,1525,11/11/2020,,
Cavalry Fire Protection Svc. LLC,Services,479,11/11/2020,,
Cavalry Fire Protection Svc. LLC,Services,321,11/11/2020,,
Cavalry Fire Protection Svc. LLC,Services,8158,11/11/2020,,
Cavalry Fire Protection Svc. LLC,Services,244,11/19/2020,,
Cavalry Fire Protection Svc. LLC,Services,4078,12/1/2020,,
Cavalry Fire Protection Svc. LLC,Services,1884,12/9/2020,,
Cavalry Fire Protection Svc. LLC,Services,241,12/9/2020,,
Cbre  Inc.,Services,1600,7/15/2020,,
Cbre  Inc.,Services,3000,7/23/2020,,
Cbre  Inc.,Services,3000,9/24/2020,,
Cbt Nuggets Llc,Services,2995,10/5/2020,,
CCF Engineering,Materials,1919.96,10/1/2020,,
CDECI,Materials,17202.43,1/2/2020,,
CDECI,Materials,2073.1,1/6/2020,,
CDECI,Services,36267,1/6/2020,,
CDECI,Materials,1291.48,1/27/2020,,
CDECI,Services,13036,1/27/2020,,
CDECI,Materials,685.55,2/3/2020,,
CDECI,Services,13960,2/3/2020,,
CDECI,Materials,8763.66,2/27/2020,,
CDECI,Materials,2557.43,3/2/2020,,
CDECI,Services,15630,3/2/2020,,
CDECI,Materials,1601.93,3/23/2020,,
CDECI,Services,14988,3/23/2020,,
CDECI,Materials,3639.4,3/30/2020,,
CDECI,Services,14560,3/30/2020,,
CDECI,Materials,344.09,5/1/2020,,
CDECI,Materials,1780.52,5/1/2020,,
CDECI,Services,14988,5/1/2020,,
CDECI,Services,12804,5/1/2020,,
CDECI,Materials,6808.95,5/28/2020,,
CDECI,Materials,5157.05,6/1/2020,,
CDECI,Services,28702,6/1/2020,,
CDECI,Materials,1336.34,6/26/2020,,
CDECI,Services,14806,6/26/2020,,
CDECI,Services,12504,7/9/2020,,
CDECI,Materials,1545.12,7/29/2020,,
CDECI,Services,14560,7/29/2020,,
CDECI,Materials,1745.65,8/17/2020,,
CDECI,Services,26090,8/17/2020,,
CDECI,Materials,11521.75,9/18/2020,,
CDECI,Services,29568,9/18/2020,,
CDECI,Materials,3231.64,10/23/2020,,
CDECI,Services,30824,10/23/2020,,
CDECI,Materials,3552.04,12/1/2020,,
CDECI,Services,16624,12/1/2020,,
CDECI,Materials,571.6,12/9/2020,,
CDECI,Services,14720,12/9/2020,,
Cdm Smith  Inc.,Capital Purchases,11266.66,3/9/2020,,
Cdm Smith  Inc.,Capital Purchases,14674.73,3/12/2020,,
Cdm Smith  Inc.,Capital Purchases,64298.12,6/9/2020,,
Cdm Smith  Inc.,Services,15805.77,6/9/2020,,
Cdm Smith  Inc.,Capital Purchases,26709,9/23/2020,,
Cdm Smith  Inc.,Capital Purchases,2967.01,12/1/2020,,
CDW Government  LLC,Materials,38.6,1/2/2020,,
CDW Government  LLC,Services,4612.7,1/6/2020,,
CDW Government  LLC,Services,1174203.79,1/6/2020,,
CDW Government  LLC,Capital Purchases,1088,1/28/2020,,
CDW Government  LLC,Services,21979,4/7/2020,,
CDW Government  LLC,Services,28150.54,4/23/2020,,
CDW Government  LLC,Materials,212.64,5/11/2020,,
CDW Government  LLC,Capital Purchases,1632,5/13/2020,,
CDW Government  LLC,Capital Purchases,544,5/13/2020,,
CDW Government  LLC,Materials,1088,5/13/2020,,
CDW Government  LLC,Capital Purchases,544,5/14/2020,,
CDW Government  LLC,Capital Purchases,2720,5/22/2020,,
CDW Government  LLC,Capital Purchases,544,5/22/2020,,
CDW Government  LLC,Capital Purchases,1632,6/4/2020,,
CDW Government  LLC,Capital Purchases,544,6/17/2020,,
CDW Government  LLC,Capital Purchases,1088,10/5/2020,,
CDW Government  LLC,Services,8949.9,10/28/2020,,
CDW Government  LLC,Capital Purchases,1632,11/19/2020,,
CDW Government  LLC,Capital Purchases,10409.4,12/9/2020,,
Cedric L Smith,Services,170.2,6/26/2020,,
Cedric L Smith,Services,170.2,7/1/2020,,
Celeste Industries Corp.,Materials,1140,5/20/2020,,
Celeste Industries Corp.,Materials,242,8/26/2020,,
Central DuPage Physician Group,Claims & Insurance,500,8/26/2020,,
Central DuPage Physician Group,Claims & Insurance,500,8/26/2020,,
Central Sales & Service Inc.,Materials,258.04,1/16/2020,,
Central Sales & Service Inc.,Materials,297.6,5/19/2020,,
Central Sales & Service Inc.,Materials,248,6/2/2020,,
Central Sales & Service Inc.,Materials,258.04,11/4/2020,,
Central Sales & Service Inc.,Materials,322.55,11/6/2020,,
Central Sales & Service Inc.,Materials,206.4,11/11/2020,,
Central Sales & Service Inc.,Materials,1912.5,12/2/2020,,
Central Sales & Service Inc.,Materials,125,12/2/2020,,
Certified Fleet Services  Inc.,Services,388,2/4/2020,,
Certified Fleet Services  Inc.,Services,3872.18,2/26/2020,,
Certified Fleet Services  Inc.,Services,435,2/26/2020,,
Certified Fleet Services  Inc.,Services,3241.6,3/3/2020,,
Certified Fleet Services  Inc.,Services,9.3,3/3/2020,,
Certified Fleet Services  Inc.,Services,575,3/3/2020,,
Certified Fleet Services  Inc.,Services,18328.55,3/4/2020,,
Certified Fleet Services  Inc.,Services,483.1,3/4/2020,,
Certified Fleet Services  Inc.,Services,3682.69,3/5/2020,,
Certified Fleet Services  Inc.,Services,52.47,3/5/2020,,
Certified Fleet Services  Inc.,Services,575,3/5/2020,,
Certified Fleet Services  Inc.,Services,7473.27,3/13/2020,,
Certified Fleet Services  Inc.,Services,30.14,3/13/2020,,
Certified Fleet Services  Inc.,Services,575,3/13/2020,,
Certified Fleet Services  Inc.,Services,10688.16,4/20/2020,,
Certified Fleet Services  Inc.,Services,211.69,4/20/2020,,
Certified Fleet Services  Inc.,Services,575,4/20/2020,,
Certified Fleet Services  Inc.,Services,10732.22,6/2/2020,,
Certified Fleet Services  Inc.,Services,56.95,6/2/2020,,
Certified Fleet Services  Inc.,Services,575,6/2/2020,,
Certified Fleet Services  Inc.,Services,3785,7/1/2020,,
Certified Fleet Services  Inc.,Services,10084.51,7/6/2020,,
Certified Fleet Services  Inc.,Services,18.47,7/6/2020,,
Certified Fleet Services  Inc.,Services,435,7/6/2020,,
Certified Fleet Services  Inc.,Services,690.39,7/8/2020,,
Certified Fleet Services  Inc.,Services,9.63,7/8/2020,,
Certified Fleet Services  Inc.,Services,6027.02,8/14/2020,,
Certified Fleet Services  Inc.,Services,71.05,8/14/2020,,
Certified Fleet Services  Inc.,Services,400,8/14/2020,,
Certified Fleet Services  Inc.,Services,436.5,8/26/2020,,
Certified Fleet Services  Inc.,Services,2605.04,9/18/2020,,
Certified Fleet Services  Inc.,Services,30.04,9/18/2020,,
Certified Fleet Services  Inc.,Services,400,9/18/2020,,
Certified Fleet Services  Inc.,Services,11311.59,11/5/2020,,
Certified Fleet Services  Inc.,Services,146.01,11/5/2020,,
Certified Fleet Services  Inc.,Services,975,11/5/2020,,
Certified Languages International,Services,104.4,1/21/2020,,
Certified Languages International,Services,67.5,2/3/2020,,
Certified Languages International,Services,81,2/11/2020,,
Certified Languages International,Services,846,2/13/2020,,
Certified Languages International,Services,25.2,7/22/2020,,
Certified Languages International,Services,227.7,7/31/2020,,
Certified Languages International,Services,6.3,9/28/2020,,
Chad C. Meyers,Services,216.2,4/16/2020,,
Chad C. Meyers,Services,62.1,4/16/2020,,
Chad C. Meyers,Services,128.8,4/16/2020,,
Chaleda Caldwell-Tate,Claims & Insurance,2000,5/22/2020,,
Chandler Services  Inc.,Services,1673.13,2/6/2020,,
Charles A. Wilson,Services,62.1,5/22/2020,,
Charles A. Wilson,Services,46,6/22/2020,,
Charles A. Wilson,Services,62.1,6/22/2020,,
Charles A. Wilson,Services,62.1,8/26/2020,,
Charles A. Wilson,Services,36.8,12/7/2020,,
Charles Henry,Services,565,8/24/2020,,
Charles Henry,Services,678,8/27/2020,,
Charles Henry,Services,565,10/2/2020,,
Charles Henry,Services,452,10/5/2020,,
Charles J. Harrison,Services,3,1/8/2020,,
Charles J. Harrison,Services,41.25,1/8/2020,,
Chas A Arce,Services,106.95,2/20/2020,,
Chas A Arce,Services,189.75,2/20/2020,,
Chas A Arce,Services,106.95,2/24/2020,,
Chas A Arce,Services,190.07,2/24/2020,,
Chas A Arce,Services,12.65,3/4/2020,,
Chas A Arce,Services,25.3,3/4/2020,,
Chas A Arce,Services,119.6,4/20/2020,,
Chas A Arce,Services,36.8,4/20/2020,,
"Checkfluid, Inc",Materials,473.9,1/3/2020,,
"Checkfluid, Inc",Services,9.83,1/3/2020,,
"Checkfluid, Inc",Materials,450,3/2/2020,,
"Checkfluid, Inc",Materials,35.01,3/2/2020,,
"Checkfluid, Inc",Materials,900,5/1/2020,,
"Checkfluid, Inc",Materials,34.87,5/1/2020,,
"Checkfluid, Inc",Materials,305.55,6/3/2020,,
"Checkfluid, Inc",Materials,11.02,6/3/2020,,
"Checkfluid, Inc",Materials,34.6,6/5/2020,,
"Checkfluid, Inc",Materials,11.19,6/5/2020,,
"Checkfluid, Inc",Materials,34.6,6/8/2020,,
"Checkfluid, Inc",Materials,600,6/15/2020,,
"Checkfluid, Inc",Materials,450,6/15/2020,,
"Checkfluid, Inc",Materials,24.74,6/15/2020,,
"Checkfluid, Inc",Materials,24.84,6/15/2020,,
"Checkfluid, Inc",Materials,1818.25,6/17/2020,,
"Checkfluid, Inc",Materials,16.42,6/17/2020,,
"Checkfluid, Inc",Materials,360,8/14/2020,,
"Checkfluid, Inc",Services,23.31,8/14/2020,,
"Checkfluid, Inc",Materials,831.9,9/17/2020,,
"Checkfluid, Inc",Materials,1350,10/5/2020,,
"Checkfluid, Inc",Materials,600,10/6/2020,,
Chem & Consult  Inc.,Materials,1867.8,2/11/2020,,
Chem & Consult  Inc.,Materials,1867.8,4/23/2020,,
Chem & Consult  Inc.,Materials,1867.8,9/18/2020,,
Cherie J. Kizer,Services,26.11,3/17/2020,,
Cheryl Thomas,Services,47.78,7/10/2020,,
Chicago Bar Assn.,Services,376,8/25/2020,,
Chicago Jack Service  Inc.,Materials,2571.03,1/21/2020,,
Chicago Jack Service  Inc.,Materials,1175,1/21/2020,,
Chicago Metal Maintenance  Inc.,Services,610,1/21/2020,,
Chicago Metal Maintenance  Inc.,Services,610,2/18/2020,,
Chicago Metal Maintenance  Inc.,Services,610,3/20/2020,,
Chicago Metal Maintenance  Inc.,Services,610,4/20/2020,,
Chicago Metal Maintenance  Inc.,Services,610,5/22/2020,,
Chicago Metal Maintenance  Inc.,Services,960,5/26/2020,,
Chicago Metal Maintenance  Inc.,Services,610,6/29/2020,,
Chicago Metal Maintenance  Inc.,Services,610,7/23/2020,,
Chicago Metal Maintenance  Inc.,Services,610,8/26/2020,,
Chicago Metal Maintenance  Inc.,Services,615,10/5/2020,,
Chicago Metal Maintenance  Inc.,Services,615,10/23/2020,,
Chicago Metal Maintenance  Inc.,Services,615,12/2/2020,,
Chicago Parts & Sound  Llc. Dba Police Department Systems,Services,3640,12/2/2020,,
Chicago Pipe Bending & Coil Company,Materials,500.04,1/23/2020,,
Chicago Pipe Bending & Coil Company,Services,21.48,1/23/2020,,
Chicago Pipe Bending & Coil Company,Materials,562.2,4/1/2020,,
Chicago Pipe Bending & Coil Company,Services,36.64,4/1/2020,,
Chicago Railroad Supply Inc.,Materials,228,2/19/2020,,
Chicago Railroad Supply Inc.,Materials,11172,3/11/2020,,
Chicago Railroad Supply Inc.,Materials,9900,3/16/2020,,
"Chicago Scaffolding, Inc.",Capital Purchases,12750,1/16/2020,,
Chicago South Suburban Mass Transit District,Capital Purchases,6476.34,9/23/2020,,
Chicago Spence Tool & Rubber Co.,Materials,426.15,3/25/2020,,
Chicago Spence Tool & Rubber Co.,Materials,568.2,8/26/2020,,
Chicago Sun-Times,Services,517.76,2/7/2020,,
Chicago Tire Inc.,Services,80.5,2/11/2020,,
Chicago Tire Inc.,Services,1751.48,2/18/2020,,
Chicago Tire Inc.,Services,56308,2/27/2020,,
Chicago Tire Inc.,Services,2604,3/2/2020,,
Chicago Tire Inc.,Services,105,7/8/2020,,
Chicago Tire Inc.,Services,1292,8/14/2020,,
Chicago Tire Inc.,Services,1192,8/14/2020,,
Chicago Title & Trust Co.,Capital Purchases,335000,10/28/2020,,
Chicago Transit Authority,Services,78446.5,1/24/2020,,
Chicago Transit Authority,Services,87188.75,2/24/2020,,
Chicago Transit Authority,Services,86253.75,3/23/2020,,
Chicago Transit Authority,Services,84711,4/28/2020,,
Chicago Transit Authority,Services,19962.25,5/27/2020,,
Chicago Transit Authority,Services,54848,6/8/2020,,
Chicago Transit Authority,Services,6545,6/29/2020,,
Chicago Transit Authority,Services,5890.5,7/20/2020,,
Chicago Transit Authority,Services,6872.25,8/24/2020,,
Chicago Transit Authority,Services,6545,9/16/2020,,
Chicago Transit Authority,Services,6825.5,10/13/2020,,
Chicago Transit Authority,Services,11220,11/25/2020,,
Chicago Transit Authority,Services,5797,12/23/2020,,
Chicago Tribune,Services,504.85,6/30/2020,,
Chicago Tribune,Services,364,10/30/2020,,
Chicago United Industries  Ltd.,Materials,1438,1/2/2020,,
Chicago United Industries  Ltd.,Materials,229,1/2/2020,,
Chicago United Industries  Ltd.,Materials,753,1/2/2020,,
Chicago United Industries  Ltd.,Materials,229,4/1/2020,,
Chicago United Industries  Ltd.,Materials,1837,5/1/2020,,
Chicago United Industries  Ltd.,Materials,815.85,5/12/2020,,
Chicago United Industries  Ltd.,Materials,269,5/12/2020,,
Chicago United Industries  Ltd.,Materials,178,5/15/2020,,
Chicago United Industries  Ltd.,Materials,769,6/1/2020,,
Chicago United Industries  Ltd.,Materials,914,6/1/2020,,
Chicago United Industries  Ltd.,Materials,271.95,7/22/2020,,
Chicago United Industries  Ltd.,Materials,215,7/22/2020,,
Chicago United Industries  Ltd.,Materials,1906.6,7/30/2020,,
Chicago United Industries  Ltd.,Materials,4310.6,7/31/2020,,
Chicago United Industries  Ltd.,Materials,1087.8,8/5/2020,,
Chicago United Industries  Ltd.,Materials,779,8/14/2020,,
Chicago United Industries  Ltd.,Materials,189,11/2/2020,,
Chicago United Industries  Ltd.,Materials,984,11/2/2020,,
Chicago United Industries  Ltd.,Materials,2059,11/4/2020,,
Chicago United Industries  Ltd.,Materials,1837,12/2/2020,,
Chicago United Industries  Ltd.,Materials,378,12/2/2020,,
Chicagoland Equipment Services,Services,1875.03,1/28/2020,,
Chicagoland Equipment Services,Services,552.25,2/4/2020,,
Chicagoland Equipment Services,Services,2398.11,2/20/2020,,
Chicagoland Equipment Services,Services,4637.01,3/5/2020,,
Chicagoland Equipment Services,Services,1672.61,5/18/2020,,
Chicagoland Equipment Services,Services,2611,6/2/2020,,
Chicagoland Equipment Services,Materials,13187.5,6/17/2020,,
Chicagoland Equipment Services,Materials,13187.5,6/17/2020,,
Chicagoland Equipment Services,Materials,13187.5,6/17/2020,,
Chicagoland Equipment Services,Materials,13187.5,6/17/2020,,
Chicagoland Equipment Services,Materials,1115.34,6/23/2020,,
Chicagoland Paving Contractors Inc.,Capital Purchases,55305.6,1/8/2020,,
Chicagoland Paving Contractors Inc.,Capital Purchases,11069.1,3/2/2020,,
Chicagoland Paving Contractors Inc.,Capital Purchases,59718.3,3/2/2020,,
Chicagoland Paving Contractors Inc.,Capital Purchases,19468.98,3/2/2020,,
Chicagoland Paving Contractors Inc.,Capital Purchases,79407.72,3/2/2020,,
Chicagoland Paving Contractors Inc.,Materials,2625,3/2/2020,,
Chicagoland Paving Contractors Inc.,Materials,7688.52,3/2/2020,,
Chicagoland Paving Contractors Inc.,Services,13738.92,3/2/2020,,
Chicagoland Paving Contractors Inc.,Capital Purchases,27099.21,4/17/2020,,
Chicagoland Paving Contractors Inc.,Capital Purchases,166981.02,7/1/2020,,
Chicagoland Paving Contractors Inc.,Capital Purchases,7415.13,7/10/2020,,
Chicagoland Paving Contractors Inc.,Capital Purchases,5638.73,7/10/2020,,
Chicagoland Paving Contractors Inc.,Capital Purchases,19408.32,7/22/2020,,
Chicagoland Paving Contractors Inc.,Capital Purchases,88323.87,7/23/2020,,
Chicagoland Paving Contractors Inc.,Capital Purchases,118654.71,7/29/2020,,
Chicagoland Paving Contractors Inc.,Capital Purchases,255703.1,8/4/2020,,
Chicagoland Paving Contractors Inc.,Capital Purchases,32627.45,8/5/2020,,
Chicagoland Paving Contractors Inc.,Capital Purchases,48741.68,8/10/2020,,
Chicagoland Paving Contractors Inc.,Capital Purchases,149877.58,9/17/2020,,
Chicagoland Paving Contractors Inc.,Capital Purchases,8090.86,9/18/2020,,
Chicagoland Paving Contractors Inc.,Capital Purchases,3305.25,9/18/2020,,
Chicagoland Paving Contractors Inc.,Services,17606.09,9/18/2020,,
Chicagoland Paving Contractors Inc.,Capital Purchases,42105.49,10/5/2020,,
Chicagoland Paving Contractors Inc.,Capital Purchases,60619.84,10/13/2020,,
Chicagoland Paving Contractors Inc.,Capital Purchases,38905.17,11/3/2020,,
Chicagoland Paving Contractors Inc.,Capital Purchases,11159.05,11/3/2020,,
Chicagoland Paving Contractors Inc.,Capital Purchases,31755.16,11/5/2020,,
Chicagoland Paving Contractors Inc.,Capital Purchases,28496.08,11/18/2020,,
Chicagoland Paving Contractors Inc.,Capital Purchases,32152.53,12/1/2020,,
Chicagoland Paving Contractors Inc.,Capital Purchases,85694.15,12/1/2020,,
Chicagoland Paving Contractors Inc.,Capital Purchases,20415.6,12/9/2020,,
Chicagoland Paving Contractors Inc.,Capital Purchases,34257.35,12/23/2020,,
Chicagoland Truck Parts LLC,Materials,31.2,1/2/2020,,
Chicagoland Truck Parts LLC,Materials,138.24,1/13/2020,,
Chicagoland Truck Parts LLC,Materials,57.6,1/16/2020,,
Chicagoland Truck Parts LLC,Materials,1033.25,1/21/2020,,
Chicagoland Truck Parts LLC,Materials,721.86,1/21/2020,,
Chicagoland Truck Parts LLC,Materials,141,2/3/2020,,
Chicagoland Truck Parts LLC,Materials,11674.12,2/3/2020,,
Chicagoland Truck Parts LLC,Materials,211.5,2/10/2020,,
Chicagoland Truck Parts LLC,Materials,1438.06,2/13/2020,,
Chicagoland Truck Parts LLC,Materials,348,2/18/2020,,
Chicagoland Truck Parts LLC,Materials,2378.04,2/18/2020,,
Chicagoland Truck Parts LLC,Materials,2171.01,2/19/2020,,
Chicagoland Truck Parts LLC,Materials,118.8,2/25/2020,,
Chicagoland Truck Parts LLC,Materials,78,3/2/2020,,
Chicagoland Truck Parts LLC,Materials,631,3/9/2020,,
Chicagoland Truck Parts LLC,Materials,3413.04,3/10/2020,,
Chicagoland Truck Parts LLC,Materials,3291.41,3/24/2020,,
Chicagoland Truck Parts LLC,Materials,184.5,3/30/2020,,
Chicagoland Truck Parts LLC,Materials,119.6,4/3/2020,,
Chicagoland Truck Parts LLC,Materials,246.96,4/8/2020,,
Chicagoland Truck Parts LLC,Materials,74.75,5/6/2020,,
Chicagoland Truck Parts LLC,Materials,5223.54,5/6/2020,,
Chicagoland Truck Parts LLC,Materials,3282.55,5/13/2020,,
Chicagoland Truck Parts LLC,Materials,32.85,5/26/2020,,
Chicagoland Truck Parts LLC,Materials,1548.08,5/26/2020,,
Chicagoland Truck Parts LLC,Materials,305.05,6/1/2020,,
Chicagoland Truck Parts LLC,Materials,4018.92,6/4/2020,,
Chicagoland Truck Parts LLC,Materials,1186.2,6/5/2020,,
Chicagoland Truck Parts LLC,Materials,492.72,6/11/2020,,
Chicagoland Truck Parts LLC,Materials,1880.35,6/11/2020,,
Chicagoland Truck Parts LLC,Materials,1292.48,6/15/2020,,
Chicagoland Truck Parts LLC,Materials,141,6/17/2020,,
Chicagoland Truck Parts LLC,Materials,1329.15,6/18/2020,,
Chicagoland Truck Parts LLC,Materials,155.7,6/22/2020,,
Chicagoland Truck Parts LLC,Materials,90.55,6/25/2020,,
Chicagoland Truck Parts LLC,Materials,1588.37,6/25/2020,,
Chicagoland Truck Parts LLC,Materials,351.95,6/29/2020,,
Chicagoland Truck Parts LLC,Materials,1761.8,7/9/2020,,
Chicagoland Truck Parts LLC,Materials,2365.06,7/9/2020,,
Chicagoland Truck Parts LLC,Materials,111.93,7/22/2020,,
Chicagoland Truck Parts LLC,Materials,1541.65,7/29/2020,,
Chicagoland Truck Parts LLC,Materials,7252.46,7/29/2020,,
Chicagoland Truck Parts LLC,Materials,24.75,7/30/2020,,
Chicagoland Truck Parts LLC,Materials,299.25,8/12/2020,,
Chicagoland Truck Parts LLC,Materials,174.3,8/14/2020,,
Chicagoland Truck Parts LLC,Materials,2046.39,8/19/2020,,
Chicagoland Truck Parts LLC,Materials,214.25,9/17/2020,,
Chicagoland Truck Parts LLC,Materials,4628.51,9/17/2020,,
Chicagoland Truck Parts LLC,Materials,3000,9/17/2020,,
Chicagoland Truck Parts LLC,Materials,189.75,9/18/2020,,
Chicagoland Truck Parts LLC,Materials,97,9/21/2020,,
Chicagoland Truck Parts LLC,Materials,83.4,10/2/2020,,
Chicagoland Truck Parts LLC,Materials,390,10/5/2020,,
Chicagoland Truck Parts LLC,Materials,5363.4,10/5/2020,,
Chicagoland Truck Parts LLC,Materials,804.04,10/22/2020,,
Chicagoland Truck Parts LLC,Materials,4296.51,10/22/2020,,
Chicagoland Truck Parts LLC,Materials,235,11/5/2020,,
Chicagoland Truck Parts LLC,Materials,4768.23,11/5/2020,,
Chicagoland Truck Parts LLC,Materials,60.45,11/6/2020,,
Chicagoland Truck Parts LLC,Materials,39,11/11/2020,,
Chicagoland Truck Parts LLC,Materials,64.75,12/2/2020,,
Chicagoland Truck Parts LLC,Materials,6349.28,12/2/2020,,
Chicagoland Truck Parts LLC,Materials,192,12/9/2020,,
Chicagoland Truck Parts LLC,Materials,6373.37,12/9/2020,,
Chris Rose,Services,109.25,6/23/2020,,
Chris Rose,Services,17.25,6/23/2020,,
Chris Rose,Services,109.25,12/9/2020,,
Christian Maxwell Ramos,Services,144.9,3/26/2020,,
Christopher B Burke Engineering,Services,1214.52,11/25/2020,,
Christopher P. Dorsey,Services,144.9,10/2/2020,,
Christopher P. Dorsey,Services,235.75,10/8/2020,,
Christopher P. Dorsey,Services,227.13,10/21/2020,,
Christopher P. Dorsey,Services,262.78,11/4/2020,,
Christopher P. Dorsey,Services,235.75,11/18/2020,,
Christopher P. Dorsey,Services,278.3,12/7/2020,,
Christopher P. Dorsey,Services,259.9,12/21/2020,,
Christy Webber & Co.,Services,1384,1/2/2020,,
Christy Webber & Co.,Materials,3715,6/18/2020,,
Christy Webber & Co.,Materials,6063,6/18/2020,,
Christy Webber & Co.,Services,9778,7/9/2020,,
Christy Webber & Co.,Services,7582,10/5/2020,,
Christy Webber & Co.,Services,11974,10/5/2020,,
Chrome Crankshaft Company LLC,Materials,7500,11/5/2020,,
Chrome Crankshaft Company LLC,Services,650,11/5/2020,,
Church & Fisher LLC,Claims & Insurance,145000,2/3/2020,,
Ciera Stipe,Services,36.8,2/19/2020,,
Ciera Stipe,Services,12.65,2/19/2020,,
Ciera Stipe,Services,12.65,2/19/2020,,
Ciera Stipe,Services,46,3/11/2020,,
Ciera Stipe,Services,73.6,3/11/2020,,
"CIOX Health, LLC",Claims & Insurance,48.08,1/16/2020,,
Cisco Systems,Services,2295,2/24/2020,,
City Of Blue Island,Utilities,151.8,1/15/2020,,
City Of Blue Island,Utilities,151.8,1/15/2020,,
City Of Blue Island,Utilities,20.24,1/15/2020,,
City Of Blue Island,Utilities,20.24,1/15/2020,,
City Of Blue Island,Utilities,151.8,1/15/2020,,
City Of Blue Island,Utilities,573.3,1/15/2020,,
City Of Blue Island,Utilities,20.24,1/15/2020,,
City Of Blue Island,Utilities,151.8,2/14/2020,,
City Of Blue Island,Utilities,151.8,2/14/2020,,
City Of Blue Island,Utilities,172.04,2/14/2020,,
City Of Blue Island,Utilities,20.24,2/14/2020,,
City Of Blue Island,Utilities,151.8,2/14/2020,,
City Of Blue Island,Utilities,421.5,2/14/2020,,
City Of Blue Island,Utilities,20.24,2/14/2020,,
City Of Blue Island,Utilities,151.8,3/13/2020,,
City Of Blue Island,Utilities,151.8,3/13/2020,,
City Of Blue Island,Utilities,20.24,3/13/2020,,
City Of Blue Island,Utilities,20.24,3/13/2020,,
City Of Blue Island,Utilities,151.8,3/13/2020,,
City Of Blue Island,Utilities,573.3,3/13/2020,,
City Of Blue Island,Utilities,20.24,3/13/2020,,
City Of Blue Island,Utilities,151.8,4/22/2020,,
City Of Blue Island,Utilities,161.92,4/22/2020,,
City Of Blue Island,Utilities,20.24,4/22/2020,,
City Of Blue Island,Utilities,20.24,4/22/2020,,
City Of Blue Island,Utilities,151.8,4/22/2020,,
City Of Blue Island,Utilities,573.3,4/22/2020,,
City Of Blue Island,Utilities,20.24,4/22/2020,,
City Of Blue Island,Utilities,20.24,5/19/2020,,
City Of Blue Island,Utilities,20.24,5/19/2020,,
City Of Blue Island,Utilities,20.24,5/19/2020,,
City Of Blue Island,Utilities,151.8,5/20/2020,,
City Of Blue Island,Utilities,303.6,5/20/2020,,
City Of Blue Island,Utilities,573.3,5/20/2020,,
City Of Blue Island,Utilities,151.8,6/8/2020,,
City Of Blue Island,Utilities,151.8,6/8/2020,,
City Of Blue Island,Utilities,20.24,6/8/2020,,
City Of Blue Island,Utilities,20.24,6/8/2020,,
City Of Blue Island,Utilities,151.8,6/8/2020,,
City Of Blue Island,Utilities,573.3,6/8/2020,,
City Of Blue Island,Utilities,20.24,6/8/2020,,
City Of Blue Island,Utilities,151.8,7/15/2020,,
City Of Blue Island,Utilities,151.8,7/15/2020,,
City Of Blue Island,Utilities,20.24,7/15/2020,,
City Of Blue Island,Utilities,20.24,7/15/2020,,
City Of Blue Island,Utilities,151.8,7/15/2020,,
City Of Blue Island,Utilities,573.3,7/15/2020,,
City Of Blue Island,Utilities,20.24,7/15/2020,,
City Of Blue Island,Utilities,157.05,8/11/2020,,
City Of Blue Island,Utilities,52.35,8/11/2020,,
City Of Blue Island,Utilities,157.05,8/11/2020,,
City Of Blue Island,Utilities,593.05,8/11/2020,,
City Of Blue Island,Utilities,20.94,8/11/2020,,
City Of Blue Island,Utilities,157.05,8/14/2020,,
City Of Blue Island,Utilities,20.94,8/14/2020,,
City Of Blue Island,Utilities,157.05,9/10/2020,,
City Of Blue Island,Utilities,157.05,9/10/2020,,
City Of Blue Island,Utilities,43.97,9/10/2020,,
City Of Blue Island,Utilities,240.81,9/10/2020,,
City Of Blue Island,Utilities,157.05,9/10/2020,,
City Of Blue Island,Utilities,593.05,9/10/2020,,
City Of Blue Island,Utilities,20.94,9/10/2020,,
City Of Blue Island,Utilities,157.05,10/7/2020,,
City Of Blue Island,Utilities,20.94,10/8/2020,,
City Of Blue Island,Utilities,104.7,10/8/2020,,
City Of Blue Island,Utilities,157.05,10/8/2020,,
City Of Blue Island,Utilities,20.94,10/8/2020,,
City Of Blue Island,Utilities,157.05,10/9/2020,,
City Of Blue Island,Utilities,157.05,10/9/2020,,
City Of Blue Island,Utilities,436,10/9/2020,,
City Of Blue Island,Utilities,157.05,11/6/2020,,
City Of Blue Island,Utilities,209.4,11/6/2020,,
City Of Blue Island,Utilities,20.94,11/6/2020,,
City Of Blue Island,Utilities,20.94,11/6/2020,,
City Of Blue Island,Utilities,157.05,11/6/2020,,
City Of Blue Island,Utilities,593.05,11/6/2020,,
City Of Blue Island,Utilities,20.94,11/6/2020,,
City Of Blue Island,Utilities,20.94,12/9/2020,,
City Of Blue Island,Utilities,167.52,12/9/2020,,
City Of Blue Island,Utilities,593.05,12/9/2020,,
City Of Blue Island,Utilities,20.94,12/9/2020,,
City Of Blue Island,Utilities,157.05,12/10/2020,,
City Of Blue Island,Utilities,157.05,12/10/2020,,
City Of Blue Island,Utilities,157.05,12/10/2020,,
City of Burbank,Claims & Insurance,100,1/15/2020,,
City of Chicago,Services,500,6/4/2020,,
City of Chicago,Services,10001,6/4/2020,,
City of Chicago,Capital Purchases,250,6/24/2020,,
City of Chicago,Services,105,7/22/2020,,
City of Chicago,Capital Purchases,12240,10/28/2020,,
City Of Elgin,Utilities,221.5,1/6/2020,,
City Of Elgin,Utilities,59.63,1/15/2020,,
City Of Elgin,Utilities,788.77,1/15/2020,,
City Of Elgin,Utilities,212.64,2/3/2020,,
City Of Elgin,Utilities,773.34,2/13/2020,,
City Of Elgin,Utilities,52.34,2/14/2020,,
City Of Elgin,Utilities,213.44,3/4/2020,,
City Of Elgin,Utilities,63.78,3/13/2020,,
City Of Elgin,Utilities,956.18,3/13/2020,,
City Of Elgin,Utilities,220.55,3/30/2020,,
City Of Elgin,Utilities,54.23,4/22/2020,,
City Of Elgin,Utilities,841.64,4/22/2020,,
City Of Elgin,Utilities,220.55,5/4/2020,,
City Of Elgin,Utilities,37.63,5/20/2020,,
City Of Elgin,Utilities,991.53,5/20/2020,,
City Of Elgin,Utilities,199.21,6/1/2020,,
City Of Elgin,Utilities,45.75,6/8/2020,,
City Of Elgin,Utilities,1053.99,6/8/2020,,
City Of Elgin,Utilities,243.46,7/2/2020,,
City Of Elgin,Utilities,37.27,7/15/2020,,
City Of Elgin,Utilities,893.72,7/15/2020,,
City Of Elgin,Utilities,222.12,7/28/2020,,
City Of Elgin,Utilities,46.11,8/17/2020,,
City Of Elgin,Utilities,1703.29,8/17/2020,,
City Of Elgin,Utilities,206.33,8/27/2020,,
City Of Elgin,Utilities,37.63,9/10/2020,,
City Of Elgin,Utilities,947.5,9/10/2020,,
City Of Elgin,Utilities,234.78,9/30/2020,,
City Of Elgin,Utilities,70.83,10/7/2020,,
City Of Elgin,Utilities,835.29,10/7/2020,,
City Of Elgin,Utilities,199.21,10/28/2020,,
City Of Elgin,Utilities,563.74,11/6/2020,,
City Of Elgin,Utilities,832.96,11/6/2020,,
City Of Elgin,Utilities,234.78,12/3/2020,,
City Of Elgin,Utilities,393.79,12/11/2020,,
City Of Elgin,Utilities,982.22,12/11/2020,,
City Of Harvey Water Department,Utilities,36.78,1/14/2020,,
City Of Harvey Water Department,Utilities,33.34,2/7/2020,,
City Of Harvey Water Department,Utilities,33.32,3/6/2020,,
City Of Harvey Water Department,Utilities,33.27,4/22/2020,,
City Of Harvey Water Department,Utilities,33.42,5/20/2020,,
City Of Harvey Water Department,Utilities,33.13,6/24/2020,,
City Of Harvey Water Department,Utilities,33.7,7/20/2020,,
City Of Harvey Water Department,Utilities,37.01,8/17/2020,,
City Of Harvey Water Department,Utilities,30.35,9/10/2020,,
City Of Harvey Water Department,Utilities,36.63,10/9/2020,,
City Of Harvey Water Department,Utilities,33.67,11/9/2020,,
City Of Harvey Water Department,Utilities,37.18,12/11/2020,,
City Of Highland Park,Utilities,27.8,3/13/2020,,
City Of Highland Park,Utilities,27.8,6/17/2020,,
City Of Highland Park,Utilities,27.8,9/10/2020,,
City Of Highland Park,Utilities,27.8,12/17/2020,,
City Of Joliet,Utilities,20.84,1/23/2020,,
City Of Joliet,Utilities,20.36,2/24/2020,,
City Of Joliet,Utilities,19.53,3/23/2020,,
City Of Joliet,Utilities,18.67,4/22/2020,,
City Of Joliet,Utilities,19.37,5/27/2020,,
City Of Joliet,Utilities,19.18,6/29/2020,,
City Of Joliet,Utilities,19.37,7/28/2020,,
City Of Joliet,Utilities,19.43,8/27/2020,,
City Of Joliet,Utilities,20.74,9/30/2020,,
City Of Joliet,Utilities,17.37,10/28/2020,,
City Of Joliet,Utilities,20.74,12/3/2020,,
City Of Joliet,Utilities,18.37,12/22/2020,,
City Of Oak Forest Ill.,Utilities,58.48,1/21/2020,,
City Of Oak Forest Ill.,Utilities,47.61,4/22/2020,,
City Of Oak Forest Ill.,Utilities,39.35,8/17/2020,,
City Of Oak Forest Ill.,Utilities,37.86,10/19/2020,,
Claeven  Ltd.,Services,2990,1/2/2020,,
Claeven  Ltd.,Services,455,1/2/2020,,
Claeven  Ltd.,Services,1235,1/2/2020,,
Claeven  Ltd.,Services,455,1/6/2020,,
Claeven  Ltd.,Services,455,1/10/2020,,
Claeven  Ltd.,Services,105,1/13/2020,,
Claeven  Ltd.,Services,350,1/13/2020,,
Claeven  Ltd.,Services,455,1/17/2020,,
Claeven  Ltd.,Services,910,1/21/2020,,
Claeven  Ltd.,Services,1105,1/22/2020,,
Claeven  Ltd.,Services,455,1/22/2020,,
Claeven  Ltd.,Services,780,1/23/2020,,
Claeven  Ltd.,Services,455,1/23/2020,,
Claeven  Ltd.,Services,780,1/28/2020,,
Claeven  Ltd.,Services,1690,2/3/2020,,
Claeven  Ltd.,Services,949,2/3/2020,,
Claeven  Ltd.,Services,845,2/4/2020,,
Claeven  Ltd.,Services,455,2/5/2020,,
Claeven  Ltd.,Services,585,2/6/2020,,
Claeven  Ltd.,Services,715,2/6/2020,,
Claeven  Ltd.,Services,455,2/11/2020,,
Claeven  Ltd.,Services,1170,2/13/2020,,
Claeven  Ltd.,Services,949,2/18/2020,,
Claeven  Ltd.,Services,585,2/19/2020,,
Claeven  Ltd.,Services,715,2/24/2020,,
Claeven  Ltd.,Services,325,2/25/2020,,
Claeven  Ltd.,Services,2080,3/2/2020,,
Claeven  Ltd.,Services,494,3/3/2020,,
Claeven  Ltd.,Services,845,3/5/2020,,
Claeven  Ltd.,Services,1170,3/6/2020,,
Claeven  Ltd.,Services,845,3/6/2020,,
Claeven  Ltd.,Services,1690,3/6/2020,,
Claeven  Ltd.,Services,455,3/6/2020,,
Claeven  Ltd.,Services,455,3/9/2020,,
Claeven  Ltd.,Services,975,3/12/2020,,
Claeven  Ltd.,Services,455,3/17/2020,,
Claeven  Ltd.,Services,455,3/24/2020,,
Claeven  Ltd.,Services,455,3/25/2020,,
Claeven  Ltd.,Services,325,3/26/2020,,
Claeven  Ltd.,Services,780,3/30/2020,,
Claeven  Ltd.,Services,715,4/2/2020,,
Claeven  Ltd.,Services,845,4/6/2020,,
Claeven  Ltd.,Services,715,4/6/2020,,
Claeven  Ltd.,Services,2210,4/13/2020,,
Claeven  Ltd.,Services,325,4/14/2020,,
Claeven  Ltd.,Services,325,4/20/2020,,
Claeven  Ltd.,Services,1170,4/20/2020,,
Claeven  Ltd.,Services,1235,4/20/2020,,
Claeven  Ltd.,Services,715,4/23/2020,,
Claeven  Ltd.,Services,1300,4/29/2020,,
Claeven  Ltd.,Services,1105,5/1/2020,,
Claeven  Ltd.,Services,1040,5/6/2020,,
Claeven  Ltd.,Services,325,5/7/2020,,
Claeven  Ltd.,Services,780,5/12/2020,,
Claeven  Ltd.,Services,780,5/18/2020,,
Claeven  Ltd.,Services,910,5/18/2020,,
Claeven  Ltd.,Services,715,5/19/2020,,
Claeven  Ltd.,Services,845,5/26/2020,,
Claeven  Ltd.,Services,325,5/28/2020,,
Claeven  Ltd.,Services,1300,6/1/2020,,
Claeven  Ltd.,Services,715,6/1/2020,,
Claeven  Ltd.,Services,910,6/4/2020,,
Claeven  Ltd.,Services,455,6/4/2020,,
Claeven  Ltd.,Services,845,6/10/2020,,
Claeven  Ltd.,Services,975,6/10/2020,,
Claeven  Ltd.,Services,845,6/11/2020,,
Claeven  Ltd.,Services,455,6/11/2020,,
Claeven  Ltd.,Services,845,6/15/2020,,
Claeven  Ltd.,Services,455,6/19/2020,,
Claeven  Ltd.,Services,845,6/24/2020,,
Claeven  Ltd.,Services,1235,6/25/2020,,
Claeven  Ltd.,Services,1495,6/29/2020,,
Claeven  Ltd.,Services,845,6/29/2020,,
Claeven  Ltd.,Services,845,7/2/2020,,
Claeven  Ltd.,Services,715,7/8/2020,,
Claeven  Ltd.,Services,325,7/13/2020,,
Claeven  Ltd.,Services,715,7/20/2020,,
Claeven  Ltd.,Services,1170,7/22/2020,,
Claeven  Ltd.,Services,455,7/22/2020,,
Claeven  Ltd.,Services,455,7/22/2020,,
Claeven  Ltd.,Services,325,7/23/2020,,
Claeven  Ltd.,Services,975,7/29/2020,,
Claeven  Ltd.,Services,715,7/29/2020,,
Claeven  Ltd.,Services,455,7/31/2020,,
Claeven  Ltd.,Services,715,7/31/2020,,
Claeven  Ltd.,Services,325,8/5/2020,,
Claeven  Ltd.,Services,325,8/6/2020,,
Claeven  Ltd.,Services,234,8/6/2020,,
Claeven  Ltd.,Services,455,8/10/2020,,
Claeven  Ltd.,Services,715,8/14/2020,,
Claeven  Ltd.,Services,845,8/14/2020,,
Claeven  Ltd.,Services,2600,8/26/2020,,
Claeven  Ltd.,Services,1045,8/26/2020,,
Claeven  Ltd.,Services,975,9/17/2020,,
Claeven  Ltd.,Services,2795,9/17/2020,,
Claeven  Ltd.,Services,975,9/17/2020,,
Claeven  Ltd.,Services,1430,9/17/2020,,
Claeven  Ltd.,Services,2080,9/17/2020,,
Claeven  Ltd.,Services,650,10/13/2020,,
Claeven  Ltd.,Services,455,10/13/2020,,
Claeven  Ltd.,Services,455,10/20/2020,,
Claeven  Ltd.,Services,455,10/22/2020,,
Claeven  Ltd.,Services,845,10/22/2020,,
Claeven  Ltd.,Services,1755,10/23/2020,,
Claeven  Ltd.,Services,715,10/23/2020,,
Claeven  Ltd.,Services,2567.5,11/4/2020,,
Claeven  Ltd.,Services,1105,11/4/2020,,
Claeven  Ltd.,Services,2535,11/4/2020,,
Claeven  Ltd.,Services,325,11/5/2020,,
Claeven  Ltd.,Services,325,11/11/2020,,
Claeven  Ltd.,Services,455,11/11/2020,,
Claeven  Ltd.,Services,455,11/30/2020,,
Claeven  Ltd.,Services,494,12/2/2020,,
Claeven  Ltd.,Services,715,12/2/2020,,
Claeven  Ltd.,Services,1170,12/2/2020,,
Claeven  Ltd.,Services,455,12/2/2020,,
Claeven  Ltd.,Services,455,12/2/2020,,
Claeven  Ltd.,Services,455,12/9/2020,,
Claeven  Ltd.,Services,455,12/10/2020,,
Clarity Partners  Llc,Services,1569.84,1/16/2020,,
Clarity Partners  Llc,Services,7830,1/16/2020,,
Clarity Partners  Llc,Services,1569.84,2/24/2020,,
Clarity Partners  Llc,Services,6038.75,2/24/2020,,
Clarity Partners  Llc,Services,16569.84,3/19/2020,,
Clarity Partners  Llc,Services,14213.75,3/19/2020,,
Clarity Partners  Llc,Services,1569.84,4/15/2020,,
Clarity Partners  Llc,Services,53090,4/15/2020,,
Clarity Partners  Llc,Services,10319.84,5/26/2020,,
Clarity Partners  Llc,Services,60035,5/26/2020,,
Clarity Partners  Llc,Services,1569.84,6/22/2020,,
Clarity Partners  Llc,Services,48308.75,6/22/2020,,
Clarity Partners  Llc,Services,27388.75,7/23/2020,,
Clarity Partners  Llc,Services,1569.84,7/23/2020,,
Clarity Partners  Llc,Services,52293.75,8/17/2020,,
Clarity Partners  Llc,Services,16569.84,8/17/2020,,
Clarity Partners  Llc,Services,45673.75,9/18/2020,,
Clarity Partners  Llc,Services,16194.84,9/18/2020,,
Clarity Partners  Llc,Services,37120,11/5/2020,,
Clarity Partners  Llc,Services,1569.84,11/5/2020,,
Clarity Partners  Llc,Services,67166.25,12/2/2020,,
Clarity Partners  Llc,Services,1569.84,12/2/2020,,
Clark Filter C/O Unity Railway Supply Co.  Inc.,Materials,576.24,1/2/2020,,
Claybourne Miller,Services,672.8,1/8/2020,,
Claybourne Miller,Services,278.3,1/21/2020,,
Claybourne Miller,Services,288.65,2/11/2020,,
Claybourne Miller,Services,241.5,2/24/2020,,
Claybourne Miller,Services,204.7,3/9/2020,,
Claybourne Miller,Services,278.3,4/8/2020,,
Claybourne Miller,Services,278.3,4/13/2020,,
Claybourne Miller,Services,241.5,4/24/2020,,
Claybourne Miller,Services,278.3,5/15/2020,,
Claybourne Miller,Services,278.3,6/24/2020,,
Claybourne Miller,Services,241.5,6/25/2020,,
Claybourne Miller,Services,194.35,7/10/2020,,
Claybourne Miller,Services,483,7/22/2020,,
Claybourne Miller,Services,194.35,8/6/2020,,
Claybourne Miller,Services,194.35,8/26/2020,,
Claybourne Miller,Services,241.5,10/1/2020,,
Claybourne Miller,Services,241.5,10/7/2020,,
Claybourne Miller,Services,241.5,10/19/2020,,
Claybourne Miller,Services,241.5,10/27/2020,,
Claybourne Miller,Services,446.2,11/23/2020,,
Clayton Starks Iii,Services,251.85,10/1/2020,,
Clayton Starks Iii,Services,289.11,10/27/2020,,
Clean Air America  Inc.,Capital Purchases,29167,6/9/2020,,
Cleanfreak,Materials,444,10/1/2020,,
Cleanfreak,Materials,444,10/1/2020,,
Cleanfreak,Materials,444,10/1/2020,,
Cleaning Specialist  Inc.,Services,627,1/8/2020,,
Cleaning Specialist  Inc.,Capital Purchases,350,1/9/2020,,
Cleaning Specialist  Inc.,Services,4753,1/9/2020,,
Cleaning Specialist  Inc.,Services,567,2/3/2020,,
Cleaning Specialist  Inc.,Services,1947,2/3/2020,,
Cleaning Specialist  Inc.,Capital Purchases,2100,2/5/2020,,
Cleaning Specialist  Inc.,Services,4838.5,2/13/2020,,
Cleaning Specialist  Inc.,Capital Purchases,2100,2/18/2020,,
Cleaning Specialist  Inc.,Services,2051.5,2/19/2020,,
Cleaning Specialist  Inc.,Services,650,2/25/2020,,
Cleaning Specialist  Inc.,Services,620,3/4/2020,,
Cleaning Specialist  Inc.,Services,5180.5,3/23/2020,,
Cleaning Specialist  Inc.,Services,39255,3/25/2020,,
Cleaning Specialist  Inc.,Services,6354,3/31/2020,,
Cleaning Specialist  Inc.,Services,8855,4/2/2020,,
Cleaning Specialist  Inc.,Services,3244,4/13/2020,,
Cleaning Specialist  Inc.,Services,3094,4/15/2020,,
Cleaning Specialist  Inc.,Services,4595,4/24/2020,,
Cleaning Specialist  Inc.,Services,3342,4/29/2020,,
Cleaning Specialist  Inc.,Services,5600,5/7/2020,,
Cleaning Specialist  Inc.,Services,882,5/20/2020,,
Cleaning Specialist  Inc.,Capital Purchases,2100,6/1/2020,,
Cleaning Specialist  Inc.,Services,17910,6/1/2020,,
Cleaning Specialist  Inc.,Services,3791,6/4/2020,,
Cleaning Specialist  Inc.,Services,3950,6/9/2020,,
Cleaning Specialist  Inc.,Services,3820,6/9/2020,,
Cleaning Specialist  Inc.,Services,4314,7/13/2020,,
Cleaning Specialist  Inc.,Services,2740,7/17/2020,,
Cleaning Specialist  Inc.,Services,3089,8/4/2020,,
Cleaning Specialist  Inc.,Services,2850,8/14/2020,,
Cleaning Specialist  Inc.,Services,668,8/27/2020,,
Cleaning Specialist  Inc.,Capital Purchases,3150,9/21/2020,,
Cleaning Specialist  Inc.,Services,430,10/2/2020,,
Cleaning Specialist  Inc.,Services,1910,10/19/2020,,
Cleaning Specialist  Inc.,Services,11520,10/20/2020,,
Cleaning Specialist  Inc.,Services,1156,11/4/2020,,
Cleaning Specialist  Inc.,Services,10544,11/18/2020,,
Cleaning Specialist  Inc.,Services,6795,12/9/2020,,
Clerk of the 18th Judicial Circuit Court of DuPage County,Claims & Insurance,25,2/3/2020,,
Clerk of the Circuit Court of Cook County,Services,16.5,1/21/2020,,
Clerk of the Circuit Court of Cook County,Claims & Insurance,10,2/20/2020,,
Clerk of the Circuit Court of Cook County,Claims & Insurance,9.5,2/20/2020,,
Clerk of the Circuit Court of Cook County,Claims & Insurance,1381.5,2/24/2020,,
Clerk of the Circuit Court of Cook County,Services,197.75,2/24/2020,,
Clerk of the Circuit Court of Cook County,Services,34,9/9/2020,,
Clever Devices Ltd.,Capital Purchases,981805.74,1/2/2020,,
Clever Devices Ltd.,Capital Purchases,118989.34,2/24/2020,,
Clever Devices Ltd.,Capital Purchases,1462973.35,3/16/2020,,
Clever Devices Ltd.,Capital Purchases,103468.99,6/2/2020,,
Clever Devices Ltd.,Capital Purchases,151754.52,6/16/2020,,
Clever Devices Ltd.,Capital Purchases,131060.72,6/26/2020,,
Clever Devices Ltd.,Capital Purchases,68979.33,9/18/2020,,
Club Tex Inc.,Materials,54000,7/23/2020,,
Club Tex Inc.,Materials,54000,8/5/2020,,
Club Tex Inc.,Materials,54000,8/5/2020,,
Cody Johnson,Services,187.45,5/15/2020,,
Cody Johnson,Services,54.05,5/15/2020,,
Cody Johnson,Services,85.1,12/18/2020,,
Cody Johnson,Services,85.1,12/18/2020,,
Cody Johnson,Services,33.35,12/18/2020,,
"Cogan and Power, P. C.",Claims & Insurance,7500,2/25/2020,,
"Cogan and Power, P. C.",Claims & Insurance,37500,5/22/2020,,
"Cogan and Power, P. C.",Claims & Insurance,24845.9,7/13/2020,,
Cohnreznick Llp,Services,9000,1/2/2020,,
Cohnreznick Llp,Services,2200,2/3/2020,,
Cohnreznick Llp,Services,9500,2/18/2020,,
Cohnreznick Llp,Services,8800,2/25/2020,,
Cohnreznick Llp,Services,9700,5/13/2020,,
Cohnreznick Llp,Services,23296,11/18/2020,,
Cohnreznick Llp,Services,1500,12/16/2020,,
Collins Engineers  Inc.,Capital Purchases,8389.28,12/22/2020,,
Columbia Pipe & Supply,Capital Purchases,8052.06,4/1/2020,,
Com Ed-Real Estate Dept.  4Th Fl.,Rental Expense,6165.02,1/2/2020,,
Com Ed-Real Estate Dept.  4Th Fl.,Rental Expense,631.91,3/9/2020,,
Com Ed-Real Estate Dept.  4Th Fl.,Rental Expense,1119.22,3/9/2020,,
Com Ed-Real Estate Dept.  4Th Fl.,Rental Expense,600.56,3/9/2020,,
Com Ed-Real Estate Dept.  4Th Fl.,Rental Expense,30.83,3/27/2020,,
Com Ed-Real Estate Dept.  4Th Fl.,Rental Expense,629.22,3/27/2020,,
Com Ed-Real Estate Dept.  4Th Fl.,Rental Expense,573.26,4/21/2020,,
Com Ed-Real Estate Dept.  4Th Fl.,Rental Expense,573.26,5/18/2020,,
Com Ed-Real Estate Dept.  4Th Fl.,Rental Expense,573.26,6/16/2020,,
Com Ed-Real Estate Dept.  4Th Fl.,Rental Expense,573.26,7/21/2020,,
Com Ed-Real Estate Dept.  4Th Fl.,Rental Expense,573.26,9/8/2020,,
Com Ed-Real Estate Dept.  4Th Fl.,Rental Expense,573.26,9/24/2020,,
Com Ed-Real Estate Dept.  4Th Fl.,Rental Expense,573.26,10/26/2020,,
Com Ed-Real Estate Dept.  4Th Fl.,Services,1500,10/28/2020,,
Com Ed-Real Estate Dept.  4Th Fl.,Rental Expense,1313.56,11/23/2020,,
Com Ed-Real Estate Dept.  4Th Fl.,Rental Expense,346.55,11/24/2020,,
Comcast,Utilities,4500.04,1/8/2020,,
Comcast,Utilities,1300,1/8/2020,,
Comcast,Utilities,4428.15,2/5/2020,,
Comcast,Utilities,1300,2/5/2020,,
Comcast,Utilities,4428.16,3/11/2020,,
Comcast,Utilities,1300,3/11/2020,,
Comcast,Utilities,4083.56,4/7/2020,,
Comcast,Utilities,1300,4/7/2020,,
Comcast,Utilities,4365.22,5/5/2020,,
Comcast,Utilities,1300,5/5/2020,,
Comcast,Utilities,4156.65,6/10/2020,,
Comcast,Utilities,1300,6/10/2020,,
Comcast,Utilities,4154.33,7/1/2020,,
Comcast,Utilities,1300,7/1/2020,,
Comcast,Utilities,4159.04,8/13/2020,,
Comcast,Utilities,1300,8/13/2020,,
Comcast,Utilities,4709.08,9/16/2020,,
Comcast,Utilities,1300,9/16/2020,,
Comcast,Utilities,4384.04,11/2/2020,,
Comcast,Utilities,1300,11/2/2020,,
Comcast,Utilities,4374.99,11/6/2020,,
Comcast,Utilities,1300,11/6/2020,,
Comcast,Utilities,4390.31,12/23/2020,,
Comcast,Utilities,1300,12/23/2020,,
Comcast Business,Utilities,36242.01,1/14/2020,,
Comcast Business,Utilities,14024.3,1/14/2020,,
Comcast Business,Utilities,36242.01,2/13/2020,,
Comcast Business,Utilities,14024.3,2/13/2020,,
Comcast Business,Utilities,37676.9,3/13/2020,,
Comcast Business,Utilities,14580,3/13/2020,,
Comcast Business,Utilities,37376.47,4/7/2020,,
Comcast Business,Utilities,14500,4/7/2020,,
Comcast Business,Utilities,37411.01,5/5/2020,,
Comcast Business,Utilities,14500,5/5/2020,,
Comcast Business,Utilities,37411.01,6/10/2020,,
Comcast Business,Utilities,14500,6/10/2020,,
Comcast Business,Utilities,38100.72,7/14/2020,,
Comcast Business,Utilities,14750,7/14/2020,,
Comcast Business,Utilities,38096.5,8/13/2020,,
Comcast Business,Utilities,24870,8/13/2020,,
Comcast Business,Utilities,36387.45,9/16/2020,,
Comcast Business,Utilities,23760,9/16/2020,,
Comcast Business,Utilities,36184.44,10/22/2020,,
Comcast Business,Utilities,23625,10/22/2020,,
Comcast Business,Utilities,4374.99,11/6/2020,,
Comcast Business,Utilities,1300,11/6/2020,,
Comcast Business,Utilities,38313.08,12/3/2020,,
Comcast Business,Utilities,25014,12/3/2020,,
Comcast Business,Utilities,37384.1,12/23/2020,,
Comcast Business,Utilities,24408,12/23/2020,,
Commercial Group Lifting Products,Services,437.82,3/20/2020,,
Commercial Group Lifting Products,Services,175,5/12/2020,,
Commercial Group Lifting Products,Services,175,7/23/2020,,
Commercial Group Lifting Products,Services,140,8/14/2020,,
Commercial Group Lifting Products,Services,175,9/21/2020,,
Commercial Group Lifting Products,Services,140,12/9/2020,,
Commonwealth Edison,Utilities,938.46,1/3/2020,,
Commonwealth Edison,Utilities,479.83,1/6/2020,,
Commonwealth Edison,Utilities,397.39,1/6/2020,,
Commonwealth Edison,Utilities,160.73,1/6/2020,,
Commonwealth Edison,Utilities,181.03,1/14/2020,,
Commonwealth Edison,Utilities,56.08,1/14/2020,,
Commonwealth Edison,Utilities,628.7,1/14/2020,,
Commonwealth Edison,Utilities,230.45,1/14/2020,,
Commonwealth Edison,Utilities,293.71,1/14/2020,,
Commonwealth Edison,Utilities,550.26,1/14/2020,,
Commonwealth Edison,Utilities,34.29,1/14/2020,,
Commonwealth Edison,Utilities,92.36,1/14/2020,,
Commonwealth Edison,Utilities,39.26,1/14/2020,,
Commonwealth Edison,Utilities,430.07,1/17/2020,,
Commonwealth Edison,Utilities,93.08,1/17/2020,,
Commonwealth Edison,Utilities,120.19,1/22/2020,,
Commonwealth Edison,Utilities,130824.88,1/23/2020,,
Commonwealth Edison,Utilities,187573.68,1/24/2020,,
Commonwealth Edison,Utilities,940.83,1/28/2020,,
Commonwealth Edison,Utilities,416.52,2/3/2020,,
Commonwealth Edison,Utilities,84.53,2/3/2020,,
Commonwealth Edison,Utilities,154.54,2/3/2020,,
Commonwealth Edison,Utilities,96.68,2/5/2020,,
Commonwealth Edison,Utilities,7201.37,2/5/2020,,
Commonwealth Edison,Utilities,75.14,2/5/2020,,
Commonwealth Edison,Utilities,63,2/11/2020,,
Commonwealth Edison,Utilities,143.91,2/11/2020,,
Commonwealth Edison,Utilities,152.62,2/14/2020,,
Commonwealth Edison,Utilities,116.73,2/14/2020,,
Commonwealth Edison,Utilities,609.51,2/14/2020,,
Commonwealth Edison,Utilities,296.18,2/14/2020,,
Commonwealth Edison,Utilities,288.55,2/14/2020,,
Commonwealth Edison,Utilities,576.92,2/14/2020,,
Commonwealth Edison,Utilities,29.61,2/14/2020,,
Commonwealth Edison,Utilities,94.89,2/14/2020,,
Commonwealth Edison,Utilities,38.45,2/14/2020,,
Commonwealth Edison,Utilities,32.52,2/18/2020,,
Commonwealth Edison,Utilities,200893.25,2/20/2020,,
Commonwealth Edison,Utilities,125723.77,2/27/2020,,
Commonwealth Edison,Utilities,729.05,3/2/2020,,
Commonwealth Edison,Utilities,234.41,3/2/2020,,
Commonwealth Edison,Utilities,136.93,3/2/2020,,
Commonwealth Edison,Utilities,67.09,3/2/2020,,
Commonwealth Edison,Utilities,107.21,3/3/2020,,
Commonwealth Edison,Utilities,53.08,3/5/2020,,
Commonwealth Edison,Utilities,67.87,3/5/2020,,
Commonwealth Edison,Utilities,39.82,3/10/2020,,
Commonwealth Edison,Utilities,79.71,3/10/2020,,
Commonwealth Edison,Utilities,144.55,3/11/2020,,
Commonwealth Edison,Utilities,63.75,3/11/2020,,
Commonwealth Edison,Utilities,613.89,3/11/2020,,
Commonwealth Edison,Utilities,42.56,3/11/2020,,
Commonwealth Edison,Utilities,92.76,3/11/2020,,
Commonwealth Edison,Utilities,182.8,3/13/2020,,
Commonwealth Edison,Utilities,597.28,3/13/2020,,
Commonwealth Edison,Utilities,290.78,3/13/2020,,
Commonwealth Edison,Utilities,266.14,3/13/2020,,
Commonwealth Edison,Utilities,44.29,3/13/2020,,
Commonwealth Edison,Utilities,119004.93,3/16/2020,,
Commonwealth Edison,Utilities,210660.85,3/17/2020,,
Commonwealth Edison,Utilities,295.29,4/1/2020,,
Commonwealth Edison,Utilities,188.46,4/1/2020,,
Commonwealth Edison,Utilities,130.98,4/1/2020,,
Commonwealth Edison,Utilities,103.16,4/1/2020,,
Commonwealth Edison,Utilities,423.16,4/6/2020,,
Commonwealth Edison,Utilities,47.13,4/7/2020,,
Commonwealth Edison,Utilities,11.81,4/7/2020,,
Commonwealth Edison,Utilities,174.57,4/7/2020,,
Commonwealth Edison,Utilities,131347.35,4/21/2020,,
Commonwealth Edison,Utilities,202383.72,4/22/2020,,
Commonwealth Edison,Utilities,145.31,4/23/2020,,
Commonwealth Edison,Utilities,82.79,4/23/2020,,
Commonwealth Edison,Utilities,545.43,4/23/2020,,
Commonwealth Edison,Utilities,175.57,4/23/2020,,
Commonwealth Edison,Utilities,215.98,4/23/2020,,
Commonwealth Edison,Utilities,359.64,4/23/2020,,
Commonwealth Edison,Utilities,31.28,4/23/2020,,
Commonwealth Edison,Utilities,88.14,4/23/2020,,
Commonwealth Edison,Utilities,44.77,4/23/2020,,
Commonwealth Edison,Utilities,196277.67,5/1/2020,,
Commonwealth Edison,Utilities,569.46,5/1/2020,,
Commonwealth Edison,Utilities,24.8,5/1/2020,,
Commonwealth Edison,Utilities,50.66,5/1/2020,,
Commonwealth Edison,Utilities,233.69,5/1/2020,,
Commonwealth Edison,Utilities,70.39,5/1/2020,,
Commonwealth Edison,Utilities,98.11,5/1/2020,,
Commonwealth Edison,Utilities,110347.21,5/7/2020,,
Commonwealth Edison,Utilities,97.56,5/7/2020,,
Commonwealth Edison,Utilities,50.14,5/7/2020,,
Commonwealth Edison,Utilities,134.89,5/7/2020,,
Commonwealth Edison,Utilities,256.27,5/18/2020,,
Commonwealth Edison,Utilities,163.76,5/18/2020,,
Commonwealth Edison,Utilities,34.09,5/18/2020,,
Commonwealth Edison,Utilities,30.24,5/18/2020,,
Commonwealth Edison,Utilities,86.3,5/18/2020,,
Commonwealth Edison,Utilities,127.25,5/19/2020,,
Commonwealth Edison,Utilities,141.54,5/19/2020,,
Commonwealth Edison,Utilities,422.5,5/19/2020,,
Commonwealth Edison,Utilities,373.97,5/19/2020,,
Commonwealth Edison,Utilities,41.49,5/19/2020,,
Commonwealth Edison,Utilities,152.69,5/22/2020,,
Commonwealth Edison,Utilities,128.79,5/22/2020,,
Commonwealth Edison,Utilities,67.33,5/22/2020,,
Commonwealth Edison,Utilities,173994.03,6/3/2020,,
Commonwealth Edison,Utilities,239.41,6/3/2020,,
Commonwealth Edison,Utilities,24.8,6/3/2020,,
Commonwealth Edison,Utilities,89.89,6/3/2020,,
Commonwealth Edison,Utilities,171.32,6/3/2020,,
Commonwealth Edison,Utilities,90.89,6/3/2020,,
Commonwealth Edison,Utilities,108.95,6/12/2020,,
Commonwealth Edison,Utilities,420.44,6/12/2020,,
Commonwealth Edison,Utilities,217.57,6/12/2020,,
Commonwealth Edison,Utilities,53.71,6/12/2020,,
Commonwealth Edison,Utilities,87.44,6/12/2020,,
Commonwealth Edison,Utilities,141.79,6/12/2020,,
Commonwealth Edison,Utilities,166.54,6/12/2020,,
Commonwealth Edison,Utilities,40.56,6/12/2020,,
Commonwealth Edison,Utilities,77.8,6/12/2020,,
Commonwealth Edison,Utilities,36.78,6/12/2020,,
Commonwealth Edison,Utilities,106.86,6/15/2020,,
Commonwealth Edison,Utilities,24.8,6/15/2020,,
Commonwealth Edison,Utilities,95.96,6/15/2020,,
Commonwealth Edison,Utilities,134.72,6/19/2020,,
Commonwealth Edison,Utilities,24.8,6/19/2020,,
Commonwealth Edison,Utilities,98.54,6/19/2020,,
Commonwealth Edison,Utilities,65188.99,6/22/2020,,
Commonwealth Edison,Utilities,91.54,6/26/2020,,
Commonwealth Edison,Utilities,24.8,6/26/2020,,
Commonwealth Edison,Utilities,146.53,6/26/2020,,
Commonwealth Edison,Utilities,71.82,6/26/2020,,
Commonwealth Edison,Services,1257.49,6/29/2020,,
Commonwealth Edison,Utilities,256.94,7/3/2020,,
Commonwealth Edison,Utilities,148999.46,7/8/2020,,
Commonwealth Edison,Utilities,64.23,7/21/2020,,
Commonwealth Edison,Utilities,139.67,7/21/2020,,
Commonwealth Edison,Utilities,141.55,7/21/2020,,
Commonwealth Edison,Utilities,192.85,7/21/2020,,
Commonwealth Edison,Utilities,46.07,7/21/2020,,
Commonwealth Edison,Utilities,49.64,7/21/2020,,
Commonwealth Edison,Utilities,119.73,7/21/2020,,
Commonwealth Edison,Utilities,113.07,7/21/2020,,
Commonwealth Edison,Utilities,206.28,7/21/2020,,
Commonwealth Edison,Utilities,28.86,7/21/2020,,
Commonwealth Edison,Utilities,44.36,7/21/2020,,
Commonwealth Edison,Utilities,83.6,7/21/2020,,
Commonwealth Edison,Utilities,68717.47,7/22/2020,,
Commonwealth Edison,Utilities,272.89,7/23/2020,,
Commonwealth Edison,Utilities,60.52,8/3/2020,,
Commonwealth Edison,Utilities,88.86,8/3/2020,,
Commonwealth Edison,Utilities,120.4,8/3/2020,,
Commonwealth Edison,Utilities,135.88,8/5/2020,,
Commonwealth Edison,Utilities,24.8,8/5/2020,,
Commonwealth Edison,Utilities,36.32,8/5/2020,,
Commonwealth Edison,Utilities,131.2,8/11/2020,,
Commonwealth Edison,Utilities,50.07,8/11/2020,,
Commonwealth Edison,Utilities,136.53,8/11/2020,,
Commonwealth Edison,Utilities,165391.01,8/14/2020,,
Commonwealth Edison,Utilities,66.82,8/19/2020,,
Commonwealth Edison,Utilities,232.54,8/19/2020,,
Commonwealth Edison,Utilities,220.97,8/19/2020,,
Commonwealth Edison,Utilities,85.58,8/19/2020,,
Commonwealth Edison,Utilities,121.97,8/19/2020,,
Commonwealth Edison,Utilities,46.76,8/19/2020,,
Commonwealth Edison,Utilities,85.33,8/24/2020,,
Commonwealth Edison,Utilities,128.99,8/24/2020,,
Commonwealth Edison,Utilities,105.88,8/24/2020,,
Commonwealth Edison,Utilities,153.01,8/24/2020,,
Commonwealth Edison,Utilities,110.86,8/24/2020,,
Commonwealth Edison,Utilities,77.21,8/24/2020,,
Commonwealth Edison,Utilities,64.19,8/24/2020,,
Commonwealth Edison,Utilities,106.15,8/25/2020,,
Commonwealth Edison,Utilities,61.27,8/25/2020,,
Commonwealth Edison,Utilities,68.37,8/25/2020,,
Commonwealth Edison,Utilities,187.05,9/1/2020,,
Commonwealth Edison,Utilities,24.8,9/1/2020,,
Commonwealth Edison,Utilities,117.78,9/1/2020,,
Commonwealth Edison,Utilities,109.18,9/1/2020,,
Commonwealth Edison,Utilities,31.55,9/1/2020,,
Commonwealth Edison,Utilities,91.76,9/2/2020,,
Commonwealth Edison,Utilities,142.15,9/4/2020,,
Commonwealth Edison,Utilities,52.05,9/4/2020,,
Commonwealth Edison,Utilities,156.15,9/4/2020,,
Commonwealth Edison,Utilities,90679.15,9/8/2020,,
Commonwealth Edison,Utilities,170123.65,9/10/2020,,
Commonwealth Edison,Utilities,57.62,9/15/2020,,
Commonwealth Edison,Utilities,92.33,9/15/2020,,
Commonwealth Edison,Utilities,128.39,9/15/2020,,
Commonwealth Edison,Utilities,101.14,9/15/2020,,
Commonwealth Edison,Utilities,150.55,9/15/2020,,
Commonwealth Edison,Utilities,169.31,9/15/2020,,
Commonwealth Edison,Utilities,46,9/15/2020,,
Commonwealth Edison,Utilities,59.72,9/21/2020,,
Commonwealth Edison,Utilities,77890.64,10/1/2020,,
Commonwealth Edison,Utilities,50.53,10/6/2020,,
Commonwealth Edison,Utilities,48.07,10/6/2020,,
Commonwealth Edison,Utilities,84.9,10/7/2020,,
Commonwealth Edison,Utilities,237.38,10/7/2020,,
Commonwealth Edison,Utilities,166.25,10/7/2020,,
Commonwealth Edison,Utilities,32,10/7/2020,,
Commonwealth Edison,Utilities,31.82,10/7/2020,,
Commonwealth Edison,Utilities,165.6,10/9/2020,,
Commonwealth Edison,Utilities,50.61,10/9/2020,,
Commonwealth Edison,Utilities,82.13,10/9/2020,,
Commonwealth Edison,Utilities,131.79,10/9/2020,,
Commonwealth Edison,Utilities,402.58,10/9/2020,,
Commonwealth Edison,Utilities,114.25,10/9/2020,,
Commonwealth Edison,Utilities,43.37,10/9/2020,,
Commonwealth Edison,Utilities,54.88,10/9/2020,,
Commonwealth Edison,Utilities,64.09,10/9/2020,,
Commonwealth Edison,Utilities,74691.94,10/12/2020,,
Commonwealth Edison,Utilities,146.28,10/12/2020,,
Commonwealth Edison,Utilities,44.01,10/12/2020,,
Commonwealth Edison,Utilities,325.92,10/12/2020,,
Commonwealth Edison,Utilities,205.24,10/12/2020,,
Commonwealth Edison,Utilities,24.82,10/12/2020,,
Commonwealth Edison,Utilities,115.74,10/12/2020,,
Commonwealth Edison,Utilities,33.56,10/12/2020,,
Commonwealth Edison,Utilities,151402.62,10/20/2020,,
Commonwealth Edison,Utilities,80.47,11/11/2020,,
Commonwealth Edison,Utilities,210.78,11/11/2020,,
Commonwealth Edison,Utilities,82.18,11/11/2020,,
Commonwealth Edison,Utilities,283.98,11/12/2020,,
Commonwealth Edison,Utilities,24.82,11/12/2020,,
Commonwealth Edison,Utilities,254.13,11/12/2020,,
Commonwealth Edison,Utilities,44.15,11/12/2020,,
Commonwealth Edison,Utilities,79.52,11/16/2020,,
Commonwealth Edison,Utilities,137.67,11/16/2020,,
Commonwealth Edison,Utilities,232.28,11/16/2020,,
Commonwealth Edison,Utilities,25.25,11/16/2020,,
Commonwealth Edison,Utilities,65.38,11/16/2020,,
Commonwealth Edison,Capital Purchases,25760.22,11/20/2020,,
Commonwealth Edison,Utilities,140951.42,11/20/2020,,
Commonwealth Edison,Utilities,644.51,12/3/2020,,
Commonwealth Edison,Utilities,254.53,12/3/2020,,
Commonwealth Edison,Utilities,24.82,12/3/2020,,
Commonwealth Edison,Utilities,50.83,12/3/2020,,
Commonwealth Edison,Utilities,169.79,12/3/2020,,
Commonwealth Edison,Utilities,499.83,12/3/2020,,
Commonwealth Edison,Utilities,456,12/3/2020,,
Commonwealth Edison,Utilities,79.07,12/3/2020,,
Commonwealth Edison,Utilities,42.14,12/3/2020,,
Commonwealth Edison,Utilities,87.69,12/3/2020,,
Commonwealth Edison,Utilities,38.93,12/3/2020,,
Commonwealth Edison,Utilities,66.52,12/3/2020,,
Commonwealth Edison,Utilities,76172.1,12/8/2020,,
Commonwealth Edison,Utilities,118135.88,12/10/2020,,
Commonwealth Edison Co.,Capital Purchases,10000.01,12/11/2020,,
Commuter Rail Coalition,Services,20000,1/13/2020,,
Commuter Rail Coalition,Services,10000,3/3/2020,,
Commuter Rail Construction Team Llc,Capital Purchases,6143.9,1/7/2020,,
Commuter Rail Construction Team Llc,Capital Purchases,29193.31,1/7/2020,,
Commuter Rail Construction Team Llc,Capital Purchases,98250.68,1/14/2020,,
Commuter Rail Construction Team Llc,Capital Purchases,24110.41,2/6/2020,,
Commuter Rail Construction Team Llc,Capital Purchases,53403.59,2/7/2020,,
Commuter Rail Construction Team Llc,Capital Purchases,4594.45,2/18/2020,,
Commuter Rail Construction Team Llc,Capital Purchases,33021.71,2/18/2020,,
Commuter Rail Construction Team Llc,Capital Purchases,44209.57,3/9/2020,,
Commuter Rail Construction Team Llc,Capital Purchases,65351.9,3/17/2020,,
Commuter Rail Construction Team Llc,Capital Purchases,7567.51,3/20/2020,,
Commuter Rail Construction Team Llc,Capital Purchases,65351.9,3/24/2020,,
Commuter Rail Construction Team Llc,Capital Purchases,27864.05,3/24/2020,,
Commuter Rail Construction Team Llc,Capital Purchases,13805.66,3/26/2020,,
Commuter Rail Construction Team Llc,Capital Purchases,35850,3/26/2020,,
Commuter Rail Construction Team Llc,Capital Purchases,65368.04,4/7/2020,,
Commuter Rail Construction Team Llc,Capital Purchases,26646.17,4/9/2020,,
Commuter Rail Construction Team Llc,Capital Purchases,11130.08,4/27/2020,,
Commuter Rail Construction Team Llc,Capital Purchases,36378.18,4/27/2020,,
Commuter Rail Construction Team Llc,Capital Purchases,28609.4,4/27/2020,,
Commuter Rail Construction Team Llc,Capital Purchases,72703.42,5/1/2020,,
Commuter Rail Construction Team Llc,Capital Purchases,2861.69,5/11/2020,,
Commuter Rail Construction Team Llc,Capital Purchases,84484.51,5/11/2020,,
Commuter Rail Construction Team Llc,Capital Purchases,14517.23,5/11/2020,,
Commuter Rail Construction Team Llc,Capital Purchases,13861.46,5/26/2020,,
Commuter Rail Construction Team Llc,Capital Purchases,4178.93,6/1/2020,,
Commuter Rail Construction Team Llc,Capital Purchases,5601.15,6/2/2020,,
Commuter Rail Construction Team Llc,Capital Purchases,15164.89,6/5/2020,,
Commuter Rail Construction Team Llc,Capital Purchases,23897.8,6/9/2020,,
Commuter Rail Construction Team Llc,Capital Purchases,78325.95,6/17/2020,,
Commuter Rail Construction Team Llc,Capital Purchases,3289.72,6/25/2020,,
Commuter Rail Construction Team Llc,Capital Purchases,66889.17,6/25/2020,,
Commuter Rail Construction Team Llc,Capital Purchases,31623.3,7/1/2020,,
Commuter Rail Construction Team Llc,Capital Purchases,29661.35,7/3/2020,,
Commuter Rail Construction Team Llc,Capital Purchases,15723.27,7/9/2020,,
Commuter Rail Construction Team Llc,Capital Purchases,25707.89,7/23/2020,,
Commuter Rail Construction Team Llc,Capital Purchases,91274.98,7/29/2020,,
Commuter Rail Construction Team Llc,Capital Purchases,91801.24,8/3/2020,,
Commuter Rail Construction Team Llc,Capital Purchases,9703.47,8/26/2020,,
Commuter Rail Construction Team Llc,Capital Purchases,56412.18,8/27/2020,,
Commuter Rail Construction Team Llc,Capital Purchases,9895.77,9/1/2020,,
Commuter Rail Construction Team Llc,Capital Purchases,51171.66,9/18/2020,,
Commuter Rail Construction Team Llc,Capital Purchases,8087.59,9/21/2020,,
Commuter Rail Construction Team Llc,Capital Purchases,75975.76,10/5/2020,,
Commuter Rail Construction Team Llc,Capital Purchases,22254.04,10/5/2020,,
Commuter Rail Construction Team Llc,Capital Purchases,75802.62,10/21/2020,,
Commuter Rail Construction Team Llc,Capital Purchases,7805.48,10/21/2020,,
Commuter Rail Construction Team Llc,Capital Purchases,33520.42,10/22/2020,,
Commuter Rail Construction Team Llc,Capital Purchases,31013.54,11/5/2020,,
Commuter Rail Construction Team Llc,Capital Purchases,17145.66,11/19/2020,,
Commuter Rail Construction Team Llc,Capital Purchases,99368.62,11/23/2020,,
Commuter Rail Construction Team Llc,Capital Purchases,4893.5,12/2/2020,,
Commuter Rail Construction Team Llc,Capital Purchases,22822.63,12/3/2020,,
Commuter Rail Construction Team Llc,Capital Purchases,7770.87,12/10/2020,,
Compass Minerals America Inc.,Materials,1638.29,1/8/2020,,
Compass Minerals America Inc.,Materials,1765.99,1/10/2020,,
Compass Minerals America Inc.,Materials,1936.32,1/16/2020,,
Compass Minerals America Inc.,Materials,1727.29,1/17/2020,,
Compass Minerals America Inc.,Materials,1725.71,1/23/2020,,
Compass Minerals America Inc.,Materials,1766.78,1/27/2020,,
Compass Minerals America Inc.,Materials,3334.53,1/28/2020,,
Compass Minerals America Inc.,Materials,1625.28,2/3/2020,,
Compass Minerals America Inc.,Materials,1667.27,2/3/2020,,
Compass Minerals America Inc.,Materials,1551.96,2/3/2020,,
Compass Minerals America Inc.,Materials,1720.23,2/5/2020,,
Compass Minerals America Inc.,Materials,1750.25,2/6/2020,,
Compass Minerals America Inc.,Materials,1672.8,2/10/2020,,
Compass Minerals America Inc.,Materials,1272.37,2/10/2020,,
Compass Minerals America Inc.,Materials,1650.54,2/13/2020,,
Compass Minerals America Inc.,Materials,1668.9,2/18/2020,,
Compass Minerals America Inc.,Materials,1555.91,2/21/2020,,
Compass Minerals America Inc.,Materials,1754.15,2/26/2020,,
Compass Minerals America Inc.,Materials,1544.17,3/2/2020,,
Compass Minerals America Inc.,Materials,1675.02,3/2/2020,,
Compass Minerals America Inc.,Materials,1669.64,3/4/2020,,
